Body Name,Body,Service Area Catergorisation,Service Division Catergorisation,Responsible Unit,Expenses Type,Detailed Expenses Type,Expenses Code,Date,Transaction Number,Amount,Capital / Revenue,Supplier Name,Supplier ID
North East Lincolnshire Council,http://statistics.data.gov.uk/id/local-authority/00FC,Cap People And Communities,Cap Schools Capital,Devolved Formula Cap Grant,Cap Infrastr-Build Enh Wrk,Cap Infrastr-Build Enh Wrk,YC102,12/20/2013,247474,15115.75,CAPITAL,EDUCATION LINCS LTD,101059
North East Lincolnshire Council,http://statistics.data.gov.uk/id/local-authority/00FC,Cap People And Communities,Cap Schools Capital,Devolved Formula Cap Grant,Cap Veh Plt Eqp-Purchase,Cap Veh Plt Eqp-Purchase,YB101,12/16/2013,247343,16192,CAPITAL,INFORMATION & DATA NETWORKS SUPPLIES LTD,101911
North East Lincolnshire Council,http://statistics.data.gov.uk/id/local-authority/00FC,Cap People And Communities,Cap Schools Capital,Devolved Formula Cap Grant,Cap Veh Plt Eqp-Purchase,Cap Veh Plt Eqp-Purchase,YB101,12/16/2013,247344,34358,CAPITAL,INFORMATION & DATA NETWORKS SUPPLIES LTD,101911
North East Lincolnshire Council,http://statistics.data.gov.uk/id/local-authority/00FC,Cap People And Communities,Cap Schools Capital,Devolved Formula Cap Grant,Cap Veh Plt Eqp-Purchase,Cap Veh Plt Eqp-Purchase,YB101,12/10/2013,246457,2355,CAPITAL,INFORMATION & DATA NETWORKS SUPPLIES LTD,101911
North East Lincolnshire Council,http://statistics.data.gov.uk/id/local-authority/00FC,Cap People And Communities,Cap Schools Capital,Devolved Formula Cap Grant,Cap Veh Plt Eqp-Purchase,Cap Veh Plt Eqp-Purchase,YB101,12/3/2013,244050,13200,CAPITAL,EDUCATION LINCS LTD,101059
North East Lincolnshire Council,http://statistics.data.gov.uk/id/local-authority/00FC,Cap People And Communities,Cap Schools Capital,Devolved Formula Cap Grant,Cap Land/Build-Build Enh Wrk,Cap Land/Build-Build Enh Wrk,YA102,12/3/2013,244680,404.8,CAPITAL,TECHNOLOGY TEACHING SYSTEMS LTD,100996
North East Lincolnshire Council,http://statistics.data.gov.uk/id/local-authority/00FC,Cap People And Communities,Cap Schools Capital,Schools - Capital Allocation,Cap Land/Build-Build Enh Wrk,Cap Land/Build-Build Enh Wrk,YA102,12/11/2013,245600,5493.5,CAPITAL,MANTA BRC LTD,102230
North East Lincolnshire Council,http://statistics.data.gov.uk/id/local-authority/00FC,Cap People And Communities,Cap Schools Capital,Schools - Capital Allocation,Cap Land/Build-Build Enh Wrk,Cap Land/Build-Build Enh Wrk,YA102,12/18/2013,248619,17112.75,CAPITAL,NRA ROOFING & FLOORING SERVICES,101810
North East Lincolnshire Council,http://statistics.data.gov.uk/id/local-authority/00FC,Cap People And Communities,Cap Schools Capital,Schools - Capital Allocation,Cap Land/Build-Build Enh Wrk,Cap Land/Build-Build Enh Wrk,YA102,12/11/2013,245988,59244.04,CAPITAL,NRA ROOFING & FLOORING SERVICES,101810
North East Lincolnshire Council,http://statistics.data.gov.uk/id/local-authority/00FC,Cap People And Communities,Cap Schools Capital,Schools - Capital Allocation,Cap Land/Build-Build Enh Wrk,Cap Land/Build-Build Enh Wrk,YA102,12/12/2013,246372,62253.31,CAPITAL,NRA ROOFING & FLOORING SERVICES,101810
North East Lincolnshire Council,http://statistics.data.gov.uk/id/local-authority/00FC,Cap People And Communities,Cap Schools Capital,Schools - Capital Allocation,Cap Land/Build-Prof Fees,Cap Land/Build-Prof Fees,YA103,12/4/2013,244842,REDACTED COMMERCIALLY SENSITIVE,CAPITAL,BALFOUR BEATTY,102595
North East Lincolnshire Council,http://statistics.data.gov.uk/id/local-authority/00FC,Cap People And Communities,Cap Schools Capital,Schools - Capital Allocation,Cap Land/Build-Build Enh Wrk,Cap Land/Build-Build Enh Wrk,YA102,12/5/2013,245163,4639.67,CAPITAL,NRA ROOFING & FLOORING SERVICES,101810
North East Lincolnshire Council,http://statistics.data.gov.uk/id/local-authority/00FC,Cap People And Communities,Cap Schools Capital,Schools - Capital Allocation,Cap Land/Build-Build Enh Wrk,Cap Land/Build-Build Enh Wrk,YA102,12/10/2013,245894,7480,CAPITAL,ETON-LINCS LIMITED,101510
North East Lincolnshire Council,http://statistics.data.gov.uk/id/local-authority/00FC,Cap People And Communities,Cap Schools Capital,Schools - Capital Allocation,Cap Land/Build-Build Enh Wrk,Cap Land/Build-Build Enh Wrk,YA102,12/12/2013,246388,20593.31,CAPITAL,TOPCON CONSTRUCTION LTD,108462
North East Lincolnshire Council,http://statistics.data.gov.uk/id/local-authority/00FC,Cap People And Communities,Cap Schools Capital,Schools - Basic Needs,Cap Land/Build-Prof Fees,Cap Land/Build-Prof Fees,YA103,12/4/2013,244827,REDACTED COMMERCIALLY SENSITIVE,CAPITAL,BALFOUR BEATTY,102595
North East Lincolnshire Council,http://statistics.data.gov.uk/id/local-authority/00FC,Cap People And Communities,Cap Schools Capital,Schools - Basic Needs,Cap Land/Build-Build Enh Wrk,Cap Land/Build-Build Enh Wrk,YA102,12/12/2013,246387,72826.24,CAPITAL,EXTRASPACE (UK) LTD,119622
North East Lincolnshire Council,http://statistics.data.gov.uk/id/local-authority/00FC,Cap People And Communities,Cap Schools Capital,Schools - Basic Needs,Cap Land/Build-Prof Fees,Cap Land/Build-Prof Fees,YA103,12/2/2013,244856,REDACTED COMMERCIALLY SENSITIVE,CAPITAL,BALFOUR BEATTY,102595
North East Lincolnshire Council,http://statistics.data.gov.uk/id/local-authority/00FC,Cap People And Communities,Cap Schools Capital,Schools - Basic Needs,Cap Land/Build-Build Enh Wrk,Cap Land/Build-Build Enh Wrk,YA102,12/30/2013,250327,44905.2,CAPITAL,F PARKINSON LTD,123944
North East Lincolnshire Council,http://statistics.data.gov.uk/id/local-authority/00FC,Cap People And Communities,Cap Schools Capital,Schools - Basic Needs,Cap Land/Build-Prof Fees,Cap Land/Build-Prof Fees,YA103,12/2/2013,244857,REDACTED COMMERCIALLY SENSITIVE,CAPITAL,BALFOUR BEATTY,102595
North East Lincolnshire Council,http://statistics.data.gov.uk/id/local-authority/00FC,Cap People And Communities,Cap Schools Capital,Schools - Basic Needs,Cap Land/Build-Build Enh Wrk,Cap Land/Build-Build Enh Wrk,YA102,12/20/2013,249124,64853,CAPITAL,G S KELSEY LIMITED,101154
North East Lincolnshire Council,http://statistics.data.gov.uk/id/local-authority/00FC,Cap People And Communities,Cap Schools Capital,Schools - Basic Needs,Cap Land/Build-Prof Fees,Cap Land/Build-Prof Fees,YA103,12/2/2013,244854,REDACTED COMMERCIALLY SENSITIVE,CAPITAL,BALFOUR BEATTY,102595
North East Lincolnshire Council,http://statistics.data.gov.uk/id/local-authority/00FC,Cap People And Communities,Cap Schools Capital,Schools - Basic Needs,Cap Veh Plt Eqp-Build Enh Wrk,Cap Veh Plt Eqp-Build Enh Wrk,YB102,12/30/2013,250200,4999.39,CAPITAL,GAIA TECHNOLOGIES PLC,102572
North East Lincolnshire Council,http://statistics.data.gov.uk/id/local-authority/00FC,Cap People And Communities,Cap Schools Capital,Schools - Basic Needs,Cap Veh Plt Eqp-Build Enh Wrk,Cap Veh Plt Eqp-Build Enh Wrk,YB102,12/30/2013,250201,4999.39,CAPITAL,GAIA TECHNOLOGIES PLC,102572
North East Lincolnshire Council,http://statistics.data.gov.uk/id/local-authority/00FC,Cap People And Communities,Cap Schools Capital,St Marys High Demolition,Cap Land/Build-Build Enh Wrk,Cap Land/Build-Build Enh Wrk,YA102,12/3/2013,245442,50000,CAPITAL,SECOND AVENUE RESOURCE CENTRE LIMITED,100648
North East Lincolnshire Council,http://statistics.data.gov.uk/id/local-authority/00FC,Cap People And Communities,Cap Schools Capital,Primary Capital Programme,Cap Land/Build-Build Enh Wrk,Cap Land/Build-Build Enh Wrk,YA102,12/4/2013,245674,1444756.43,CAPITAL,BUILT OFFSITE LIMITED,123685
North East Lincolnshire Council,http://statistics.data.gov.uk/id/local-authority/00FC,Cap People And Communities,Cap Schools Capital,Primary Capital Programme,Cap Land/Build-Build Enh Wrk,Cap Land/Build-Build Enh Wrk,YA102,12/20/2013,249326,627655.95,CAPITAL,BUILT OFFSITE LIMITED,123685
North East Lincolnshire Council,http://statistics.data.gov.uk/id/local-authority/00FC,Cap People And Communities,Cap Schools Capital,Primary Capital Programme,Cap Land/Build-Prof Fees,Cap Land/Build-Prof Fees,YA103,12/4/2013,244839,REDACTED COMMERCIALLY SENSITIVE,CAPITAL,BALFOUR BEATTY,102595
North East Lincolnshire Council,http://statistics.data.gov.uk/id/local-authority/00FC,Cap People And Communities,Cap Schools Capital,Targeted Basic Need,Cap Land/Build-Build Enh Wrk,Cap Land/Build-Build Enh Wrk,YA102,12/5/2013,245111,856,CAPITAL,REDHILL ANALYSTS LTD,109169
North East Lincolnshire Council,http://statistics.data.gov.uk/id/local-authority/00FC,Cap People And Communities,Cap Schools Capital,Targeted Basic Need,Cap Land/Build-Prof Fees,Cap Land/Build-Prof Fees,YA103,12/2/2013,244853,REDACTED COMMERCIALLY SENSITIVE,CAPITAL,BALFOUR BEATTY,102595
North East Lincolnshire Council,http://statistics.data.gov.uk/id/local-authority/00FC,Cap Resources,Cap Commission & Inform System,Ict Refresh / Refurbishment,Cap Veh Plt Eqp-Purchase,Cap Veh Plt Eqp-Purchase,YB101,12/9/2013,243215,1951,CAPITAL,SAFE CONTROL LTD,100989
North East Lincolnshire Council,http://statistics.data.gov.uk/id/local-authority/00FC,Cap Resources,Cap Commission & Inform System,Ict Refresh / Refurbishment,Cap Veh Plt Eqp-Purchase,Cap Veh Plt Eqp-Purchase,YB101,12/9/2013,243215,602,CAPITAL,SAFE CONTROL LTD,100989
North East Lincolnshire Council,http://statistics.data.gov.uk/id/local-authority/00FC,Cap Economy Env And Housing,Cap Development,Hps-Disabled Fac. Grants,Cap Grants To O/Side Sources,Cap Grants To O/Side Sources,YJ101,12/10/2013,245799,21924,CAPITAL,MARK BENNETT,101838
North East Lincolnshire Council,http://statistics.data.gov.uk/id/local-authority/00FC,Cap Economy Env And Housing,Cap Development,Hps-Disabled Fac. Grants,Cap Grants To O/Side Sources,Cap Grants To O/Side Sources,YJ101,12/16/2013,246876,10978,CAPITAL,MARK BENNETT,101838
North East Lincolnshire Council,http://statistics.data.gov.uk/id/local-authority/00FC,Cap Economy Env And Housing,Cap Development,Hps-Disabled Fac. Grants,Cap Grants To O/Side Sources,Cap Grants To O/Side Sources,YJ101,12/16/2013,246971,1664,CAPITAL,DOLPHIN MOBILITY EAST MIDLANDS LTD,101317
North East Lincolnshire Council,http://statistics.data.gov.uk/id/local-authority/00FC,Cap Economy Env And Housing,Cap Development,Hps-Disabled Fac. Grants,Cap Grants To O/Side Sources,Cap Grants To O/Side Sources,YJ101,12/23/2013,249099,4892,CAPITAL,M J QUICKFALL,102499
North East Lincolnshire Council,http://statistics.data.gov.uk/id/local-authority/00FC,Cap Economy Env And Housing,Cap Development,Hps-Disabled Fac. Grants,Cap Grants To O/Side Sources,Cap Grants To O/Side Sources,YJ101,12/23/2013,249098,2081,CAPITAL,DOLPHIN MOBILITY EAST MIDLANDS LTD,101317
North East Lincolnshire Council,http://statistics.data.gov.uk/id/local-authority/00FC,Cap Economy Env And Housing,Cap Development,Hps-Disabled Fac. Grants,Cap Grants To O/Side Sources,Cap Grants To O/Side Sources,YJ101,12/17/2013,246969,760,CAPITAL,B P JOINERY,101296
North East Lincolnshire Council,http://statistics.data.gov.uk/id/local-authority/00FC,Cap Economy Env And Housing,Cap Development,Hps-Disabled Fac. Grants,Cap Grants To O/Side Sources,Cap Grants To O/Side Sources,YJ101,12/16/2013,247573,16970,CAPITAL,VIC HANSEN BUILDING & JOINERY LTD,103981
North East Lincolnshire Council,http://statistics.data.gov.uk/id/local-authority/00FC,Cap Economy Env And Housing,Cap Development,Hps-Disabled Fac. Grants,Cap Grants To O/Side Sources,Cap Grants To O/Side Sources,YJ101,12/16/2013,246963,5045,CAPITAL,E J PARMENTER,100924
North East Lincolnshire Council,http://statistics.data.gov.uk/id/local-authority/00FC,Cap Economy Env And Housing,Cap Development,Hps-Disabled Fac. Grants,Cap Grants To O/Side Sources,Cap Grants To O/Side Sources,YJ101,12/20/2013,248304,5040,CAPITAL,DOLPHIN MOBILITY EAST MIDLANDS LTD,101317
North East Lincolnshire Council,http://statistics.data.gov.uk/id/local-authority/00FC,Cap Economy Env And Housing,Cap Development,Hps-Disabled Fac. Grants,Cap Grants To O/Side Sources,Cap Grants To O/Side Sources,YJ101,12/20/2013,248302,2276.84,CAPITAL,MANTA BRC LTD,102230
North East Lincolnshire Council,http://statistics.data.gov.uk/id/local-authority/00FC,Cap Economy Env And Housing,Cap Development,Hps-Disabled Fac. Grants,Cap Grants To O/Side Sources,Cap Grants To O/Side Sources,YJ101,12/20/2013,248310,3910,CAPITAL,BLAKES BUILDING SERVICES,101805
North East Lincolnshire Council,http://statistics.data.gov.uk/id/local-authority/00FC,Cap Economy Env And Housing,Cap Development,Hps-Disabled Fac. Grants,Cap Grants To O/Side Sources,Cap Grants To O/Side Sources,YJ101,12/20/2013,248628,3550,CAPITAL,TOTAL HYGIENE LTD,100849
North East Lincolnshire Council,http://statistics.data.gov.uk/id/local-authority/00FC,Cap Economy Env And Housing,Cap Development,Hps-Disabled Fac. Grants,Cap Grants To O/Side Sources,Cap Grants To O/Side Sources,YJ101,12/20/2013,248311,2190,CAPITAL,DOLPHIN MOBILITY EAST MIDLANDS LTD,101317
North East Lincolnshire Council,http://statistics.data.gov.uk/id/local-authority/00FC,Cap Economy Env And Housing,Cap Development,Hps-Disabled Fac. Grants,Cap Grants To O/Side Sources,Cap Grants To O/Side Sources,YJ101,12/20/2013,243184,376.21,CAPITAL,PRISM MEDICAL UK,119507
North East Lincolnshire Council,http://statistics.data.gov.uk/id/local-authority/00FC,Cap Economy Env And Housing,Cap Development,Hps-Disabled Fac. Grants,Cap Grants To O/Side Sources,Cap Grants To O/Side Sources,YJ101,12/20/2013,248312,3882,CAPITAL,VALAM BUILDERS LTD,100566
North East Lincolnshire Council,http://statistics.data.gov.uk/id/local-authority/00FC,Cap Economy Env And Housing,Cap Development,Hps-Disabled Fac. Grants,Cap Grants To O/Side Sources,Cap Grants To O/Side Sources,YJ101,12/16/2013,247441,7030,CAPITAL,VIC HANSEN BUILDING & JOINERY LTD,103981
North East Lincolnshire Council,http://statistics.data.gov.uk/id/local-authority/00FC,Cap Economy Env And Housing,Cap Development,Hps-Disabled Fac. Grants,Cap Grants To O/Side Sources,Cap Grants To O/Side Sources,YJ101,12/4/2013,243931,3170,CAPITAL,TOTAL HYGIENE LTD,100849
North East Lincolnshire Council,http://statistics.data.gov.uk/id/local-authority/00FC,Cap Economy Env And Housing,Cap Development,Hps-Disabled Fac. Grants,Cap Grants To O/Side Sources,Cap Grants To O/Side Sources,YJ101,12/18/2013,248083,2166,CAPITAL,HANDICARE ACCESSIIBILITY LTD,102647
North East Lincolnshire Council,http://statistics.data.gov.uk/id/local-authority/00FC,Cap Economy Env And Housing,Cap Development,Hps-Disabled Fac. Grants,Cap Grants To O/Side Sources,Cap Grants To O/Side Sources,YJ101,12/16/2013,247451,3200,CAPITAL,VIC HANSEN BUILDING & JOINERY LTD,103981
North East Lincolnshire Council,http://statistics.data.gov.uk/id/local-authority/00FC,Cap Economy Env And Housing,Cap Development,Hps-Disabled Fac. Grants,Cap Grants To O/Side Sources,Cap Grants To O/Side Sources,YJ101,12/16/2013,246970,5200,CAPITAL,E J PARMENTER,100924
North East Lincolnshire Council,http://statistics.data.gov.uk/id/local-authority/00FC,Cap Economy Env And Housing,Cap Development,Hps-Disabled Fac. Grants,Cap Grants To O/Side Sources,Cap Grants To O/Side Sources,YJ101,12/20/2013,248270,1415,CAPITAL,TOTAL HYGIENE LTD,100849
North East Lincolnshire Council,http://statistics.data.gov.uk/id/local-authority/00FC,Cap Economy Env And Housing,Cap Development,Hps-Disabled Fac. Grants,Cap Grants To O/Side Sources,Cap Grants To O/Side Sources,YJ101,12/18/2013,248084,2423,CAPITAL,HANDICARE ACCESSIIBILITY LTD,102647
North East Lincolnshire Council,http://statistics.data.gov.uk/id/local-authority/00FC,Cap Economy Env And Housing,Cap Development,Hps-Disabled Fac. Grants,Cap Grants To O/Side Sources,Cap Grants To O/Side Sources,YJ101,12/20/2013,248303,7047.06,CAPITAL,COLEMAN JOINERY,123282
North East Lincolnshire Council,http://statistics.data.gov.uk/id/local-authority/00FC,Cap Economy Env And Housing,Cap Development,Hps-Disabled Fac. Grants,Cap Grants To O/Side Sources,Cap Grants To O/Side Sources,YJ101,12/20/2013,248629,3744.5,CAPITAL,TOTAL HYGIENE LTD,100849
North East Lincolnshire Council,http://statistics.data.gov.uk/id/local-authority/00FC,Cap Economy Env And Housing,Cap Development,Hps-Disabled Fac. Grants,Cap Grants To O/Side Sources,Cap Grants To O/Side Sources,YJ101,12/20/2013,248307,520,CAPITAL,STEVE BENNETT ARCHITECTURAL DESIGN,103819
North East Lincolnshire Council,http://statistics.data.gov.uk/id/local-authority/00FC,Cap Economy Env And Housing,Cap Development,Hps-Disabled Fac. Grants,Cap Grants To O/Side Sources,Cap Grants To O/Side Sources,YJ101,12/20/2013,248309,657.5,CAPITAL,STEVE BENNETT ARCHITECTURAL DESIGN,103819
North East Lincolnshire Council,http://statistics.data.gov.uk/id/local-authority/00FC,Cap Economy Env And Housing,Cap Development,Hps-Disabled Fac. Grants,Cap Grants To O/Side Sources,Cap Grants To O/Side Sources,YJ101,12/16/2013,246877,649.8,CAPITAL,STEVE BENNETT ARCHITECTURAL DESIGN,103819
North East Lincolnshire Council,http://statistics.data.gov.uk/id/local-authority/00FC,Cap Economy Env And Housing,Cap Development,Local Transport Plan,Cap Infrastr-Build Enh Wrk,Cap Infrastr-Build Enh Wrk,YC102,12/18/2013,247377,353.99,CAPITAL,J MCCANN & CO LTD,100841
North East Lincolnshire Council,http://statistics.data.gov.uk/id/local-authority/00FC,Cap Economy Env And Housing,Cap Development,Local Transport Plan,Cap Infrastr-Prof Fees,Cap Infrastr-Prof Fees,YC103,12/17/2013,247138,3160,CAPITAL,CTS TRAFFIC & TRANSPORTATION,122112
North East Lincolnshire Council,http://statistics.data.gov.uk/id/local-authority/00FC,Cap Economy Env And Housing,Cap Development,Local Transport Plan,Cap Infrastr-Build Enh Wrk,Cap Infrastr-Build Enh Wrk,YC102,12/5/2013,238370,855,CAPITAL,J MCCANN & CO LTD,100841
North East Lincolnshire Council,http://statistics.data.gov.uk/id/local-authority/00FC,Cap Economy Env And Housing,Cap Development,Local Transport Plan,Cap Infrastr-Build Enh Wrk,Cap Infrastr-Build Enh Wrk,YC102,12/18/2013,248223,109817.86,CAPITAL,PELL AND BALDWIN FABRICATIONS LTD,118853
North East Lincolnshire Council,http://statistics.data.gov.uk/id/local-authority/00FC,Cap Economy Env And Housing,Cap Development,Local Transport Plan,Cap Infrastr-Build Enh Wrk,Cap Infrastr-Build Enh Wrk,YC102,12/5/2013,241587,402.07,CAPITAL,C E SMITH & SONS,104444
North East Lincolnshire Council,http://statistics.data.gov.uk/id/local-authority/00FC,Cap Economy Env And Housing,Cap Development,Local Transport Plan,Cap Land/Build-Build Enh Wrk,Cap Land/Build-Build Enh Wrk,YA102,12/18/2013,247377,11997.22,CAPITAL,J MCCANN & CO LTD,100841
North East Lincolnshire Council,http://statistics.data.gov.uk/id/local-authority/00FC,Cap Economy Env And Housing,Cap Development,Local Transport Plan,Cap Land/Build-Build Enh Wrk,Cap Land/Build-Build Enh Wrk,YA102,12/2/2013,244551,336.1,CAPITAL,NORTHERN POWERGRID (YORKSHIRE) PLC,108328
North East Lincolnshire Council,http://statistics.data.gov.uk/id/local-authority/00FC,Cap Economy Env And Housing,Cap Development,Local Transport Plan,Cap Land/Build-Build Enh Wrk,Cap Land/Build-Build Enh Wrk,YA102,12/10/2013,245956,336.1,CAPITAL,NORTHERN POWERGRID (YORKSHIRE) PLC,108328
North East Lincolnshire Council,http://statistics.data.gov.uk/id/local-authority/00FC,Cap Economy Env And Housing,Cap Development,Local Transport Plan,Cap Land/Build-Build Enh Wrk,Cap Land/Build-Build Enh Wrk,YA102,12/10/2013,245958,672.2,CAPITAL,NORTHERN POWERGRID (YORKSHIRE) PLC,108328
North East Lincolnshire Council,http://statistics.data.gov.uk/id/local-authority/00FC,Cap Economy Env And Housing,Cap Development,Local Transport Plan,Cap Infrastr-Build Enh Wrk,Cap Infrastr-Build Enh Wrk,YC102,12/20/2013,248258,10830,CAPITAL,KIELY BROS LTD,106644
North East Lincolnshire Council,http://statistics.data.gov.uk/id/local-authority/00FC,Cap Economy Env And Housing,Cap Development,Local Transport Plan,Cap Infrastr-Build Enh Wrk,Cap Infrastr-Build Enh Wrk,YC102,12/31/2013,241921,2550,CAPITAL,BUCHANAN COMPUTING LTD,119406
North East Lincolnshire Council,http://statistics.data.gov.uk/id/local-authority/00FC,Cap Economy Env And Housing,Cap Development,Local Transport Plan,Cap Infrastr-Build Enh Wrk,Cap Infrastr-Build Enh Wrk,YC102,12/31/2013,241920,850,CAPITAL,BUCHANAN COMPUTING LTD,119406
North East Lincolnshire Council,http://statistics.data.gov.uk/id/local-authority/00FC,Cap Economy Env And Housing,Cap Development,Local Transport Plan,Cap Infrastr-Build Enh Wrk,Cap Infrastr-Build Enh Wrk,YC102,12/30/2013,245859,7660,CAPITAL,J MCCANN & CO LTD,100841
North East Lincolnshire Council,http://statistics.data.gov.uk/id/local-authority/00FC,Cap Economy Env And Housing,Cap Development,Freeman Street Regeneration,Cap Land/Build-Build Enh Wrk,Cap Land/Build-Build Enh Wrk,YA102,12/11/2013,245858,524.64,CAPITAL,J MCCANN & CO LTD,100841
North East Lincolnshire Council,http://statistics.data.gov.uk/id/local-authority/00FC,Cap Economy Env And Housing,Cap Development,Freeman Street Regeneration,Cap Invest Prop-Build Enh Wrk,Cap Invest Prop-Build Enh Wrk,YE102,12/18/2013,247377,12976.22,CAPITAL,J MCCANN & CO LTD,100841
North East Lincolnshire Council,http://statistics.data.gov.uk/id/local-authority/00FC,Cap Economy Env And Housing,Cap Development,Housing Assistance,Cap Grants To O/Side Sources,Cap Grants To O/Side Sources,YJ101,12/20/2013,248342,6340.8,CAPITAL,M J QUICKFALL,102499
North East Lincolnshire Council,http://statistics.data.gov.uk/id/local-authority/00FC,Cap Economy Env And Housing,Cap Development,Housing Assistance,Cap Grants To O/Side Sources,Cap Grants To O/Side Sources,YJ101,12/20/2013,249115,1980,CAPITAL,MAYNE GAS HEATING LTD,101861
North East Lincolnshire Council,http://statistics.data.gov.uk/id/local-authority/00FC,Cap Economy Env And Housing,Cap Development,Housing Assistance,Cap Grants To O/Side Sources,Cap Grants To O/Side Sources,YJ101,12/17/2013,248340,4875,CAPITAL,M J QUICKFALL,102499
North East Lincolnshire Council,http://statistics.data.gov.uk/id/local-authority/00FC,Cap Economy Env And Housing,Cap Development,Housing Assistance,Cap Grants To O/Side Sources,Cap Grants To O/Side Sources,YJ101,12/16/2013,246685,10008,CAPITAL,NEWVIC PROPERTY SERVICES LTD,123637
North East Lincolnshire Council,http://statistics.data.gov.uk/id/local-authority/00FC,Cap Economy Env And Housing,Cap Development,Housing Assistance,Cap Grants To O/Side Sources,Cap Grants To O/Side Sources,YJ101,12/20/2013,248281,6969.17,CAPITAL,LETSAND (GRIMSBY),123288
North East Lincolnshire Council,http://statistics.data.gov.uk/id/local-authority/00FC,Cap Economy Env And Housing,Cap Development,Housing Assistance,Cap Grants To O/Side Sources,Cap Grants To O/Side Sources,YJ101,12/17/2013,245613,2361.95,CAPITAL,E-ON UK PLC,109083
North East Lincolnshire Council,http://statistics.data.gov.uk/id/local-authority/00FC,Cap Economy Env And Housing,Cap Development,Housing Assistance,Cap Grants To O/Side Sources,Cap Grants To O/Side Sources,YJ101,12/17/2013,245614,2361.95,CAPITAL,E-ON UK PLC,109083
North East Lincolnshire Council,http://statistics.data.gov.uk/id/local-authority/00FC,Cap Economy Env And Housing,Cap Development,Housing Assistance,Cap Grants To O/Side Sources,Cap Grants To O/Side Sources,YJ101,12/17/2013,245615,2393.4,CAPITAL,E-ON UK PLC,109083
North East Lincolnshire Council,http://statistics.data.gov.uk/id/local-authority/00FC,Cap Economy Env And Housing,Cap Development,Derelict Land & Comm Prop,Cap Land/Build-Purchase,Cap Land/Build-Purchase,YA101,12/17/2013,247672,34646.89,CAPITAL,SHORELINE HOUSING PARTNERSHIP LTD,100139
North East Lincolnshire Council,http://statistics.data.gov.uk/id/local-authority/00FC,Cap Economy Env And Housing,Cap Development,Derelict Land & Comm Prop,Cap Grants To O/Side Sources,Cap Grants To O/Side Sources,YJ101,12/3/2013,244486,3592,CAPITAL,REDACTED PERSONAL INFORMATION,REDACTED PERSONAL INFORMATION
North East Lincolnshire Council,http://statistics.data.gov.uk/id/local-authority/00FC,Cap Economy Env And Housing,Cap Development,Local Sustainable Trans Fund,Cap Infrastr-Build Enh Wrk,Cap Infrastr-Build Enh Wrk,YC102,12/5/2013,245785,200000,CAPITAL,BIRSE CIVILS LTD,121547
North East Lincolnshire Council,http://statistics.data.gov.uk/id/local-authority/00FC,Cap Economy Env And Housing,Cap Development,Local Sustainable Trans Fund,Cap Infrastr-Build Enh Wrk,Cap Infrastr-Build Enh Wrk,YC102,12/18/2013,248063,-200000,CAPITAL,BIRSE CIVILS LTD,121547
North East Lincolnshire Council,http://statistics.data.gov.uk/id/local-authority/00FC,Cap Economy Env And Housing,Cap Development,Local Sustainable Trans Fund,Cap Infrastr-Build Enh Wrk,Cap Infrastr-Build Enh Wrk,YC102,12/20/2013,248238,270000,CAPITAL,BIRSE CIVILS LTD,121547
North East Lincolnshire Council,http://statistics.data.gov.uk/id/local-authority/00FC,Cap Economy Env And Housing,Cap Development,Local Sustainable Trans Fund,Cap Infrastr-Build Enh Wrk,Cap Infrastr-Build Enh Wrk,YC102,12/4/2013,243927,1838.96,CAPITAL,P H CONSTRUCTION SERVICES LTD,102107
North East Lincolnshire Council,http://statistics.data.gov.uk/id/local-authority/00FC,Cap Economy Env And Housing,Cap Development,A18 - A180 Link,Cap Infrastr-Build Enh Wrk,Cap Infrastr-Build Enh Wrk,YC102,12/23/2013,248294,3100,CAPITAL,EDWARD COX LTD,122748
North East Lincolnshire Council,http://statistics.data.gov.uk/id/local-authority/00FC,Cap Economy Env And Housing,Cap Development,Energy Sol - Street Light Lant,Cap Land/Build-Build Enh Wrk,Cap Land/Build-Build Enh Wrk,YA102,12/23/2013,249007,REDACTED COMMERCIALLY SENSITIVE,CAPITAL,BALFOUR BEATTY,102595
North East Lincolnshire Council,http://statistics.data.gov.uk/id/local-authority/00FC,Cap Economy Env And Housing,Cap Culture Leisure And Sport,Leisure/Library - Library,Cap Land/Build-Build Enh Wrk,Cap Land/Build-Build Enh Wrk,YA102,12/2/2013,244832,20000,CAPITAL,EXCELL ELECTRICAL CONTRACTORS,100601
North East Lincolnshire Council,http://statistics.data.gov.uk/id/local-authority/00FC,Cap Economy Env And Housing,Cap Culture Leisure And Sport,Leisure/Library - Library,Cap Land/Build-Build Enh Wrk,Cap Land/Build-Build Enh Wrk,YA102,12/5/2013,245108,4074,CAPITAL,GRADE 3 LIMITED,101924
North East Lincolnshire Council,http://statistics.data.gov.uk/id/local-authority/00FC,Cap Economy Env And Housing,Cap Culture Leisure And Sport,Leisure/Library - Library,Cap Land/Build-Build Enh Wrk,Cap Land/Build-Build Enh Wrk,YA102,12/18/2013,248608,92832.85,CAPITAL,KES BUILDING MAINTENANCE LIMITED,100786
North East Lincolnshire Council,http://statistics.data.gov.uk/id/local-authority/00FC,Cap Economy Env And Housing,Cap Culture Leisure And Sport,Leisure/Library - Library,Cap Land/Build-Build Enh Wrk,Cap Land/Build-Build Enh Wrk,YA102,12/5/2013,245107,336,CAPITAL,REDHILL ANALYSTS LTD,109169
North East Lincolnshire Council,http://statistics.data.gov.uk/id/local-authority/00FC,Cap Economy Env And Housing,Cap Culture Leisure And Sport,Grimsby Leisure Centre,Cap Comm Asset-Build Enh Wrk,Cap Comm Asset-Build Enh Wrk,YD102,12/4/2013,245427,REDACTED COMMERCIALLY SENSITIVE,CAPITAL,BALFOUR BEATTY,102595
North East Lincolnshire Council,http://statistics.data.gov.uk/id/local-authority/00FC,Cap Economy Env And Housing,Cap Culture Leisure And Sport,Grimsby Leisure Centre,Cap Land/Build-Build Enh Wrk,Cap Land/Build-Build Enh Wrk,YA102,12/5/2013,245426,REDACTED COMMERCIALLY SENSITIVE,CAPITAL,BALFOUR BEATTY,102595
North East Lincolnshire Council,http://statistics.data.gov.uk/id/local-authority/00FC,Cap Economy Env And Housing,Cap Culture Leisure And Sport,Cleethorpes Leis Cent Refurb,Cap Land/Build-Build Enh Wrk,Cap Land/Build-Build Enh Wrk,YA102,12/4/2013,245428,REDACTED COMMERCIALLY SENSITIVE,CAPITAL,BALFOUR BEATTY,102595
North East Lincolnshire Council,http://statistics.data.gov.uk/id/local-authority/00FC,Cap Economy Env And Housing,Cap Culture Leisure And Sport,Cleethorpes Leis Cent Refurb,Cap Land/Build-Build Enh Wrk,Cap Land/Build-Build Enh Wrk,YA102,12/4/2013,245430,REDACTED COMMERCIALLY SENSITIVE,CAPITAL,BALFOUR BEATTY,102595
North East Lincolnshire Council,http://statistics.data.gov.uk/id/local-authority/00FC,Cap Economy Env And Housing,Cap Culture Leisure And Sport,Cleethorpes Leis Cent Refurb,Cap Land/Build-Build Enh Wrk,Cap Land/Build-Build Enh Wrk,YA102,12/16/2013,247363,20874,CAPITAL,THE GELDER GROUP,103601
North East Lincolnshire Council,http://statistics.data.gov.uk/id/local-authority/00FC,Cap Economy Env And Housing,Cap Culture Leisure And Sport,Cleethorpes Leis Cent Refurb,Cap Land/Build-Build Enh Wrk,Cap Land/Build-Build Enh Wrk,YA102,12/4/2013,245429,REDACTED COMMERCIALLY SENSITIVE,CAPITAL,BALFOUR BEATTY,102595
North East Lincolnshire Council,http://statistics.data.gov.uk/id/local-authority/00FC,Cap Economy Env And Housing,Cap Culture Leisure And Sport,Cleethorpes Leis Cent Refurb,Cap Land/Build-Build Enh Wrk,Cap Land/Build-Build Enh Wrk,YA102,12/4/2013,245431,REDACTED COMMERCIALLY SENSITIVE,CAPITAL,BALFOUR BEATTY,102595
North East Lincolnshire Council,http://statistics.data.gov.uk/id/local-authority/00FC,Cap Economy Env And Housing,Cap Culture Leisure And Sport,Cleethorpes Leis Cent Refurb,Cap Land/Build-Build Enh Wrk,Cap Land/Build-Build Enh Wrk,YA102,12/16/2013,247363,740074,CAPITAL,THE GELDER GROUP,103601
North East Lincolnshire Council,http://statistics.data.gov.uk/id/local-authority/00FC,Cap Economy Env And Housing,Cap Eeh Assets,Backlog Maintenance,Cap Land/Build-Build Enh Wrk,Cap Land/Build-Build Enh Wrk,YA102,12/20/2013,249121,16257.5,CAPITAL,STANNAH LIFT SERVICES LTD,100622
North East Lincolnshire Council,http://statistics.data.gov.uk/id/local-authority/00FC,Cap Economy Env And Housing,Cap Eeh Assets,Backlog Maintenance,Cap Land/Build-Build Enh Wrk,Cap Land/Build-Build Enh Wrk,YA102,12/10/2013,245891,3981.46,CAPITAL,MANTA BRC LTD,102230
North East Lincolnshire Council,http://statistics.data.gov.uk/id/local-authority/00FC,Cap Economy Env And Housing,Cap Eeh Assets,Property Rationalisation,Cap Land/Build-Build Enh Wrk,Cap Land/Build-Build Enh Wrk,YA102,12/20/2013,249008,332.79,CAPITAL,LINCS ELECTRICAL SERVICES LTD,102044
North East Lincolnshire Council,http://statistics.data.gov.uk/id/local-authority/00FC,Cap Economy Env And Housing,Cap Eeh Assets,Property Rationalisation,Cap Land/Build-Build Enh Wrk,Cap Land/Build-Build Enh Wrk,YA102,12/11/2013,245603,1257.91,CAPITAL,MANTA BRC LTD,102230
North East Lincolnshire Council,http://statistics.data.gov.uk/id/local-authority/00FC,Cap Economy Env And Housing,Cap Eeh Assets,Property Rationalisation,Cap Infrastr-Purchase,Cap Infrastr-Purchase,YC101,12/23/2013,248672,992,CAPITAL,SAFE CONTROL LTD,100989
North East Lincolnshire Council,http://statistics.data.gov.uk/id/local-authority/00FC,Cap Economy Env And Housing,Cap Eeh Assets,Property Rationalisation,Cap Infrastr-Purchase,Cap Infrastr-Purchase,YC101,12/11/2013,246557,1300,CAPITAL,BADENOCH & CLARK,101427
North East Lincolnshire Council,http://statistics.data.gov.uk/id/local-authority/00FC,Cap Economy Env And Housing,Cap Eeh Assets,Property Rationalisation,Cap Infrastr-Purchase,Cap Infrastr-Purchase,YC101,12/17/2013,248038,780,CAPITAL,BADENOCH & CLARK,101427
North East Lincolnshire Council,http://statistics.data.gov.uk/id/local-authority/00FC,Cap Economy Env And Housing,Cap Eeh Assets,Property Rationalisation,Cap Infrastr-Purchase,Cap Infrastr-Purchase,YC101,12/20/2013,248044,1300,CAPITAL,BADENOCH & CLARK,101427
North East Lincolnshire Council,http://statistics.data.gov.uk/id/local-authority/00FC,Cap Economy Env And Housing,Cap Eeh Assets,Property Rationalisation,Cap Infrastr-Purchase,Cap Infrastr-Purchase,YC101,12/23/2013,248739,1674.4,CAPITAL,COMPUTACENTER UK LTD,101303
North East Lincolnshire Council,http://statistics.data.gov.uk/id/local-authority/00FC,Cap Economy Env And Housing,Cap Eeh Assets,Property Rationalisation,Cap Infrastr-Purchase,Cap Infrastr-Purchase,YC101,12/2/2013,245095,1019.6,CAPITAL,MATRIX SCM LTD,108117
North East Lincolnshire Council,http://statistics.data.gov.uk/id/local-authority/00FC,Cap Economy Env And Housing,Cap Eeh Assets,Property Rationalisation,Cap Infrastr-Purchase,Cap Infrastr-Purchase,YC101,12/10/2013,246446,1055.24,CAPITAL,MATRIX SCM LTD,108117
North East Lincolnshire Council,http://statistics.data.gov.uk/id/local-authority/00FC,Cap Economy Env And Housing,Cap Eeh Assets,Property Rationalisation,Cap Infrastr-Purchase,Cap Infrastr-Purchase,YC101,12/17/2013,248057,751.68,CAPITAL,SPECIALIST COMPUTER CENTRES PLC,110715
North East Lincolnshire Council,http://statistics.data.gov.uk/id/local-authority/00FC,Cap Economy Env And Housing,Cap Eeh Assets,Property Rationalisation,Cap Infrastr-Purchase,Cap Infrastr-Purchase,YC101,12/9/2013,244635,1818.84,CAPITAL,SPECIALIST COMPUTER CENTRES PLC,110715
North East Lincolnshire Council,http://statistics.data.gov.uk/id/local-authority/00FC,Cap Economy Env And Housing,Cap Eeh Assets,Property Rationalisation,Cap Infrastr-Purchase,Cap Infrastr-Purchase,YC101,12/9/2013,244634,3637.68,CAPITAL,SPECIALIST COMPUTER CENTRES PLC,110715
North East Lincolnshire Council,http://statistics.data.gov.uk/id/local-authority/00FC,Cap Economy Env And Housing,Cap Eeh Assets,Property Rationalisation,Cap Infrastr-Purchase,Cap Infrastr-Purchase,YC101,12/9/2013,244636,6820.65,CAPITAL,SPECIALIST COMPUTER CENTRES PLC,110715
North East Lincolnshire Council,http://statistics.data.gov.uk/id/local-authority/00FC,Cap Economy Env And Housing,Cap Eeh Assets,Property Rationalisation,Cap Infrastr-Purchase,Cap Infrastr-Purchase,YC101,12/9/2013,244638,909.42,CAPITAL,SPECIALIST COMPUTER CENTRES PLC,110715
North East Lincolnshire Council,http://statistics.data.gov.uk/id/local-authority/00FC,Cap Economy Env And Housing,Cap Eeh Assets,Property Rationalisation,Cap Infrastr-Purchase,Cap Infrastr-Purchase,YC101,12/9/2013,244639,4092.39,CAPITAL,SPECIALIST COMPUTER CENTRES PLC,110715
North East Lincolnshire Council,http://statistics.data.gov.uk/id/local-authority/00FC,Cap Economy Env And Housing,Cap Eeh Assets,Property Rationalisation,Cap Infrastr-Purchase,Cap Infrastr-Purchase,YC101,12/9/2013,244632,454.71,CAPITAL,SPECIALIST COMPUTER CENTRES PLC,110715
North East Lincolnshire Council,http://statistics.data.gov.uk/id/local-authority/00FC,Cap Economy Env And Housing,Cap Eeh Assets,Property Rationalisation,Cap Infrastr-Purchase,Cap Infrastr-Purchase,YC101,12/17/2013,248057,8184.78,CAPITAL,SPECIALIST COMPUTER CENTRES PLC,110715
North East Lincolnshire Council,http://statistics.data.gov.uk/id/local-authority/00FC,Cap Economy Env And Housing,Cap Eeh Assets,Property Rationalisation,Cap Infrastr-Purchase,Cap Infrastr-Purchase,YC101,12/10/2013,246445,1055.24,CAPITAL,MATRIX SCM LTD,108117
North East Lincolnshire Council,http://statistics.data.gov.uk/id/local-authority/00FC,Cap Economy Env And Housing,Cap Eeh Assets,Property Rationalisation,Cap Infrastr-Purchase,Cap Infrastr-Purchase,YC101,12/18/2013,248081,1055.24,CAPITAL,MATRIX SCM LTD,108117
North East Lincolnshire Council,http://statistics.data.gov.uk/id/local-authority/00FC,Cap Economy Env And Housing,Cap Eeh Assets,Property Rationalisation,Cap Infrastr-Purchase,Cap Infrastr-Purchase,YC101,12/23/2013,249156,1386,CAPITAL,COMPUTACENTER UK LTD,101303
North East Lincolnshire Council,http://statistics.data.gov.uk/id/local-authority/00FC,Cap Economy Env And Housing,Cap Eeh Assets,Property Rationalisation,Cap Infrastr-Purchase,Cap Infrastr-Purchase,YC101,12/16/2013,246530,5197,CAPITAL,IMERJA LTD,102238
North East Lincolnshire Council,http://statistics.data.gov.uk/id/local-authority/00FC,Cap Economy Env And Housing,Cap Eeh Assets,Property Rationalisation,Cap Infrastr-Purchase,Cap Infrastr-Purchase,YC101,12/16/2013,246530,5389,CAPITAL,IMERJA LTD,102238
North East Lincolnshire Council,http://statistics.data.gov.uk/id/local-authority/00FC,Cap Economy Env And Housing,Cap Eeh Assets,Property Rationalisation,Cap Land/Build-Build Enh Wrk,Cap Land/Build-Build Enh Wrk,YA102,12/18/2013,248660,74336.79,CAPITAL,E S RUDKIN LTD,100632
North East Lincolnshire Council,http://statistics.data.gov.uk/id/local-authority/00FC,Cap Economy Env And Housing,Cap Eeh Assets,Property Rationalisation,Cap Land/Build-Build Enh Wrk,Cap Land/Build-Build Enh Wrk,YA102,12/11/2013,245989,79766.8,CAPITAL,E S RUDKIN LTD,100632
North East Lincolnshire Council,http://statistics.data.gov.uk/id/local-authority/00FC,Cap Economy Env And Housing,Cap Eeh Assets,Property Rationalisation,Cap Land/Build-Build Enh Wrk,Cap Land/Build-Build Enh Wrk,YA102,12/11/2013,245987,37470.73,CAPITAL,NRA ROOFING & FLOORING SERVICES,101810
North East Lincolnshire Council,http://statistics.data.gov.uk/id/local-authority/00FC,Chief Executive,Chief Executive,Chief Exec & Support,Indirect Employee Expenses,Staff Training,EB122,12/23/2013,249066,450,REVENUE,LOCAL GOVERNMENT ASSOCIATION,101113
North East Lincolnshire Council,http://statistics.data.gov.uk/id/local-authority/00FC,Chief Executive,Chief Executive,Chief Exec & Support,Contributions To Provisions,Contributions - Communities,LK101,12/30/2013,246846,306,REVENUE,BRIANPLANT (HUMBERSIDE) LTD,100583
North East Lincolnshire Council,http://statistics.data.gov.uk/id/local-authority/00FC,Chief Executive,Chief Executive,Chief Exec & Support,Contributions To Provisions,Contributions - Communities,LK101,12/18/2013,248113,300,REVENUE,GREAT COATES PARISH COUNCIL,101474
North East Lincolnshire Council,http://statistics.data.gov.uk/id/local-authority/00FC,Chief Executive,Chief Executive,Chief Exec & Support,Contributions To Provisions,Contributions - Communities,LK101,12/18/2013,248168,1000,REVENUE,GRIMSBY AND CLEETHORPES YMCA,100305
North East Lincolnshire Council,http://statistics.data.gov.uk/id/local-authority/00FC,Chief Executive,Chief Executive,Chief Exec & Support,Contributions To Provisions,Contributions - Communities,LK101,12/18/2013,248115,1000,REVENUE,GRIMSBY & DISTRICT LIVE AT HOME SCHEME,102091
North East Lincolnshire Council,http://statistics.data.gov.uk/id/local-authority/00FC,Chief Executive,Chief Executive,Chief Exec & Support,Contributions To Provisions,Contributions - Communities,LK101,12/10/2013,245793,600,REVENUE,HUMBERSTON ACADEMY,106067
North East Lincolnshire Council,http://statistics.data.gov.uk/id/local-authority/00FC,Chief Executive,Chief Executive,Chief Exec & Support,Contributions To Provisions,Contributions - Communities,LK101,12/3/2013,244499,500,REVENUE,SOUTH PARTNERSHIP,123596
North East Lincolnshire Council,http://statistics.data.gov.uk/id/local-authority/00FC,Chief Executive,Chief Executive,Chief Exec & Support,Contributions To Provisions,Contributions - Communities,LK101,12/2/2013,244498,500,REVENUE,WESTERN YOUNG PEOPLE'S CENTRE,114909
North East Lincolnshire Council,http://statistics.data.gov.uk/id/local-authority/00FC,Chief Executive,Chief Executive,Chief Exec & Support,Contributions To Provisions,Contributions - Communities,LK101,12/12/2013,246973,250,REVENUE,LITTLECOATES PRIMARY SCHOOL,105224
North East Lincolnshire Council,http://statistics.data.gov.uk/id/local-authority/00FC,Chief Executive,Chief Executive,Chief Exec & Support,Contributions To Provisions,Contributions - Communities,LK101,12/18/2013,248109,250,REVENUE,MACAULAY PRIMARY ACADEMY,112680
North East Lincolnshire Council,http://statistics.data.gov.uk/id/local-authority/00FC,Chief Executive,Chief Executive,Chief Exec & Support,Contributions To Provisions,Contributions - Communities,LK101,12/18/2013,248166,732,REVENUE,BARNOLDBY LE-BECK PARISH COUNCIL,123913
North East Lincolnshire Council,http://statistics.data.gov.uk/id/local-authority/00FC,Chief Executive,Chief Executive,Chief Exec & Support,Contributions To Provisions,Contributions - Communities,LK101,12/18/2013,248107,454.07,REVENUE,HEALING PARISH COUNCIL,100658
North East Lincolnshire Council,http://statistics.data.gov.uk/id/local-authority/00FC,Chief Executive,Chief Executive,Chief Exec & Support,Contributions To Provisions,Contributions - Communities,LK101,12/2/2013,244497,250,REVENUE,ROYAL NATIONAL MISSION TO DEEP SEA FISHERMEN,111924
North East Lincolnshire Council,http://statistics.data.gov.uk/id/local-authority/00FC,Chief Executive,Public Health,Directors Public Health,Car Allowances,Travel - Employees,JF101,12/18/2013,201607,327.77,REVENUE,REDACTED PERSONAL INFORMATION,REDACTED PERSONAL INFORMATION
North East Lincolnshire Council,http://statistics.data.gov.uk/id/local-authority/00FC,Chief Executive,Public Health,Directors Public Health,Car Allowances,Travel - Employees,JF101,12/4/2013,196261,270.5,REVENUE,REDACTED PERSONAL INFORMATION,REDACTED PERSONAL INFORMATION
North East Lincolnshire Council,http://statistics.data.gov.uk/id/local-authority/00FC,Chief Executive,Public Health,Directors Public Health,Car Allowances,Travel - Employees,JF101,12/11/2013,199936,317.34,REVENUE,REDACTED PERSONAL INFORMATION,REDACTED PERSONAL INFORMATION
North East Lincolnshire Council,http://statistics.data.gov.uk/id/local-authority/00FC,Chief Executive,Public Health,Directors Public Health,Expenses,Course/Conf Accom - Employees,LH102,12/16/2013,246528,400,REVENUE,SCHARR,122033
North East Lincolnshire Council,http://statistics.data.gov.uk/id/local-authority/00FC,Chief Executive,Public Health,Directors Public Health,Private Contractors,Contract Payments,PH105,12/23/2013,249900,485,REVENUE,SMITH GUTTRIDGE & ASSOCIATES,122870
North East Lincolnshire Council,http://statistics.data.gov.uk/id/local-authority/00FC,Chief Executive,Public Health,Directors Public Health,Equip / Furniture / Materials,Cleaning - Equipment,LA103,12/30/2013,249910,2400,REVENUE,INTERMEDICAL,108219
North East Lincolnshire Council,http://statistics.data.gov.uk/id/local-authority/00FC,Chief Executive,Public Health,Directors Public Health,Private Contractors,Third Party Prov - Private,PH101,12/5/2013,244637,560,REVENUE,CHURCH VIEW HEALTH CARE LIMITED,108912
North East Lincolnshire Council,http://statistics.data.gov.uk/id/local-authority/00FC,Chief Executive,Public Health,Directors Public Health,Private Contractors,Third Party Prov - Private,PH101,12/5/2013,245437,341.99,REVENUE,EA BROADBURN DISPENSING CHEMIST,101135
North East Lincolnshire Council,http://statistics.data.gov.uk/id/local-authority/00FC,Chief Executive,Public Health,Directors Public Health,Private Contractors,Third Party Prov - Private,PH101,12/20/2013,248715,282.19,REVENUE,ASDA PHARMACY,104011
North East Lincolnshire Council,http://statistics.data.gov.uk/id/local-authority/00FC,Chief Executive,Public Health,Directors Public Health,Other Agencies,Health Charges,PJ131,12/3/2013,244640,560.56,REVENUE,CITY HEALTH CARE PARTNERSHIP CIC,110889
North East Lincolnshire Council,http://statistics.data.gov.uk/id/local-authority/00FC,Chief Executive,Public Health,Directors Public Health,Other Agencies,Health Charges,PJ131,12/5/2013,244650,1350.6,REVENUE,CITY HEALTH CARE PARTNERSHIP CIC,110889
North East Lincolnshire Council,http://statistics.data.gov.uk/id/local-authority/00FC,Chief Executive,Public Health,Directors Public Health,Other Agencies,Health Charges,PJ131,12/3/2013,244633,405.18,REVENUE,CITY HEALTH CARE PARTNERSHIP CIC,110889
North East Lincolnshire Council,http://statistics.data.gov.uk/id/local-authority/00FC,Chief Executive,Public Health,Public Hlth - Improved Health,Rents,Rent,GC101,12/30/2013,250021,500,REVENUE,CLASS ACT THEATRE ARTS & COMMUNITY TRUST,121320
North East Lincolnshire Council,http://statistics.data.gov.uk/id/local-authority/00FC,Chief Executive,Public Health,Public Hlth - Improved Health,Indirect Employee Expenses,Staff Training,EB122,12/16/2013,246980,523.6,REVENUE,HUMBER CHEMICAL FOCUS LTD,101684
North East Lincolnshire Council,http://statistics.data.gov.uk/id/local-authority/00FC,Chief Executive,Public Health,Public Hlth - Improved Health,Rents,Room Hire,GC103,12/5/2013,245164,281.25,REVENUE,CARE PLUS GROUP,106467
North East Lincolnshire Council,http://statistics.data.gov.uk/id/local-authority/00FC,Chief Executive,Public Health,Public Hlth - Improved Health,Rents,Room Hire,GC103,12/18/2013,248572,352,REVENUE,ST JAMES CHURCHWARDENS MAIN ACCOUNT,106502
North East Lincolnshire Council,http://statistics.data.gov.uk/id/local-authority/00FC,Chief Executive,Public Health,Public Hlth - Improved Health,Miscellaneous Expenses,Other Supplies & Services,LL110,12/16/2013,247684,1610,REVENUE,PELHAM MEDICAL GROUP,104350
North East Lincolnshire Council,http://statistics.data.gov.uk/id/local-authority/00FC,Chief Executive,Public Health,Public Hlth - Improved Health,Miscellaneous Expenses,Other Supplies & Services,LL110,12/16/2013,247685,1710,REVENUE,BIRKWOOD SURGERY,105074
North East Lincolnshire Council,http://statistics.data.gov.uk/id/local-authority/00FC,Chief Executive,Public Health,Public Hlth - Improved Health,Miscellaneous Expenses,Other Supplies & Services,LL110,12/16/2013,247687,370,REVENUE,DR M ZARO,107052
North East Lincolnshire Council,http://statistics.data.gov.uk/id/local-authority/00FC,Chief Executive,Public Health,Public Hlth - Improved Health,Miscellaneous Expenses,Other Supplies & Services,LL110,12/16/2013,247690,1360,REVENUE,CHURCH VIEW HEALTH CARE LIMITED,108912
North East Lincolnshire Council,http://statistics.data.gov.uk/id/local-authority/00FC,Chief Executive,Public Health,Public Hlth - Improved Health,Miscellaneous Expenses,Other Supplies & Services,LL110,12/16/2013,247692,950,REVENUE,DR DIJOUX AND PARTNER,111415
North East Lincolnshire Council,http://statistics.data.gov.uk/id/local-authority/00FC,Chief Executive,Public Health,Public Hlth - Improved Health,Miscellaneous Expenses,Other Supplies & Services,LL110,12/16/2013,247693,250,REVENUE,LITTLEFIELDS HEALTH CENTRE,111683
North East Lincolnshire Council,http://statistics.data.gov.uk/id/local-authority/00FC,Chief Executive,Public Health,Public Hlth - Improved Health,Miscellaneous Expenses,Other Supplies & Services,LL110,12/16/2013,247694,260,REVENUE,DR P SURESH BABU,120921
North East Lincolnshire Council,http://statistics.data.gov.uk/id/local-authority/00FC,Chief Executive,Public Health,Public Hlth - Improved Health,Miscellaneous Expenses,Other Supplies & Services,LL110,12/16/2013,247695,290,REVENUE,QUAYSIDE MEDICAL CENTRE,121532
North East Lincolnshire Council,http://statistics.data.gov.uk/id/local-authority/00FC,Chief Executive,Public Health,Public Hlth - Improved Health,Rents,Room Hire,GC103,12/16/2013,246857,284.2,REVENUE,NORTH LINCOLNSHIRE COUNCIL,101186
North East Lincolnshire Council,http://statistics.data.gov.uk/id/local-authority/00FC,Chief Executive,Public Health,Public Hlth - Improved Health,Miscellaneous Expenses,Medical Supplies And Services,LL109,12/13/2013,247300,369.35,REVENUE,LINCOLNSHIRE CO-OP CHEMIST LTD,104883
North East Lincolnshire Council,http://statistics.data.gov.uk/id/local-authority/00FC,Chief Executive,Public Health,Public Hlth - Improved Health,Miscellaneous Expenses,Other Expenses General,LL119,12/18/2013,247371,255.23,REVENUE,NELC FOOD4FITNESS ,102602
North East Lincolnshire Council,http://statistics.data.gov.uk/id/local-authority/00FC,Chief Executive,Public Health,Public Hlth - Improved Health,Print Stationery / Gen Off Exp,Publicity,LD105,12/3/2013,245091,15000,REVENUE,LINCS INSPIRE LTD,120610
North East Lincolnshire Council,http://statistics.data.gov.uk/id/local-authority/00FC,Chief Executive,Public Health,Public Hlth - Improved Health,Private Contractors,Third Party Prov - Private,PH101,12/5/2013,245167,343,REVENUE,CHURCH VIEW HEALTH CARE LIMITED,108912
North East Lincolnshire Council,http://statistics.data.gov.uk/id/local-authority/00FC,Chief Executive,Public Health,Public Hlth - Improved Health,Private Contractors,Third Party Prov - Private,PH101,12/5/2013,245166,682,REVENUE,CLEE MEDICAL CENTRE,105319
North East Lincolnshire Council,http://statistics.data.gov.uk/id/local-authority/00FC,Chief Executive,Public Health,Public Hlth - Improved Health,Private Contractors,Third Party Prov - Private,PH101,12/2/2013,245089,824.4,REVENUE,THE ROXTON PRACTICE,104395
North East Lincolnshire Council,http://statistics.data.gov.uk/id/local-authority/00FC,Chief Executive,Public Health,Public Hlth - Improved Health,Private Contractors,Third Party Prov - Private,PH101,12/2/2013,245065,341,REVENUE,WOODFORD MEDICAL CENTRE,107882
North East Lincolnshire Council,http://statistics.data.gov.uk/id/local-authority/00FC,Chief Executive,Public Health,Public Hlth - Improved Health,Private Contractors,Third Party Prov - Private,PH101,12/2/2013,245087,473,REVENUE,PELHAM MEDICAL GROUP,104350
North East Lincolnshire Council,http://statistics.data.gov.uk/id/local-authority/00FC,Chief Executive,Public Health,Public Hlth - Improved Health,Private Contractors,Third Party Prov - Private,PH101,12/3/2013,245080,365,REVENUE,ASHWOOD SURGERY,112683
North East Lincolnshire Council,http://statistics.data.gov.uk/id/local-authority/00FC,Chief Executive,Public Health,Public Hlth - Improved Health,Private Contractors,Third Party Prov - Private,PH101,12/3/2013,245090,695,REVENUE,DR HOPPER & PARTNERS,103900
North East Lincolnshire Council,http://statistics.data.gov.uk/id/local-authority/00FC,Chief Executive,Public Health,Public Hlth - Improved Health,Private Contractors,Third Party Prov - Private,PH101,12/9/2013,245369,348.5,REVENUE,DR WILSON & PARTNERS,121252
North East Lincolnshire Council,http://statistics.data.gov.uk/id/local-authority/00FC,Other Corporate Budgets,Borrowing Costs,Misc Interest Bank Charges Etc,Miscellaneous Expenses,Card Processing Charges,LL106,12/20/2013,247379,3997.39,REVENUE,ALLPAY LIMITED,112919
North East Lincolnshire Council,http://statistics.data.gov.uk/id/local-authority/00FC,Other Corporate Budgets,Borrowing Costs,Misc Interest Bank Charges Etc,Miscellaneous Expenses,Card Processing Charges,LL106,12/20/2013,247666,4183.45,REVENUE,ALLPAY LIMITED,112919
North East Lincolnshire Council,http://statistics.data.gov.uk/id/local-authority/00FC,Other Corporate Budgets,Borrowing Costs,Misc Interest Bank Charges Etc,Miscellaneous Expenses,Card Processing Charges,LL106,12/20/2013,247629,660,REVENUE,ALLPAY LIMITED,112919
North East Lincolnshire Council,http://statistics.data.gov.uk/id/local-authority/00FC,Other Corporate Budgets,Other Corporate Budgets,Appropriations,Indirect Employee Expenses,Pension P/Ment Pension Inc Act,EB105,12/17/2013,246643,966.64,REVENUE,LINCOLNSHIRE COUNTY COUNCIL,101224
North East Lincolnshire Council,http://statistics.data.gov.uk/id/local-authority/00FC,People And Communities,Schools,Schools,Direct Employee Expenses,Pay Teachers Supply Cover,EA106,12/31/2013,250570,1225,REVENUE,TEACHING PERSONNEL LTD,101305
North East Lincolnshire Council,http://statistics.data.gov.uk/id/local-authority/00FC,People And Communities,Schools,Schools,Direct Employee Expenses,Agency Supply Teachers,EA104,12/16/2013,246960,850,REVENUE,TEACHING PERSONNEL LTD,101305
North East Lincolnshire Council,http://statistics.data.gov.uk/id/local-authority/00FC,People And Communities,Schools,Schools,Direct Employee Expenses,Agency Supply Teachers,EA104,12/20/2013,248362,850,REVENUE,TEACHING PERSONNEL LTD,101305
North East Lincolnshire Council,http://statistics.data.gov.uk/id/local-authority/00FC,People And Communities,Schools,Schools,Direct Employee Expenses,Agency Supply Teachers,EA104,12/5/2013,244648,579.6,REVENUE,VISION FOR EDUCATION LTD,102399
North East Lincolnshire Council,http://statistics.data.gov.uk/id/local-authority/00FC,People And Communities,Schools,Schools,Direct Employee Expenses,Agency Supply Teachers,EA104,12/9/2013,245181,600,REVENUE,VISION FOR EDUCATION LTD,102399
North East Lincolnshire Council,http://statistics.data.gov.uk/id/local-authority/00FC,People And Communities,Schools,Schools,Direct Employee Expenses,Agency Supply Teachers,EA104,12/16/2013,245176,600,REVENUE,VISION FOR EDUCATION LTD,102399
North East Lincolnshire Council,http://statistics.data.gov.uk/id/local-authority/00FC,People And Communities,Schools,Schools,Direct Employee Expenses,Agency Supply Teachers,EA104,12/5/2013,245666,600,REVENUE,VISION FOR EDUCATION LTD,102399
North East Lincolnshire Council,http://statistics.data.gov.uk/id/local-authority/00FC,People And Communities,Schools,Schools,Direct Employee Expenses,Agency Supply Teachers,EA104,12/5/2013,244647,444.2,REVENUE,TEACHING PERSONNEL LTD,101305
North East Lincolnshire Council,http://statistics.data.gov.uk/id/local-authority/00FC,People And Communities,Schools,Schools,Direct Employee Expenses,Agency Supply Teachers,EA104,12/20/2013,248361,556.5,REVENUE,TEACHING PERSONNEL LTD,101305
North East Lincolnshire Council,http://statistics.data.gov.uk/id/local-authority/00FC,People And Communities,Schools,Schools,Indirect Employee Expenses,Staff Training,EB122,12/16/2013,245173,900,REVENUE,LEEDS METROPOLITAN UNIVERSITY,101632
North East Lincolnshire Council,http://statistics.data.gov.uk/id/local-authority/00FC,People And Communities,Schools,Schools,Rep Alterations Maint Building,Buildings - Repairs And Maint,GA102,12/10/2013,245667,382.9,REVENUE,HUMBERSIDE FIRE & RESCUE SERVICE,100667
North East Lincolnshire Council,http://statistics.data.gov.uk/id/local-authority/00FC,People And Communities,Schools,Schools,Energy Costs,Electricity,GB102,12/17/2013,248016,1046.59,REVENUE,NPOWER LIMITED,101414
North East Lincolnshire Council,http://statistics.data.gov.uk/id/local-authority/00FC,People And Communities,Schools,Schools,Energy Costs,Electricity,GB102,12/18/2013,248779,1126.29,REVENUE,NPOWER LIMITED,101414
North East Lincolnshire Council,http://statistics.data.gov.uk/id/local-authority/00FC,People And Communities,Schools,Schools,Energy Costs,Electricity,GB102,12/5/2013,244654,888.12,REVENUE,NPOWER LIMITED,101414
North East Lincolnshire Council,http://statistics.data.gov.uk/id/local-authority/00FC,People And Communities,Schools,Schools,Energy Costs,Gas,GB101,12/16/2013,245174,424.61,REVENUE,BRITISH GAS TRADING LTD,101507
North East Lincolnshire Council,http://statistics.data.gov.uk/id/local-authority/00FC,People And Communities,Schools,Schools,Miscellaneous Expenses,Exam Fees,LL115,12/9/2013,245169,1499.1,REVENUE,PEARSON,121279
North East Lincolnshire Council,http://statistics.data.gov.uk/id/local-authority/00FC,People And Communities,Schools,Schools,Miscellaneous Expenses,Exam Fees,LL115,12/5/2013,244649,284.4,REVENUE,WJEC CBAC LTD,104214
North East Lincolnshire Council,http://statistics.data.gov.uk/id/local-authority/00FC,People And Communities,Schools,Schools,Miscellaneous Expenses,Exam Fees,LL115,12/3/2013,244652,386.4,REVENUE,PEARSON,121279
North East Lincolnshire Council,http://statistics.data.gov.uk/id/local-authority/00FC,People And Communities,Schools,Schools,Miscellaneous Expenses,Legal Fees - General,LL103,12/4/2013,245602,REDACTED COMMERCIALLY SENSITIVE,REVENUE,THOMPSONS SOLICITORS,101854
North East Lincolnshire Council,http://statistics.data.gov.uk/id/local-authority/00FC,People And Communities,Schools,Schools,Other Agencies,Educational Visits,PJ152,12/12/2013,247122,400,REVENUE,ALLY MCMAHON,109035
North East Lincolnshire Council,http://statistics.data.gov.uk/id/local-authority/00FC,People And Communities,Schools,Schools,Consultancy,Consultancy - Curriculum,PL102,12/20/2013,248339,520,REVENUE,YOUTHORIA,101292
North East Lincolnshire Council,http://statistics.data.gov.uk/id/local-authority/00FC,People And Communities,Schools,Schools,Miscellaneous Expenses,Chq Book School Expenditure,LL121,12/16/2013,247334,244008,REVENUE,HUMBERSTON C OF E PRIMARY SCHOOL,101566
North East Lincolnshire Council,http://statistics.data.gov.uk/id/local-authority/00FC,People And Communities,Schools,Schools,Miscellaneous Expenses,Chq Book School Expenditure,LL121,12/16/2013,247333,-113,REVENUE,HUMBERSTON C OF E PRIMARY SCHOOL,101566
North East Lincolnshire Council,http://statistics.data.gov.uk/id/local-authority/00FC,People And Communities,Schools,Schools,Cleaning And Domestic Supplies,Cleaning - Domestic Purchases,GH105,12/18/2013,247325,-9.05,REVENUE,YORKSHIRE PURCHASING,100573
North East Lincolnshire Council,http://statistics.data.gov.uk/id/local-authority/00FC,People And Communities,Schools,Schools,Cleaning And Domestic Supplies,Cleaning - Services,GH102,12/16/2013,246589,481.11,REVENUE,BUSY BEES DOMESTIC CLEANING SERVICES,123772
North East Lincolnshire Council,http://statistics.data.gov.uk/id/local-authority/00FC,People And Communities,Schools,Schools,Equip / Furniture / Materials,Teaching Materials,LA117,12/16/2013,246588,295,REVENUE,COOMBER ELECTRONIC EQUIPMENT LTD,107083
North East Lincolnshire Council,http://statistics.data.gov.uk/id/local-authority/00FC,People And Communities,Schools,Schools,Communications And Computing,Telephones,LF112,12/23/2013,249048,255,REVENUE,ING LEASING (UK) LTD,101680
North East Lincolnshire Council,http://statistics.data.gov.uk/id/local-authority/00FC,People And Communities,Schools,Schools,Grounds Maintenance Costs,Grounds Maintenance,GJ101,12/3/2013,244475,-0.6,REVENUE,HOWARTH TIMBER MERCHANTS LTD,101068
North East Lincolnshire Council,http://statistics.data.gov.uk/id/local-authority/00FC,People And Communities,Schools,Schools,Direct Employee Expenses,Agency Supply Teachers,EA104,12/3/2013,245074,330,REVENUE,TEACHING PERSONNEL LTD,101305
North East Lincolnshire Council,http://statistics.data.gov.uk/id/local-authority/00FC,People And Communities,Schools,Schools,Direct Employee Expenses,Agency Supply Teachers,EA104,12/23/2013,249033,330,REVENUE,TEACHING PERSONNEL LTD,101305
North East Lincolnshire Council,http://statistics.data.gov.uk/id/local-authority/00FC,People And Communities,Schools,Schools,Direct Employee Expenses,Agency Supply Teachers,EA104,12/11/2013,245979,330,REVENUE,TEACHING PERSONNEL LTD,101305
North East Lincolnshire Council,http://statistics.data.gov.uk/id/local-authority/00FC,People And Communities,Schools,Schools,Direct Employee Expenses,Agency Supply Teachers,EA104,12/18/2013,248164,330,REVENUE,TEACHING PERSONNEL LTD,101305
North East Lincolnshire Council,http://statistics.data.gov.uk/id/local-authority/00FC,People And Communities,Schools,Schools,Indirect Employee Expenses,Staff Training,EB122,12/3/2013,245155,360,REVENUE,RUPERT COLLINS LIMITED,101901
North East Lincolnshire Council,http://statistics.data.gov.uk/id/local-authority/00FC,People And Communities,Schools,Schools,Rep Alterations Maint Building,Security Alarms And Cctv,GA101,12/12/2013,246135,656.31,REVENUE,SECOM PLC,100771
North East Lincolnshire Council,http://statistics.data.gov.uk/id/local-authority/00FC,People And Communities,Schools,Schools,Energy Costs,Electricity,GB102,12/2/2013,245075,1118.75,REVENUE,NPOWER LIMITED,101414
North East Lincolnshire Council,http://statistics.data.gov.uk/id/local-authority/00FC,People And Communities,Schools,Schools,Energy Costs,Gas,GB101,12/20/2013,249035,426.67,REVENUE,BRITISH GAS TRADING LTD,101507
North East Lincolnshire Council,http://statistics.data.gov.uk/id/local-authority/00FC,People And Communities,Schools,Schools,Energy Costs,Gas,GB101,12/18/2013,248199,288.95,REVENUE,BRITISH GAS TRADING LTD,101507
North East Lincolnshire Council,http://statistics.data.gov.uk/id/local-authority/00FC,People And Communities,Schools,Schools,Equip / Furniture / Materials,Out Of School Club Expenditure,LA119,12/18/2013,248198,328,REVENUE,SAMURAI HEARTS,101934
North East Lincolnshire Council,http://statistics.data.gov.uk/id/local-authority/00FC,People And Communities,Schools,Schools,Equip / Furniture / Materials,Teaching Materials,LA117,12/20/2013,249192,339.8,REVENUE,EAST RIDING OF YORKSHIRE COUNCIL,100654
North East Lincolnshire Council,http://statistics.data.gov.uk/id/local-authority/00FC,People And Communities,Schools,Schools,Print Stationery / Gen Off Exp,Photocopier - Running Costs,LD102,12/11/2013,245986,544.18,REVENUE,UNITED CARLTON OFFICE SYSTEMS LTD,101652
North East Lincolnshire Council,http://statistics.data.gov.uk/id/local-authority/00FC,People And Communities,Schools,Schools,Communications And Computing,Computer H/Ware - Teaching,LF104,12/23/2013,249038,545,REVENUE,TEACHERS 2 PARENTS LTD,102022
North East Lincolnshire Council,http://statistics.data.gov.uk/id/local-authority/00FC,People And Communities,Schools,Schools,Indirect Employee Expenses,Staff Training,EB122,12/18/2013,247483,540,REVENUE,RUPERT COLLINS LIMITED,101901
North East Lincolnshire Council,http://statistics.data.gov.uk/id/local-authority/00FC,People And Communities,Schools,Schools,Energy Costs,Electricity,GB102,12/12/2013,246371,827.9,REVENUE,NPOWER LIMITED,101414
North East Lincolnshire Council,http://statistics.data.gov.uk/id/local-authority/00FC,People And Communities,Schools,Schools,Energy Costs,Electricity,GB102,12/20/2013,248687,1037.88,REVENUE,NPOWER LIMITED,101414
North East Lincolnshire Council,http://statistics.data.gov.uk/id/local-authority/00FC,People And Communities,Schools,Schools,Energy Costs,Gas,GB101,12/18/2013,248550,687.31,REVENUE,BRITISH GAS TRADING LTD,101507
North East Lincolnshire Council,http://statistics.data.gov.uk/id/local-authority/00FC,People And Communities,Schools,Schools,Cleaning And Domestic Supplies,Cleaning - Consumables,GH103,12/20/2013,248655,333.04,REVENUE,PETER HOGARTH & SONS LTD,100815
North East Lincolnshire Council,http://statistics.data.gov.uk/id/local-authority/00FC,People And Communities,Schools,Schools,Cleaning And Domestic Supplies,Cleaning - Domestic Purchases,GH105,12/10/2013,245888,339.64,REVENUE,CORDELLS,101962
North East Lincolnshire Council,http://statistics.data.gov.uk/id/local-authority/00FC,People And Communities,Schools,Schools,Cleaning And Domestic Supplies,Cleaning - Domestic Purchases,GH105,12/16/2013,247423,304.55,REVENUE,PHS GROUP LTD,100554
North East Lincolnshire Council,http://statistics.data.gov.uk/id/local-authority/00FC,People And Communities,Schools,Schools,Cleaning And Domestic Supplies,Refuse Collection,GH104,12/20/2013,249011,496.08,REVENUE,BELL WASTE CONTROL,101433
North East Lincolnshire Council,http://statistics.data.gov.uk/id/local-authority/00FC,People And Communities,Schools,Schools,Direct Transport Costs,Vehicles - Running Costs,JA104,12/18/2013,248553,640,REVENUE,FISHERS OF GRIMSBY,111965
North East Lincolnshire Council,http://statistics.data.gov.uk/id/local-authority/00FC,People And Communities,Schools,Schools,Equip / Furniture / Materials,Teaching Materials,LA117,12/10/2013,245889,388,REVENUE,LANCASHIRE COUNTY COUNCIL,106858
North East Lincolnshire Council,http://statistics.data.gov.uk/id/local-authority/00FC,People And Communities,Schools,Schools,Print Stationery / Gen Off Exp,Photocopier - Running Costs,LD102,12/10/2013,245882,914.35,REVENUE,THE DANWOOD GROUP LTD,100669
North East Lincolnshire Council,http://statistics.data.gov.uk/id/local-authority/00FC,People And Communities,Schools,Schools,Communications And Computing,Computer H/Ware - Teaching,LF104,12/10/2013,245881,415,REVENUE,TECHNOLOGY SUPPORT SOLUTIONS LTD,119571
North East Lincolnshire Council,http://statistics.data.gov.uk/id/local-authority/00FC,People And Communities,Schools,Schools,Communications And Computing,Computer H/Ware - Teaching,LF104,12/20/2013,247477,905.26,REVENUE,OFFICE FRIENDS LTD,102454
North East Lincolnshire Council,http://statistics.data.gov.uk/id/local-authority/00FC,People And Communities,Schools,Schools,Communications And Computing,Telephones,LF112,12/10/2013,245890,1055,REVENUE,TEACHERS 2 PARENTS LTD,102022
North East Lincolnshire Council,http://statistics.data.gov.uk/id/local-authority/00FC,People And Communities,Schools,Schools,Consultancy,Consultancy - Curriculum,PL102,12/18/2013,247563,525,REVENUE,STEVE LE VOGUER,101933
North East Lincolnshire Council,http://statistics.data.gov.uk/id/local-authority/00FC,People And Communities,Schools,Schools,Direct Employee Expenses,Agency Supply Teachers,EA104,12/4/2013,244465,725,REVENUE,PRINCIPAL RESOURCING LTD,101601
North East Lincolnshire Council,http://statistics.data.gov.uk/id/local-authority/00FC,People And Communities,Schools,Schools,Direct Employee Expenses,Agency Supply Teachers,EA104,12/20/2013,249204,725,REVENUE,PRINCIPAL RESOURCING LTD,101601
North East Lincolnshire Council,http://statistics.data.gov.uk/id/local-authority/00FC,People And Communities,Schools,Schools,Direct Employee Expenses,Agency Supply Teachers,EA104,12/20/2013,248127,725,REVENUE,PRINCIPAL RESOURCING LTD,101601
North East Lincolnshire Council,http://statistics.data.gov.uk/id/local-authority/00FC,People And Communities,Schools,Schools,Direct Employee Expenses,Agency Supply Teachers,EA104,12/20/2013,249207,326,REVENUE,REED EMPLOYMENT LTD,102225
North East Lincolnshire Council,http://statistics.data.gov.uk/id/local-authority/00FC,People And Communities,Schools,Schools,Direct Employee Expenses,Agency Supply Teachers,EA104,12/20/2013,248128,815,REVENUE,REED EMPLOYMENT LTD,102225
North East Lincolnshire Council,http://statistics.data.gov.uk/id/local-authority/00FC,People And Communities,Schools,Schools,Direct Employee Expenses,Agency Supply Teachers,EA104,12/3/2013,244464,815,REVENUE,REED EMPLOYMENT LTD,102225
North East Lincolnshire Council,http://statistics.data.gov.uk/id/local-authority/00FC,People And Communities,Schools,Schools,Direct Employee Expenses,Agency Supply Teachers,EA104,12/3/2013,244563,815,REVENUE,REED EMPLOYMENT LTD,102225
North East Lincolnshire Council,http://statistics.data.gov.uk/id/local-authority/00FC,People And Communities,Schools,Schools,Direct Employee Expenses,Agency Supply Teachers,EA104,12/20/2013,249206,815,REVENUE,REED EMPLOYMENT LTD,102225
North East Lincolnshire Council,http://statistics.data.gov.uk/id/local-authority/00FC,People And Communities,Schools,Schools,Direct Employee Expenses,Agency Supply Teachers,EA104,12/20/2013,249208,326,REVENUE,REED EMPLOYMENT LTD,102225
North East Lincolnshire Council,http://statistics.data.gov.uk/id/local-authority/00FC,People And Communities,Schools,Schools,Rep Alterations Maint Building,Buildings - Repairs And Maint,GA102,12/20/2013,249259,520,REVENUE,GRIMSBY SUNBLINDS,100535
North East Lincolnshire Council,http://statistics.data.gov.uk/id/local-authority/00FC,People And Communities,Schools,Schools,Rep Alterations Maint Building,Fire Safety,GA106,12/20/2013,249175,614,REVENUE,ORCHARD FIRE & SECURITY LTD,100650
North East Lincolnshire Council,http://statistics.data.gov.uk/id/local-authority/00FC,People And Communities,Schools,Schools,Energy Costs,Electricity,GB102,12/2/2013,244518,876.1,REVENUE,NPOWER LIMITED,101414
North East Lincolnshire Council,http://statistics.data.gov.uk/id/local-authority/00FC,People And Communities,Schools,Schools,Cleaning And Domestic Supplies,Refuse Collection,GH104,12/20/2013,249173,1118.52,REVENUE,BIFFA WASTE SERVICES LTD,100515
North East Lincolnshire Council,http://statistics.data.gov.uk/id/local-authority/00FC,People And Communities,Schools,Schools,Equip / Furniture / Materials,Books,LA121,12/18/2013,248151,597.1,REVENUE,OXFORD UNIVERSITY PRESS,100887
North East Lincolnshire Council,http://statistics.data.gov.uk/id/local-authority/00FC,People And Communities,Schools,Schools,Equip / Furniture / Materials,Teaching Materials,LA117,12/4/2013,244505,300,REVENUE,BOOKPOINT LIMITED,100664
North East Lincolnshire Council,http://statistics.data.gov.uk/id/local-authority/00FC,People And Communities,Schools,Schools,Equip / Furniture / Materials,Teaching Materials,LA117,12/4/2013,244463,313.81,REVENUE,YORKSHIRE PURCHASING,100573
North East Lincolnshire Council,http://statistics.data.gov.uk/id/local-authority/00FC,People And Communities,Schools,Schools,Equip / Furniture / Materials,Teaching Materials,LA117,12/20/2013,249202,398.05,REVENUE,YORKSHIRE PURCHASING,100573
North East Lincolnshire Council,http://statistics.data.gov.uk/id/local-authority/00FC,People And Communities,Schools,Schools,Communications And Computing,Computer H/Ware - Teaching,LF104,12/20/2013,249262,300,REVENUE,TECHNOLOGY SUPPORT SOLUTIONS LTD,119571
North East Lincolnshire Council,http://statistics.data.gov.uk/id/local-authority/00FC,People And Communities,Schools,Schools,Other Agencies,Educational Visits,PJ152,12/20/2013,249267,300,REVENUE,HIGH ROPES ADVENTURE,102866
North East Lincolnshire Council,http://statistics.data.gov.uk/id/local-authority/00FC,People And Communities,Schools,Schools,Other Agencies,Educational Visits,PJ152,12/20/2013,249255,513,REVENUE,KINGSWOOD EDUCATIONAL ACTIVITY CENTRE,101287
North East Lincolnshire Council,http://statistics.data.gov.uk/id/local-authority/00FC,People And Communities,Schools,Schools,Other Agencies,Educational Visits,PJ152,12/20/2013,248193,275,REVENUE,PODCASTREVISION LTD,123916
North East Lincolnshire Council,http://statistics.data.gov.uk/id/local-authority/00FC,People And Communities,Schools,Schools,Consultancy,Consultancy,PL101,12/20/2013,249260,450,REVENUE,SCARLETTS CONSULTANCY,119736
North East Lincolnshire Council,http://statistics.data.gov.uk/id/local-authority/00FC,People And Communities,Schools,Schools,Consultancy,Consultancy - Curriculum,PL102,12/10/2013,246463,292.5,REVENUE,SUE HERON,101951
North East Lincolnshire Council,http://statistics.data.gov.uk/id/local-authority/00FC,People And Communities,Schools,Schools,Indirect Employee Expenses,Staff Training,EB122,12/10/2013,245902,750,REVENUE,EDGE HILL ENTERPRISES LTD,110133
North East Lincolnshire Council,http://statistics.data.gov.uk/id/local-authority/00FC,People And Communities,Schools,Schools,Rep Alterations Maint Building,Buildings - Repairs And Maint,GA102,12/10/2013,245959,2871,REVENUE,UNIBUILD BUILDING CONT LTD,101469
North East Lincolnshire Council,http://statistics.data.gov.uk/id/local-authority/00FC,People And Communities,Schools,Schools,Rep Alterations Maint Building,Internal Decoration,GA119,12/20/2013,249250,600.24,REVENUE,LUDAFLORS,100547
North East Lincolnshire Council,http://statistics.data.gov.uk/id/local-authority/00FC,People And Communities,Schools,Schools,Energy Costs,Gas,GB101,12/20/2013,249237,401.79,REVENUE,BRITISH GAS TRADING LTD,101507
North East Lincolnshire Council,http://statistics.data.gov.uk/id/local-authority/00FC,People And Communities,Schools,Schools,Equip / Furniture / Materials,Books,LA121,12/12/2013,246369,657.2,REVENUE,OXFORD UNIVERSITY PRESS,100887
North East Lincolnshire Council,http://statistics.data.gov.uk/id/local-authority/00FC,People And Communities,Schools,Schools,Equip / Furniture / Materials,Furniture - Teaching,LA107,12/11/2013,245990,357.2,REVENUE,NOTICE BOARD COMPANY,112256
North East Lincolnshire Council,http://statistics.data.gov.uk/id/local-authority/00FC,People And Communities,Schools,Schools,Other Agencies,Educational Visits,PJ152,12/23/2013,249783,1440,REVENUE,PGL TRAVEL LTD,100693
North East Lincolnshire Council,http://statistics.data.gov.uk/id/local-authority/00FC,People And Communities,Schools,Schools,Consultancy,Consultancy,PL101,12/20/2013,249149,450,REVENUE,STEPHEN DISBREY EDUCATION LTD,121485
North East Lincolnshire Council,http://statistics.data.gov.uk/id/local-authority/00FC,People And Communities,Schools,Schools,Direct Employee Expenses,Agency Supply Teachers,EA104,12/2/2013,244541,888,REVENUE,VISION FOR EDUCATION LTD,102399
North East Lincolnshire Council,http://statistics.data.gov.uk/id/local-authority/00FC,People And Communities,Schools,Schools,Direct Employee Expenses,Agency Supply Teachers,EA104,12/11/2013,246650,-74,REVENUE,VISION FOR EDUCATION LTD,102399
North East Lincolnshire Council,http://statistics.data.gov.uk/id/local-authority/00FC,People And Communities,Schools,Schools,Rep Alterations Maint Building,Electrical Testing,GA107,12/16/2013,247384,268,REVENUE,EXCELL ELECTRICAL CONTRACTORS,100601
North East Lincolnshire Council,http://statistics.data.gov.uk/id/local-authority/00FC,People And Communities,Schools,Schools,Cleaning And Domestic Supplies,Cleaning - Domestic Purchases,GH105,12/18/2013,247519,342,REVENUE,MIW OFFICE SOLUTIONS LTD,104562
North East Lincolnshire Council,http://statistics.data.gov.uk/id/local-authority/00FC,People And Communities,Schools,Schools,Cleaning And Domestic Supplies,Refuse Collection,GH104,12/16/2013,247392,467.22,REVENUE,BELL WASTE CONTROL,101433
North East Lincolnshire Council,http://statistics.data.gov.uk/id/local-authority/00FC,People And Communities,Schools,Schools,Equip / Furniture / Materials,Furniture - Teaching,LA107,12/2/2013,244545,787.15,REVENUE,GLS EDUC SUPPLIES LTD,101380
North East Lincolnshire Council,http://statistics.data.gov.uk/id/local-authority/00FC,People And Communities,Schools,Schools,Equip / Furniture / Materials,Teaching Materials,LA117,12/16/2013,246598,796.59,REVENUE,LACEBY ACRES PRIMARY SCHOOL,100876
North East Lincolnshire Council,http://statistics.data.gov.uk/id/local-authority/00FC,People And Communities,Schools,Schools,Equip / Furniture / Materials,Teaching Materials,LA117,12/20/2013,247351,322.52,REVENUE,EAST RIDING OF YORKSHIRE COUNCIL,100654
North East Lincolnshire Council,http://statistics.data.gov.uk/id/local-authority/00FC,People And Communities,Schools,Schools,Equip / Furniture / Materials,Teaching Materials,LA117,12/16/2013,246635,-17.18,REVENUE,YORKSHIRE PURCHASING,100573
North East Lincolnshire Council,http://statistics.data.gov.uk/id/local-authority/00FC,People And Communities,Schools,Schools,Equip / Furniture / Materials,Teaching Materials,LA117,12/18/2013,247326,-148.99,REVENUE,YORKSHIRE PURCHASING,100573
North East Lincolnshire Council,http://statistics.data.gov.uk/id/local-authority/00FC,People And Communities,Schools,Schools,Print Stationery / Gen Off Exp,Photocopier - Running Costs,LD102,12/2/2013,244488,308.19,REVENUE,UNITED CARLTON OFFICE SYSTEMS LTD,101652
North East Lincolnshire Council,http://statistics.data.gov.uk/id/local-authority/00FC,People And Communities,Schools,Schools,Communications And Computing,Computer H/Ware - Teaching,LF104,12/4/2013,244474,-33.33,REVENUE,MAPLIN ELECTRONICS LTD,101316
North East Lincolnshire Council,http://statistics.data.gov.uk/id/local-authority/00FC,People And Communities,Schools,Schools,Communications And Computing,Computer S/Ware - Licences,LF103,12/18/2013,247521,500,REVENUE,2SIMPLE SOFTWARE LTD,103727
North East Lincolnshire Council,http://statistics.data.gov.uk/id/local-authority/00FC,People And Communities,Schools,Schools,Consultancy,Consultancy - Curriculum,PL102,12/3/2013,244546,1000,REVENUE,FIELDWORK EDUCATION LTD,101952
North East Lincolnshire Council,http://statistics.data.gov.uk/id/local-authority/00FC,People And Communities,Schools,Schools,Consultancy,Consultancy - Curriculum,PL102,12/18/2013,247517,742.5,REVENUE,MUSIC LINCS LTD,100944
North East Lincolnshire Council,http://statistics.data.gov.uk/id/local-authority/00FC,People And Communities,Schools,Schools,Consultancy,Consultancy - Curriculum,PL102,12/16/2013,247387,450,REVENUE,GRIMSBY TWIST & FLIP GYMNASTICS ACADEMY,119685
North East Lincolnshire Council,http://statistics.data.gov.uk/id/local-authority/00FC,People And Communities,Schools,Schools,Indirect Employee Expenses,Staff Training,EB122,12/23/2013,249929,-300,REVENUE,THE CAMBRIDGE PARK ACADEMY,108467
North East Lincolnshire Council,http://statistics.data.gov.uk/id/local-authority/00FC,People And Communities,Schools,Schools,Rep Alterations Maint Building,Buildings - Repairs And Maint,GA102,12/18/2013,248540,595,REVENUE,LINCS ELECTRICAL SERVICES LTD,102044
North East Lincolnshire Council,http://statistics.data.gov.uk/id/local-authority/00FC,People And Communities,Schools,Schools,Energy Costs,Electricity,GB102,12/4/2013,245598,1587.73,REVENUE,NPOWER LIMITED,101414
North East Lincolnshire Council,http://statistics.data.gov.uk/id/local-authority/00FC,People And Communities,Schools,Schools,Water Services,Water,GE101,12/16/2013,246497,455.66,REVENUE,ANGLIAN WATER,100508
North East Lincolnshire Council,http://statistics.data.gov.uk/id/local-authority/00FC,People And Communities,Schools,Schools,Cleaning And Domestic Supplies,Cleaning - Consumables,GH103,12/16/2013,247104,355.18,REVENUE,PETER HOGARTH & SONS LTD,100815
North East Lincolnshire Council,http://statistics.data.gov.uk/id/local-authority/00FC,People And Communities,Schools,Schools,Equip / Furniture / Materials,Furniture - Teaching,LA107,12/16/2013,247097,713,REVENUE,YORKSHIRE PURCHASING,100573
North East Lincolnshire Council,http://statistics.data.gov.uk/id/local-authority/00FC,People And Communities,Schools,Schools,Print Stationery / Gen Off Exp,Photocopier - Running Costs,LD102,12/5/2013,245161,1414.46,REVENUE,XOS (UK) LTD,102556
North East Lincolnshire Council,http://statistics.data.gov.uk/id/local-authority/00FC,People And Communities,Schools,Schools,Communications And Computing,Computer H/Ware - Teaching,LF104,12/16/2013,247116,529.95,REVENUE,RISING STARS UK LTD,101731
North East Lincolnshire Council,http://statistics.data.gov.uk/id/local-authority/00FC,People And Communities,Schools,Schools,Other Agencies,Educational Visits,PJ152,12/4/2013,245588,325,REVENUE,PGL TRAVEL LTD,100693
North East Lincolnshire Council,http://statistics.data.gov.uk/id/local-authority/00FC,People And Communities,Schools,Schools,Consultancy,Consultancy,PL101,12/16/2013,246496,400,REVENUE,LINCOLNSHIRE COUNTY COUNCIL,100389
North East Lincolnshire Council,http://statistics.data.gov.uk/id/local-authority/00FC,People And Communities,Schools,Schools,Consultancy,Consultancy - Curriculum,PL102,12/4/2013,245590,306.25,REVENUE,CRAIGLAMB LTD,119755
North East Lincolnshire Council,http://statistics.data.gov.uk/id/local-authority/00FC,People And Communities,Schools,Schools,Consultancy,Consultancy - Curriculum,PL102,12/23/2013,249927,820,REVENUE,J R SPORTS,103415
North East Lincolnshire Council,http://statistics.data.gov.uk/id/local-authority/00FC,People And Communities,Schools,Schools,Rep Alterations Maint Building,Buildings - Repairs And Maint,GA102,12/18/2013,247561,1719,REVENUE,FABRIQUE SPECIALIST GLAZING SYSTEMS LTD,101314
North East Lincolnshire Council,http://statistics.data.gov.uk/id/local-authority/00FC,People And Communities,Schools,Schools,Rep Alterations Maint Building,Security Alarms And Cctv,GA101,12/16/2013,247203,522.88,REVENUE,SECOM PLC,100771
North East Lincolnshire Council,http://statistics.data.gov.uk/id/local-authority/00FC,People And Communities,Schools,Schools,Energy Costs,Electricity,GB102,12/16/2013,247202,1814.25,REVENUE,NPOWER LIMITED,101414
North East Lincolnshire Council,http://statistics.data.gov.uk/id/local-authority/00FC,People And Communities,Schools,Schools,Energy Costs,Gas,GB101,12/16/2013,247201,776.25,REVENUE,BRITISH GAS TRADING LTD,101507
North East Lincolnshire Council,http://statistics.data.gov.uk/id/local-authority/00FC,People And Communities,Schools,Schools,Energy Costs,Gas,GB101,12/16/2013,247225,-332.63,REVENUE,BRITISH GAS TRADING LTD,101507
North East Lincolnshire Council,http://statistics.data.gov.uk/id/local-authority/00FC,People And Communities,Schools,Schools,Equip / Furniture / Materials,Books,LA121,12/20/2013,247449,-28.7,REVENUE,ESPO,100745
North East Lincolnshire Council,http://statistics.data.gov.uk/id/local-authority/00FC,People And Communities,Schools,Schools,Equip / Furniture / Materials,Non-Teaching Resources,LA118,12/20/2013,247445,-348.6,REVENUE,AQUILA BUSINESS PRODUCTS LTD,100607
North East Lincolnshire Council,http://statistics.data.gov.uk/id/local-authority/00FC,People And Communities,Schools,Schools,Equip / Furniture / Materials,Non-Teaching Resources,LA118,12/20/2013,249120,515,REVENUE,AQUILA BUSINESS PRODUCTS LTD,100607
North East Lincolnshire Council,http://statistics.data.gov.uk/id/local-authority/00FC,People And Communities,Schools,Schools,Equip / Furniture / Materials,Teaching Materials,LA117,12/20/2013,249185,334.73,REVENUE,THE BOOK PEOPLE LTD,100994
North East Lincolnshire Council,http://statistics.data.gov.uk/id/local-authority/00FC,People And Communities,Schools,Schools,Print Stationery / Gen Off Exp,Photocopier - Running Costs,LD102,12/18/2013,247537,1045.01,REVENUE,XOS (UK) LTD,102556
North East Lincolnshire Council,http://statistics.data.gov.uk/id/local-authority/00FC,People And Communities,Schools,Schools,Consultancy,Consultancy - Curriculum,PL102,12/23/2013,249013,1680,REVENUE,LITTLE TREES,106159
North East Lincolnshire Council,http://statistics.data.gov.uk/id/local-authority/00FC,People And Communities,Schools,Schools,Direct Employee Expenses,Agency Supply Teachers,EA104,12/10/2013,245943,336,REVENUE,REED EMPLOYMENT LTD,102225
North East Lincolnshire Council,http://statistics.data.gov.uk/id/local-authority/00FC,People And Communities,Schools,Schools,Direct Employee Expenses,Agency Supply Teachers,EA104,12/10/2013,245942,325.92,REVENUE,REED EMPLOYMENT LTD,102225
North East Lincolnshire Council,http://statistics.data.gov.uk/id/local-authority/00FC,People And Communities,Schools,Schools,Direct Employee Expenses,Agency Supply Teachers,EA104,12/10/2013,245934,336,REVENUE,REED EMPLOYMENT LTD,102225
North East Lincolnshire Council,http://statistics.data.gov.uk/id/local-authority/00FC,People And Communities,Schools,Schools,Direct Employee Expenses,Agency Supply Teachers,EA104,12/20/2013,249227,651.84,REVENUE,REED EMPLOYMENT LTD,102225
North East Lincolnshire Council,http://statistics.data.gov.uk/id/local-authority/00FC,People And Communities,Schools,Schools,Direct Employee Expenses,Agency Supply Teachers,EA104,12/20/2013,249231,336,REVENUE,REED EMPLOYMENT LTD,102225
North East Lincolnshire Council,http://statistics.data.gov.uk/id/local-authority/00FC,People And Communities,Schools,Schools,Direct Employee Expenses,Agency Supply Teachers,EA104,12/20/2013,249143,336,REVENUE,REED EMPLOYMENT LTD,102225
North East Lincolnshire Council,http://statistics.data.gov.uk/id/local-authority/00FC,People And Communities,Schools,Schools,Direct Employee Expenses,Agency Supply Teachers,EA104,12/20/2013,249145,325.92,REVENUE,REED EMPLOYMENT LTD,102225
North East Lincolnshire Council,http://statistics.data.gov.uk/id/local-authority/00FC,People And Communities,Schools,Schools,Direct Employee Expenses,Agency Supply Teachers,EA104,12/20/2013,249225,814.8,REVENUE,REED EMPLOYMENT LTD,102225
North East Lincolnshire Council,http://statistics.data.gov.uk/id/local-authority/00FC,People And Communities,Schools,Schools,Direct Employee Expenses,Pay Teachers Supply Cover,EA106,12/20/2013,249201,740,REVENUE,SPEAKFRENCH LTD,121375
North East Lincolnshire Council,http://statistics.data.gov.uk/id/local-authority/00FC,People And Communities,Schools,Schools,Rep Alterations Maint Building,Buildings - Repairs And Maint,GA102,12/10/2013,245886,2140,REVENUE,ETON-LINCS LIMITED,101510
North East Lincolnshire Council,http://statistics.data.gov.uk/id/local-authority/00FC,People And Communities,Schools,Schools,Rep Alterations Maint Building,Buildings - Repairs And Maint,GA102,12/20/2013,249209,289,REVENUE,SOUNDSORBA LTD,123979
North East Lincolnshire Council,http://statistics.data.gov.uk/id/local-authority/00FC,People And Communities,Schools,Schools,Energy Costs,Electricity,GB102,12/20/2013,249182,1296.58,REVENUE,NPOWER,101368
North East Lincolnshire Council,http://statistics.data.gov.uk/id/local-authority/00FC,People And Communities,Schools,Schools,Energy Costs,Gas,GB101,12/20/2013,249188,650.56,REVENUE,BRITISH GAS TRADING LTD,101507
North East Lincolnshire Council,http://statistics.data.gov.uk/id/local-authority/00FC,People And Communities,Schools,Schools,Water Services,Water,GE101,12/11/2013,245968,395.91,REVENUE,ANGLIAN WATER,100508
North East Lincolnshire Council,http://statistics.data.gov.uk/id/local-authority/00FC,People And Communities,Schools,Schools,Equip / Furniture / Materials,Equipment - Teaching,LA109,12/20/2013,249210,2980,REVENUE,ABC DOES LTD,107211
North East Lincolnshire Council,http://statistics.data.gov.uk/id/local-authority/00FC,People And Communities,Schools,Schools,Equip / Furniture / Materials,Equipment - Teaching,LA109,12/20/2013,249190,295,REVENUE,MILLMAN COACHES,100700
North East Lincolnshire Council,http://statistics.data.gov.uk/id/local-authority/00FC,People And Communities,Schools,Schools,Consultancy,Consultancy,PL101,12/12/2013,246137,450,REVENUE,STEPHEN DISBREY EDUCATION LTD,121485
North East Lincolnshire Council,http://statistics.data.gov.uk/id/local-authority/00FC,People And Communities,Schools,Schools,Indirect Employee Expenses,Staff Training,EB122,12/2/2013,245076,REDACTED COMMERCIALLY SENSITIVE,REVENUE,SERCO SHARED SERVICES CENTRE,101875
North East Lincolnshire Council,http://statistics.data.gov.uk/id/local-authority/00FC,People And Communities,Schools,Schools,Rep Alterations Maint Building,Buildings - Repairs And Maint,GA102,12/10/2013,245856,-970,REVENUE,LINCS ELECTRICAL SERVICES LTD,102044
North East Lincolnshire Council,http://statistics.data.gov.uk/id/local-authority/00FC,People And Communities,Schools,Schools,Equip / Furniture / Materials,Teaching Materials,LA117,12/3/2013,245077,306.5,REVENUE,GL EDUCATION GROUP LTD,118819
North East Lincolnshire Council,http://statistics.data.gov.uk/id/local-authority/00FC,People And Communities,Schools,Schools,Communications And Computing,Computer H/Ware - Teaching,LF104,12/4/2013,244935,499,REVENUE,DELL COMPUTER CORPORATION LTD,100892
North East Lincolnshire Council,http://statistics.data.gov.uk/id/local-authority/00FC,People And Communities,Schools,Schools,Other Agencies,Educational Visits,PJ152,12/4/2013,244933,375,REVENUE,PGL TRAVEL LTD,100693
North East Lincolnshire Council,http://statistics.data.gov.uk/id/local-authority/00FC,People And Communities,Schools,Schools,Consultancy,Consultancy,PL101,12/2/2013,245069,350,REVENUE,CRAIGLAMB LTD,119755
North East Lincolnshire Council,http://statistics.data.gov.uk/id/local-authority/00FC,People And Communities,Schools,Schools,Consultancy,Consultancy - Curriculum,PL102,12/2/2013,245058,909.1,REVENUE,LINCS INSPIRE,122497
North East Lincolnshire Council,http://statistics.data.gov.uk/id/local-authority/00FC,People And Communities,Schools,Schools,Consultancy,Consultancy - Curriculum,PL102,12/2/2013,245071,280,REVENUE,FOOTPRINTS THEATRE TRUST,120431
North East Lincolnshire Council,http://statistics.data.gov.uk/id/local-authority/00FC,People And Communities,Schools,Schools,Consultancy,Consultancy - Curriculum,PL102,12/2/2013,245064,250,REVENUE,SUNITA PATEL,119113
North East Lincolnshire Council,http://statistics.data.gov.uk/id/local-authority/00FC,People And Communities,Schools,Schools,Consultancy,Consultancy - Curriculum,PL102,12/2/2013,245066,375,REVENUE,IAN HART CONSULTANCY LTD,120187
North East Lincolnshire Council,http://statistics.data.gov.uk/id/local-authority/00FC,People And Communities,Schools,Schools,Consultancy,Consultancy - Curriculum,PL102,12/2/2013,245068,250,REVENUE,JOHN HARDWICK,111218
North East Lincolnshire Council,http://statistics.data.gov.uk/id/local-authority/00FC,People And Communities,Schools,Schools,Rep Alterations Maint Building,Buildings - Repairs And Maint,GA102,12/18/2013,248227,2965,REVENUE,ETON-LINCS LIMITED,101510
North East Lincolnshire Council,http://statistics.data.gov.uk/id/local-authority/00FC,People And Communities,Schools,Schools,Cleaning And Domestic Supplies,Cleaning - Consumables,GH103,12/11/2013,245981,-18.8,REVENUE,PETER HOGARTH & SONS LTD,100815
North East Lincolnshire Council,http://statistics.data.gov.uk/id/local-authority/00FC,People And Communities,Schools,Schools,Cleaning And Domestic Supplies,Cleaning - Consumables,GH103,12/3/2013,244668,487.15,REVENUE,PETER HOGARTH & SONS LTD,100815
North East Lincolnshire Council,http://statistics.data.gov.uk/id/local-authority/00FC,People And Communities,Schools,Schools,Cleaning And Domestic Supplies,Cleaning - Domestic Purchases,GH105,12/10/2013,245925,2274.88,REVENUE,PHS GROUP LTD,100554
North East Lincolnshire Council,http://statistics.data.gov.uk/id/local-authority/00FC,People And Communities,Schools,Schools,Cleaning And Domestic Supplies,Refuse Collection,GH104,12/16/2013,247212,824.07,REVENUE,BIFFA WASTE SERVICES LTD,100515
North East Lincolnshire Council,http://statistics.data.gov.uk/id/local-authority/00FC,People And Communities,Schools,Schools,Direct Transport Costs,Vehicles - Running Costs,JA104,12/10/2013,245912,360,REVENUE,AMVALE LIMITED,101030
North East Lincolnshire Council,http://statistics.data.gov.uk/id/local-authority/00FC,People And Communities,Schools,Schools,Equip / Furniture / Materials,Equipment - Teaching,LA109,12/16/2013,247401,657,REVENUE,HARLEQUIN OFFICE FURNITURE LTD,103530
North East Lincolnshire Council,http://statistics.data.gov.uk/id/local-authority/00FC,People And Communities,Schools,Schools,Equip / Furniture / Materials,Non-Teaching Resources,LA118,12/10/2013,245929,460,REVENUE,SG WORLD LTD,101678
North East Lincolnshire Council,http://statistics.data.gov.uk/id/local-authority/00FC,People And Communities,Schools,Schools,Equip / Furniture / Materials,Teaching Materials,LA117,12/16/2013,247214,608.5,REVENUE,GL EDUCATION GROUP LTD,118819
North East Lincolnshire Council,http://statistics.data.gov.uk/id/local-authority/00FC,People And Communities,Schools,Schools,Equip / Furniture / Materials,Teaching Materials,LA117,12/18/2013,247323,501.97,REVENUE,YORKSHIRE PURCHASING,100573
North East Lincolnshire Council,http://statistics.data.gov.uk/id/local-authority/00FC,People And Communities,Schools,Schools,Print Stationery / Gen Off Exp,Photocopier - Running Costs,LD102,12/12/2013,246390,4436.88,REVENUE,CIT VENDOR FINANCE (UK) LTD,101579
North East Lincolnshire Council,http://statistics.data.gov.uk/id/local-authority/00FC,People And Communities,Schools,Schools,Communications And Computing,Computer H/Ware - Teaching,LF104,12/10/2013,245921,1232.83,REVENUE,JIGSAW SYSTEMS LTD,106840
North East Lincolnshire Council,http://statistics.data.gov.uk/id/local-authority/00FC,People And Communities,Schools,Schools,Communications And Computing,Computer H/Ware - Teaching,LF104,12/18/2013,247530,271.69,REVENUE,TECHNOLOGY TEACHING SYSTEMS LTD,100996
North East Lincolnshire Council,http://statistics.data.gov.uk/id/local-authority/00FC,People And Communities,Schools,Schools,Communications And Computing,Computer H/Ware - Teaching,LF104,12/16/2013,247400,417.91,REVENUE,OVERCLOCKERS UK (OCUK LTD),123887
North East Lincolnshire Council,http://statistics.data.gov.uk/id/local-authority/00FC,People And Communities,Schools,Schools,Communications And Computing,Computer S/Ware - Licences,LF103,12/10/2013,245926,294,REVENUE,ACADEMIA LTD,105650
North East Lincolnshire Council,http://statistics.data.gov.uk/id/local-authority/00FC,People And Communities,Schools,Schools,Other Agencies,Educational Visits,PJ152,12/10/2013,245910,375,REVENUE,A R PARKINSON,111751
North East Lincolnshire Council,http://statistics.data.gov.uk/id/local-authority/00FC,People And Communities,Schools,Schools,Consultancy,Consultancy - Curriculum,PL102,12/10/2013,245911,378,REVENUE,PETER HEPWORTH,103563
North East Lincolnshire Council,http://statistics.data.gov.uk/id/local-authority/00FC,People And Communities,Schools,Schools,Consultancy,Consultancy - Curriculum,PL102,12/10/2013,245917,325,REVENUE,HELEN SADLER,120840
North East Lincolnshire Council,http://statistics.data.gov.uk/id/local-authority/00FC,People And Communities,Schools,Schools,Consultancy,Consultancy - Curriculum,PL102,12/10/2013,245927,1333,REVENUE,LISLE MARSDEN C OF E PRIMARY ACADEMY,107922
North East Lincolnshire Council,http://statistics.data.gov.uk/id/local-authority/00FC,People And Communities,Schools,Schools,Consultancy,Consultancy - Curriculum,PL102,12/16/2013,247209,525,REVENUE,JOSHUA ENGLAND,122088
North East Lincolnshire Council,http://statistics.data.gov.uk/id/local-authority/00FC,People And Communities,Schools,Schools,Consultancy,Consultancy - Curriculum,PL102,12/16/2013,247213,1260,REVENUE,PETER SCRIMSHAW,102324
North East Lincolnshire Council,http://statistics.data.gov.uk/id/local-authority/00FC,People And Communities,Schools,Schools,Direct Employee Expenses,Agency Supply Teachers,EA104,12/3/2013,244059,1790,REVENUE,PRINCIPAL RESOURCING LTD,101601
North East Lincolnshire Council,http://statistics.data.gov.uk/id/local-authority/00FC,People And Communities,Schools,Schools,Direct Employee Expenses,Agency Supply Teachers,EA104,12/20/2013,248108,1969,REVENUE,PRINCIPAL RESOURCING LTD,101601
North East Lincolnshire Council,http://statistics.data.gov.uk/id/local-authority/00FC,People And Communities,Schools,Schools,Direct Employee Expenses,Agency Supply Teachers,EA104,12/10/2013,245933,1969,REVENUE,PRINCIPAL RESOURCING LTD,101601
North East Lincolnshire Council,http://statistics.data.gov.uk/id/local-authority/00FC,People And Communities,Schools,Schools,Direct Employee Expenses,Agency Supply Teachers,EA104,12/23/2013,249026,2167,REVENUE,PRINCIPAL RESOURCING LTD,101601
North East Lincolnshire Council,http://statistics.data.gov.uk/id/local-authority/00FC,People And Communities,Schools,Schools,Rep Alterations Maint Building,Buildings - Repairs And Maint,GA102,12/20/2013,248112,324,REVENUE,HAITH'S HEATING LTD,101342
North East Lincolnshire Council,http://statistics.data.gov.uk/id/local-authority/00FC,People And Communities,Schools,Schools,Rep Alterations Maint Building,Buildings - Repairs And Maint,GA102,12/23/2013,249919,300,REVENUE,NORTH EAST LINCOLNSHIRE COUNCIL,100894
North East Lincolnshire Council,http://statistics.data.gov.uk/id/local-authority/00FC,People And Communities,Schools,Schools,Energy Costs,Electricity,GB102,12/12/2013,246138,2349.5,REVENUE,NPOWER LIMITED,101414
North East Lincolnshire Council,http://statistics.data.gov.uk/id/local-authority/00FC,People And Communities,Schools,Schools,Equip / Furniture / Materials,Furniture - Teaching,LA107,12/12/2013,246141,392,REVENUE,WOODSTOCK LEABANK,108005
North East Lincolnshire Council,http://statistics.data.gov.uk/id/local-authority/00FC,People And Communities,Schools,Schools,Equip / Furniture / Materials,Goods For Resale,LA123,12/10/2013,245945,717.6,REVENUE,KATHRYN BILLINGS PRINTING & EMBROIDERY LTD,101457
North East Lincolnshire Council,http://statistics.data.gov.uk/id/local-authority/00FC,People And Communities,Schools,Schools,Equip / Furniture / Materials,Non-Teaching Resources,LA118,12/23/2013,249020,961.5,REVENUE,GRIMSBY SIGNS LTD,105793
North East Lincolnshire Council,http://statistics.data.gov.uk/id/local-authority/00FC,People And Communities,Schools,Schools,Equip / Furniture / Materials,Out Of School Club Expenditure,LA119,12/18/2013,248201,420,REVENUE,STEVE COOPER SPORTS CONSULTANT,112882
North East Lincolnshire Council,http://statistics.data.gov.uk/id/local-authority/00FC,People And Communities,Schools,Schools,Equip / Furniture / Materials,Teaching Materials,LA117,12/20/2013,248116,1125,REVENUE,CROMWELL GROUP (HOLDINGS) LTD,100524
North East Lincolnshire Council,http://statistics.data.gov.uk/id/local-authority/00FC,People And Communities,Schools,Schools,Equip / Furniture / Materials,Teaching Materials,LA117,12/3/2013,243997,361.81,REVENUE,EAST RIDING OF YORKSHIRE COUNCIL,100654
North East Lincolnshire Council,http://statistics.data.gov.uk/id/local-authority/00FC,People And Communities,Schools,Schools,Other Agencies,Educational Visits,PJ152,12/23/2013,249025,485,REVENUE,AMVALE LIMITED,101030
North East Lincolnshire Council,http://statistics.data.gov.uk/id/local-authority/00FC,People And Communities,Schools,Schools,Other Agencies,Educational Visits,PJ152,12/18/2013,248150,250,REVENUE,PGL TRAVEL LTD,100693
North East Lincolnshire Council,http://statistics.data.gov.uk/id/local-authority/00FC,People And Communities,Schools,Schools,Other Agencies,Educational Visits,PJ152,12/18/2013,248152,675,REVENUE,PGL TRAVEL LTD,100693
North East Lincolnshire Council,http://statistics.data.gov.uk/id/local-authority/00FC,People And Communities,Schools,Schools,Consultancy,Consultancy - Curriculum,PL102,12/18/2013,248201,2375,REVENUE,STEVE COOPER SPORTS CONSULTANT,112882
North East Lincolnshire Council,http://statistics.data.gov.uk/id/local-authority/00FC,People And Communities,Schools,Schools,Consultancy,Consultancy - Curriculum,PL102,12/10/2013,245932,540,REVENUE,PAT MCCARTHY,103441
North East Lincolnshire Council,http://statistics.data.gov.uk/id/local-authority/00FC,People And Communities,Schools,Schools,Direct Employee Expenses,Agency Supply Teachers,EA104,12/5/2013,245119,815,REVENUE,REED EMPLOYMENT LTD,102225
North East Lincolnshire Council,http://statistics.data.gov.uk/id/local-authority/00FC,People And Communities,Schools,Schools,Direct Employee Expenses,Pay Admin & Clerical,EA119,12/16/2013,246978,466.66,REVENUE,MCARTHUR DEAN TRAINING LTD,107184
North East Lincolnshire Council,http://statistics.data.gov.uk/id/local-authority/00FC,People And Communities,Schools,Schools,Direct Employee Expenses,Pay Teachers Supply Cover,EA106,12/20/2013,249240,480,REVENUE,SUE PARR,105389
North East Lincolnshire Council,http://statistics.data.gov.uk/id/local-authority/00FC,People And Communities,Schools,Schools,Direct Employee Expenses,Pay Teachers Supply Cover,EA106,12/20/2013,249168,652,REVENUE,REED EMPLOYMENT LTD,102225
North East Lincolnshire Council,http://statistics.data.gov.uk/id/local-authority/00FC,People And Communities,Schools,Schools,Direct Employee Expenses,Pay Teachers Supply Cover,EA106,12/20/2013,247515,815,REVENUE,REED EMPLOYMENT LTD,102225
North East Lincolnshire Council,http://statistics.data.gov.uk/id/local-authority/00FC,People And Communities,Schools,Schools,Indirect Employee Expenses,Staff Training,EB122,12/16/2013,247396,360,REVENUE,RUPERT COLLINS LIMITED,101901
North East Lincolnshire Council,http://statistics.data.gov.uk/id/local-authority/00FC,People And Communities,Schools,Schools,Indirect Employee Expenses,Staff Training,EB122,12/20/2013,249169,299,REVENUE,OSIRIS EDUCATIONAL WOODHALL SPA LTD,107430
North East Lincolnshire Council,http://statistics.data.gov.uk/id/local-authority/00FC,People And Communities,Schools,Schools,Rep Alterations Maint Building,Buildings - Repairs And Maint,GA102,12/18/2013,248067,10781,REVENUE,NEWBY LEISURE LTD,101227
North East Lincolnshire Council,http://statistics.data.gov.uk/id/local-authority/00FC,People And Communities,Schools,Schools,Rep Alterations Maint Building,Buildings - Repairs And Maint,GA102,12/5/2013,245383,345.6,REVENUE,FRED MARGARSON LTD,100592
North East Lincolnshire Council,http://statistics.data.gov.uk/id/local-authority/00FC,People And Communities,Schools,Schools,Water Services,Water,GE101,12/11/2013,246665,587.15,REVENUE,ANGLIAN WATER,100508
North East Lincolnshire Council,http://statistics.data.gov.uk/id/local-authority/00FC,People And Communities,Schools,Schools,Cleaning And Domestic Supplies,Refuse Collection,GH104,12/18/2013,247322,359.92,REVENUE,BELL WASTE CONTROL,101433
North East Lincolnshire Council,http://statistics.data.gov.uk/id/local-authority/00FC,People And Communities,Schools,Schools,Equip / Furniture / Materials,Furniture - Teaching,LA107,12/5/2013,245149,741,REVENUE,HEAD OFFICE INTERIORS LTD,123629
North East Lincolnshire Council,http://statistics.data.gov.uk/id/local-authority/00FC,People And Communities,Schools,Schools,Equip / Furniture / Materials,Teaching Materials,LA117,12/5/2013,245784,852.5,REVENUE,CLASS FUNDRAISING LTD,108229
North East Lincolnshire Council,http://statistics.data.gov.uk/id/local-authority/00FC,People And Communities,Schools,Schools,Equip / Furniture / Materials,Teaching Materials,LA117,12/5/2013,245125,557.08,REVENUE,SG WORLD LTD,101678
North East Lincolnshire Council,http://statistics.data.gov.uk/id/local-authority/00FC,People And Communities,Schools,Schools,Communications And Computing,Computer H/Ware - Teaching,LF104,12/20/2013,249233,2060,REVENUE,TECHNOLOGY SUPPORT SOLUTIONS LTD,119571
North East Lincolnshire Council,http://statistics.data.gov.uk/id/local-authority/00FC,People And Communities,Schools,Schools,Other Agencies,Educational Visits,PJ152,12/16/2013,247179,312,REVENUE,SOLAR SPORTS COACHING LTD,101797
North East Lincolnshire Council,http://statistics.data.gov.uk/id/local-authority/00FC,People And Communities,Schools,Schools,Consultancy,Consultancy,PL101,12/16/2013,247181,1415.49,REVENUE,PHS GROUP LTD,100554
North East Lincolnshire Council,http://statistics.data.gov.uk/id/local-authority/00FC,People And Communities,Schools,Schools,Consultancy,Consultancy,PL101,12/18/2013,248122,1750,REVENUE,FOCUS ON COMMUNITY,105185
North East Lincolnshire Council,http://statistics.data.gov.uk/id/local-authority/00FC,People And Communities,Schools,Schools,Consultancy,Consultancy - Curriculum,PL102,12/16/2013,246979,1575,REVENUE,LINCOLNSHIRE SOCCER SCHOOL,101505
North East Lincolnshire Council,http://statistics.data.gov.uk/id/local-authority/00FC,People And Communities,Schools,Schools,Consultancy,Consultancy - Curriculum,PL102,12/18/2013,248117,337.5,REVENUE,MUSIQUEST,101882
North East Lincolnshire Council,http://statistics.data.gov.uk/id/local-authority/00FC,People And Communities,Schools,Schools,Consultancy,Consultancy - Curriculum,PL102,12/20/2013,249235,337.5,REVENUE,MUSIQUEST,101882
North East Lincolnshire Council,http://statistics.data.gov.uk/id/local-authority/00FC,People And Communities,Schools,Schools,Consultancy,Consultancy - Curriculum,PL102,12/23/2013,249427,1085,REVENUE,LINCOLNSHIRE SOCCER SCHOOL,101505
North East Lincolnshire Council,http://statistics.data.gov.uk/id/local-authority/00FC,People And Communities,Schools,Schools,Direct Employee Expenses,Agency Supply Teachers,EA104,12/16/2013,246608,438.3,REVENUE,TEACHING PERSONNEL LTD,101305
North East Lincolnshire Council,http://statistics.data.gov.uk/id/local-authority/00FC,People And Communities,Schools,Schools,Direct Employee Expenses,Agency Supply Teachers,EA104,12/18/2013,248089,311.85,REVENUE,TEACHING PERSONNEL LTD,101305
North East Lincolnshire Council,http://statistics.data.gov.uk/id/local-authority/00FC,People And Communities,Schools,Schools,Energy Costs,Heating Fuel,GB103,12/18/2013,248095,1289.8,REVENUE,WATSON PETROLEUM LTD,101348
North East Lincolnshire Council,http://statistics.data.gov.uk/id/local-authority/00FC,People And Communities,Schools,Schools,Water Services,Water,GE101,12/20/2013,247369,1489.09,REVENUE,ANGLIAN WATER,100508
North East Lincolnshire Council,http://statistics.data.gov.uk/id/local-authority/00FC,People And Communities,Schools,Schools,Equip / Furniture / Materials,Non-Teaching Resources,LA118,12/18/2013,248097,411,REVENUE,CIT VENDOR FINANCE (UK) LTD,101579
North East Lincolnshire Council,http://statistics.data.gov.uk/id/local-authority/00FC,People And Communities,Schools,Schools,Equip / Furniture / Materials,Out Of School Club Expenditure,LA119,12/10/2013,246458,780.42,REVENUE,CLASS FUNDRAISING LTD,108229
North East Lincolnshire Council,http://statistics.data.gov.uk/id/local-authority/00FC,People And Communities,Schools,Schools,Equip / Furniture / Materials,Out Of School Club Expenditure,LA119,12/16/2013,246620,301,REVENUE,JHR EDUCATIONAL,121387
North East Lincolnshire Council,http://statistics.data.gov.uk/id/local-authority/00FC,People And Communities,Schools,Schools,Consultancy,Consultancy,PL101,12/18/2013,248091,350,REVENUE,MRS W M GIBNEY,101216
North East Lincolnshire Council,http://statistics.data.gov.uk/id/local-authority/00FC,People And Communities,Schools,Schools,Consultancy,Consultancy - Curriculum,PL102,12/18/2013,248093,1666.67,REVENUE,HAVELOCK ACADEMY,101968
North East Lincolnshire Council,http://statistics.data.gov.uk/id/local-authority/00FC,People And Communities,Schools,Schools,Direct Employee Expenses,Agency Supply Teachers,EA104,12/18/2013,248098,380.4,REVENUE,TEACHING PERSONNEL LTD,101305
North East Lincolnshire Council,http://statistics.data.gov.uk/id/local-authority/00FC,People And Communities,Schools,Schools,Energy Costs,Electricity,GB102,12/20/2013,249239,855.07,REVENUE,NPOWER LIMITED,101414
North East Lincolnshire Council,http://statistics.data.gov.uk/id/local-authority/00FC,People And Communities,Schools,Schools,Energy Costs,Gas,GB101,12/20/2013,249242,1489.89,REVENUE,BRITISH GAS TRADING LTD,101507
North East Lincolnshire Council,http://statistics.data.gov.uk/id/local-authority/00FC,People And Communities,Schools,Schools,Water Services,Water,GE101,12/18/2013,247370,1032.12,REVENUE,ANGLIAN WATER,100508
North East Lincolnshire Council,http://statistics.data.gov.uk/id/local-authority/00FC,People And Communities,Schools,Schools,Cleaning And Domestic Supplies,Refuse Collection,GH104,12/10/2013,245879,310.96,REVENUE,BELL WASTE CONTROL,101433
North East Lincolnshire Council,http://statistics.data.gov.uk/id/local-authority/00FC,People And Communities,Schools,Schools,Equip / Furniture / Materials,Furniture - Teaching,LA107,12/20/2013,249136,1092,REVENUE,THE SCHOOL FURNITURE COMPANY LTD,101521
North East Lincolnshire Council,http://statistics.data.gov.uk/id/local-authority/00FC,People And Communities,Schools,Schools,Equip / Furniture / Materials,Teaching Materials,LA117,12/10/2013,245897,323.12,REVENUE,EAST RIDING OF YORKSHIRE COUNCIL,100654
North East Lincolnshire Council,http://statistics.data.gov.uk/id/local-authority/00FC,People And Communities,Schools,Schools,Consultancy,Consultancy - Curriculum,PL102,12/10/2013,245880,540,REVENUE,ADMIN SUPPORT AND IT SOLUTIONS,108695
North East Lincolnshire Council,http://statistics.data.gov.uk/id/local-authority/00FC,People And Communities,Schools,Schools,Consultancy,Consultancy - Curriculum,PL102,12/18/2013,248137,560,REVENUE,LINCOLNSHIRE SOCCER SCHOOL,101505
North East Lincolnshire Council,http://statistics.data.gov.uk/id/local-authority/00FC,People And Communities,Schools,Schools,Direct Employee Expenses,Pay Teachers Supply Cover,EA106,12/20/2013,247388,-25,REVENUE,HAYS ACCOUNTANCY PERSONNEL,101026
North East Lincolnshire Council,http://statistics.data.gov.uk/id/local-authority/00FC,People And Communities,Schools,Schools,Direct Employee Expenses,Pay Teachers Supply Cover,EA106,12/18/2013,247390,-20,REVENUE,HAYS ACCOUNTANCY PERSONNEL,101026
North East Lincolnshire Council,http://statistics.data.gov.uk/id/local-authority/00FC,People And Communities,Schools,Schools,Direct Employee Expenses,Pay Teachers Supply Cover,EA106,12/18/2013,247512,975,REVENUE,HAYS ACCOUNTANCY PERSONNEL,101026
North East Lincolnshire Council,http://statistics.data.gov.uk/id/local-authority/00FC,People And Communities,Schools,Schools,Direct Employee Expenses,Pay Teachers Supply Cover,EA106,12/18/2013,248200,950,REVENUE,HAYS ACCOUNTANCY PERSONNEL,101026
North East Lincolnshire Council,http://statistics.data.gov.uk/id/local-authority/00FC,People And Communities,Schools,Schools,Energy Costs,Gas,GB101,12/23/2013,249794,859.7,REVENUE,BRITISH GAS TRADING LTD,101507
North East Lincolnshire Council,http://statistics.data.gov.uk/id/local-authority/00FC,People And Communities,Schools,Schools,Direct Transport Costs,Vehicles - Running Costs,JA104,12/20/2013,248174,280,REVENUE,AMVALE LIMITED,101030
North East Lincolnshire Council,http://statistics.data.gov.uk/id/local-authority/00FC,People And Communities,Schools,Schools,Direct Transport Costs,Vehicles - Running Costs,JA104,12/16/2013,247364,350,REVENUE,AMVALE LIMITED,101030
North East Lincolnshire Council,http://statistics.data.gov.uk/id/local-authority/00FC,People And Communities,Schools,Schools,Direct Transport Costs,Vehicles - Running Costs,JA104,12/16/2013,247194,350,REVENUE,AMVALE LIMITED,101030
North East Lincolnshire Council,http://statistics.data.gov.uk/id/local-authority/00FC,People And Communities,Schools,Schools,Equip / Furniture / Materials,Furniture - Teaching,LA107,12/16/2013,247192,336,REVENUE,COMPLETE OFFICE SOLUTIONS (UK) LTD,123664
North East Lincolnshire Council,http://statistics.data.gov.uk/id/local-authority/00FC,People And Communities,Schools,Schools,Equip / Furniture / Materials,Teaching Materials,LA117,12/18/2013,247511,293.45,REVENUE,YORKSHIRE PURCHASING,100573
North East Lincolnshire Council,http://statistics.data.gov.uk/id/local-authority/00FC,People And Communities,Schools,Schools,Equip / Furniture / Materials,Teaching Materials,LA117,12/20/2013,248170,407.14,REVENUE,YORKSHIRE PURCHASING,100573
North East Lincolnshire Council,http://statistics.data.gov.uk/id/local-authority/00FC,People And Communities,Schools,Schools,Communications And Computing,Computer H/Ware - Purchases,LF105,12/18/2013,248234,886,REVENUE,TECHNOLOGY SUPPORT SOLUTIONS LTD,119571
North East Lincolnshire Council,http://statistics.data.gov.uk/id/local-authority/00FC,People And Communities,Schools,Schools,Consultancy,Consultancy - Curriculum,PL102,12/18/2013,248125,287,REVENUE,SAMURAI HEARTS,101934
North East Lincolnshire Council,http://statistics.data.gov.uk/id/local-authority/00FC,People And Communities,Schools,Schools,Consultancy,Consultancy - Curriculum,PL102,12/23/2013,249788,600,REVENUE,CAROL DAWSON,108271
North East Lincolnshire Council,http://statistics.data.gov.uk/id/local-authority/00FC,People And Communities,Schools,Schools,Direct Employee Expenses,Agency Supply Teachers,EA104,12/5/2013,245377,725,REVENUE,PRINCIPAL RESOURCING LTD,101601
North East Lincolnshire Council,http://statistics.data.gov.uk/id/local-authority/00FC,People And Communities,Schools,Schools,Direct Employee Expenses,Agency Supply Teachers,EA104,12/11/2013,245974,870,REVENUE,PRINCIPAL RESOURCING LTD,101601
North East Lincolnshire Council,http://statistics.data.gov.uk/id/local-authority/00FC,People And Communities,Schools,Schools,Direct Employee Expenses,Agency Supply Teachers,EA104,12/20/2013,247499,725,REVENUE,PRINCIPAL RESOURCING LTD,101601
North East Lincolnshire Council,http://statistics.data.gov.uk/id/local-authority/00FC,People And Communities,Schools,Schools,Direct Employee Expenses,Agency Supply Teachers,EA104,12/20/2013,249160,1612,REVENUE,PRINCIPAL RESOURCING LTD,101601
North East Lincolnshire Council,http://statistics.data.gov.uk/id/local-authority/00FC,People And Communities,Schools,Schools,Direct Employee Expenses,Agency Supply Teachers,EA104,12/5/2013,245106,1119.5,REVENUE,TEACHING PERSONNEL LTD,101305
North East Lincolnshire Council,http://statistics.data.gov.uk/id/local-authority/00FC,People And Communities,Schools,Schools,Direct Employee Expenses,Agency Supply Teachers,EA104,12/20/2013,247467,1422.4,REVENUE,TEACHING PERSONNEL LTD,101305
North East Lincolnshire Council,http://statistics.data.gov.uk/id/local-authority/00FC,People And Communities,Schools,Schools,Direct Employee Expenses,Agency Supply Teachers,EA104,12/18/2013,247545,760,REVENUE,TEACHING PERSONNEL LTD,101305
North East Lincolnshire Council,http://statistics.data.gov.uk/id/local-authority/00FC,People And Communities,Schools,Schools,Indirect Employee Expenses,Staff Training,EB122,12/18/2013,247481,1333,REVENUE,LISLE MARSDEN C OF E PRIMARY ACADEMY,107922
North East Lincolnshire Council,http://statistics.data.gov.uk/id/local-authority/00FC,People And Communities,Schools,Schools,Indirect Employee Expenses,Staff Training,EB122,12/5/2013,245375,360,REVENUE,RUPERT COLLINS LIMITED,101901
North East Lincolnshire Council,http://statistics.data.gov.uk/id/local-authority/00FC,People And Communities,Schools,Schools,Indirect Employee Expenses,Staff Training,EB122,12/4/2013,245575,300,REVENUE,WALTHAM LEAS PRIMARY ACADEMY,109335
North East Lincolnshire Council,http://statistics.data.gov.uk/id/local-authority/00FC,People And Communities,Schools,Schools,Indirect Employee Expenses,Staff Training,EB122,12/18/2013,247553,275,REVENUE,CMS,101981
North East Lincolnshire Council,http://statistics.data.gov.uk/id/local-authority/00FC,People And Communities,Schools,Schools,Energy Costs,Electricity,GB102,12/20/2013,249091,2952.29,REVENUE,NPOWER LIMITED,101414
North East Lincolnshire Council,http://statistics.data.gov.uk/id/local-authority/00FC,People And Communities,Schools,Schools,Energy Costs,Gas,GB101,12/20/2013,249238,1877.31,REVENUE,BRITISH GAS TRADING LTD,101507
North East Lincolnshire Council,http://statistics.data.gov.uk/id/local-authority/00FC,People And Communities,Schools,Schools,Cleaning And Domestic Supplies,Cleaning - Consumables,GH103,12/16/2013,247403,264,REVENUE,HUMBERSIDE DOMESTIC REPAIRS,102743
North East Lincolnshire Council,http://statistics.data.gov.uk/id/local-authority/00FC,People And Communities,Schools,Schools,Cleaning And Domestic Supplies,Refuse Collection,GH104,12/16/2013,247410,559.13,REVENUE,BELL WASTE CONTROL,101433
North East Lincolnshire Council,http://statistics.data.gov.uk/id/local-authority/00FC,People And Communities,Schools,Schools,Equip / Furniture / Materials,Goods For Resale,LA123,12/4/2013,245571,650,REVENUE,MAPAC GROUP LTD,100671
North East Lincolnshire Council,http://statistics.data.gov.uk/id/local-authority/00FC,People And Communities,Schools,Schools,Equip / Furniture / Materials,Non-Teaching Resources,LA118,12/4/2013,245573,377.4,REVENUE,BULK TEES LIMITED,123677
North East Lincolnshire Council,http://statistics.data.gov.uk/id/local-authority/00FC,People And Communities,Schools,Schools,Equip / Furniture / Materials,Non-Teaching Resources,LA118,12/10/2013,245924,369.47,REVENUE,EAST RIDING OF YORKSHIRE COUNCIL,100654
North East Lincolnshire Council,http://statistics.data.gov.uk/id/local-authority/00FC,People And Communities,Schools,Schools,Equip / Furniture / Materials,Out Of School Club Expenditure,LA119,12/4/2013,245568,312.5,REVENUE,JILL R PATIENCE,108409
North East Lincolnshire Council,http://statistics.data.gov.uk/id/local-authority/00FC,People And Communities,Schools,Schools,Equip / Furniture / Materials,Teaching Materials,LA117,12/5/2013,245109,495.66,REVENUE,FINDEL EDUCATION LTD,101237
North East Lincolnshire Council,http://statistics.data.gov.uk/id/local-authority/00FC,People And Communities,Schools,Schools,Equip / Furniture / Materials,Teaching Materials,LA117,12/11/2013,245972,504,REVENUE,FINDEL EDUCATION LTD,101237
North East Lincolnshire Council,http://statistics.data.gov.uk/id/local-authority/00FC,People And Communities,Schools,Schools,Equip / Furniture / Materials,Teaching Materials,LA117,12/18/2013,247554,301.06,REVENUE,PRIMARY TEACHING SERVICES LTD,100775
North East Lincolnshire Council,http://statistics.data.gov.uk/id/local-authority/00FC,People And Communities,Schools,Schools,Communications And Computing,Computer H/Ware - Teaching,LF104,12/11/2013,245971,605.46,REVENUE,ALLINSON PRINT & SUPPLIES,105561
North East Lincolnshire Council,http://statistics.data.gov.uk/id/local-authority/00FC,People And Communities,Schools,Schools,Communications And Computing,Computer H/Ware - Teaching,LF104,12/20/2013,249246,295.19,REVENUE,ALLINSON PRINT & SUPPLIES,105561
North East Lincolnshire Council,http://statistics.data.gov.uk/id/local-authority/00FC,People And Communities,Schools,Schools,Consultancy,Consultancy - Curriculum,PL102,12/4/2013,245570,480,REVENUE,KEITH WESTON,102280
North East Lincolnshire Council,http://statistics.data.gov.uk/id/local-authority/00FC,People And Communities,Schools,Schools,Consultancy,Consultancy - Curriculum,PL102,12/4/2013,245577,510,REVENUE,HOBGOBLIN THEATRE COMPANY,102868
North East Lincolnshire Council,http://statistics.data.gov.uk/id/local-authority/00FC,People And Communities,Schools,Schools,Consultancy,Consultancy - Curriculum,PL102,12/16/2013,247402,300,REVENUE,KEVIN ROGERS,101480
North East Lincolnshire Council,http://statistics.data.gov.uk/id/local-authority/00FC,People And Communities,Schools,Schools,Consultancy,Consultancy - Curriculum,PL102,12/16/2013,247404,570,REVENUE,MATT GIDLOW,103864
North East Lincolnshire Council,http://statistics.data.gov.uk/id/local-authority/00FC,People And Communities,Schools,Schools,Consultancy,Consultancy - Curriculum,PL102,12/16/2013,247412,954.03,REVENUE,MUSIC LINCS LTD,100944
North East Lincolnshire Council,http://statistics.data.gov.uk/id/local-authority/00FC,People And Communities,Schools,Schools,Rep Alterations Maint Building,Buildings - Repairs And Maint,GA102,12/10/2013,245878,2280,REVENUE,ETON-LINCS LIMITED,101510
North East Lincolnshire Council,http://statistics.data.gov.uk/id/local-authority/00FC,People And Communities,Schools,Schools,Rep Alterations Maint Building,Buildings - Repairs And Maint,GA102,12/20/2013,248587,860,REVENUE,FABRIQUE SPECIALIST GLAZING SYSTEMS LTD,101314
North East Lincolnshire Council,http://statistics.data.gov.uk/id/local-authority/00FC,People And Communities,Schools,Schools,Rep Alterations Maint Building,Buildings - Repairs And Maint,GA102,12/16/2013,247188,388.41,REVENUE,EXCELL ELECTRICAL CONTRACTORS,100601
North East Lincolnshire Council,http://statistics.data.gov.uk/id/local-authority/00FC,People And Communities,Schools,Schools,Cleaning And Domestic Supplies,Cleaning - Consumables,GH103,12/16/2013,247216,282.29,REVENUE,PETER HOGARTH & SONS LTD,100815
North East Lincolnshire Council,http://statistics.data.gov.uk/id/local-authority/00FC,People And Communities,Schools,Schools,Cleaning And Domestic Supplies,Refuse Collection,GH104,12/16/2013,247189,885.69,REVENUE,BIFFA WASTE SERVICES LTD,100515
North East Lincolnshire Council,http://statistics.data.gov.uk/id/local-authority/00FC,People And Communities,Schools,Schools,Equip / Furniture / Materials,Furniture - Teaching,LA107,12/18/2013,247507,264,REVENUE,METALLIFORM HOLDINGS LIMTED,112258
North East Lincolnshire Council,http://statistics.data.gov.uk/id/local-authority/00FC,People And Communities,Schools,Schools,Equip / Furniture / Materials,Teaching Materials,LA117,12/18/2013,247508,469.38,REVENUE,PRIMARY TEACHING SERVICES LTD,100775
North East Lincolnshire Council,http://statistics.data.gov.uk/id/local-authority/00FC,People And Communities,Schools,Schools,Consultancy,Consultancy - Curriculum,PL102,12/18/2013,248058,370.83,REVENUE,NORTH LINCOLNSHIRE COUNCIL,101186
North East Lincolnshire Council,http://statistics.data.gov.uk/id/local-authority/00FC,People And Communities,Schools,Schools,Consultancy,Consultancy - Curriculum,PL102,12/4/2013,245679,-450,REVENUE,STEPHANIE RAYTON,123217
North East Lincolnshire Council,http://statistics.data.gov.uk/id/local-authority/00FC,People And Communities,Schools,Schools,Consultancy,Consultancy - Curriculum,PL102,12/4/2013,245680,450,REVENUE,SUE HERON,101951
North East Lincolnshire Council,http://statistics.data.gov.uk/id/local-authority/00FC,People And Communities,Schools,Schools,Direct Employee Expenses,Agency Supply Teachers,EA104,12/10/2013,245899,910,REVENUE,REED EMPLOYMENT LTD,102225
North East Lincolnshire Council,http://statistics.data.gov.uk/id/local-authority/00FC,People And Communities,Schools,Schools,Direct Employee Expenses,Agency Supply Teachers,EA104,12/10/2013,245898,910,REVENUE,REED EMPLOYMENT LTD,102225
North East Lincolnshire Council,http://statistics.data.gov.uk/id/local-authority/00FC,People And Communities,Schools,Schools,Rep Alterations Maint Building,Buildings - Repairs And Maint,GA102,12/10/2013,245907,475,REVENUE,CLOVER CONSTRUCTION (LINCS) LTD,123719
North East Lincolnshire Council,http://statistics.data.gov.uk/id/local-authority/00FC,People And Communities,Schools,Schools,Rep Alterations Maint Building,Buildings - Repairs And Maint,GA102,12/17/2013,248337,295,REVENUE,RSB FLOORING,103570
North East Lincolnshire Council,http://statistics.data.gov.uk/id/local-authority/00FC,People And Communities,Schools,Schools,Cleaning And Domestic Supplies,Cleaning - Consumables,GH103,12/12/2013,246375,399.31,REVENUE,SYLVESTER-KEAL LTD,100593
North East Lincolnshire Council,http://statistics.data.gov.uk/id/local-authority/00FC,People And Communities,Schools,Schools,Cleaning And Domestic Supplies,Cleaning - Domestic Purchases,GH105,12/12/2013,246375,297.43,REVENUE,SYLVESTER-KEAL LTD,100593
North East Lincolnshire Council,http://statistics.data.gov.uk/id/local-authority/00FC,People And Communities,Schools,Schools,Cleaning And Domestic Supplies,Refuse Collection,GH104,12/20/2013,248143,577.33,REVENUE,BIFFA WASTE SERVICES LTD,100515
North East Lincolnshire Council,http://statistics.data.gov.uk/id/local-authority/00FC,People And Communities,Schools,Schools,Equip / Furniture / Materials,Non-Teaching Resources,LA118,12/12/2013,246370,250.01,REVENUE,SIEMENS FINANCIAL SERVICES LTD,101161
North East Lincolnshire Council,http://statistics.data.gov.uk/id/local-authority/00FC,People And Communities,Schools,Schools,Equip / Furniture / Materials,Teaching Materials,LA117,12/20/2013,248211,638.58,REVENUE,EAST RIDING OF YORKSHIRE COUNCIL,100654
North East Lincolnshire Council,http://statistics.data.gov.uk/id/local-authority/00FC,People And Communities,Schools,Schools,Print Stationery / Gen Off Exp,Photocopier - Running Costs,LD102,12/12/2013,246447,740.58,REVENUE,KONICA MINOLTA BUSINESS SOLUTIONS EAST LTD,101498
North East Lincolnshire Council,http://statistics.data.gov.uk/id/local-authority/00FC,People And Communities,Schools,Schools,Print Stationery / Gen Off Exp,Photocopier - Running Costs,LD102,12/12/2013,246448,539.64,REVENUE,KONICA MINOLTA BUSINESS SOLUTIONS EAST LTD,101498
North East Lincolnshire Council,http://statistics.data.gov.uk/id/local-authority/00FC,People And Communities,Schools,Schools,Print Stationery / Gen Off Exp,Photocopier - Running Costs,LD102,12/12/2013,246370,1000.04,REVENUE,SIEMENS FINANCIAL SERVICES LTD,101161
North East Lincolnshire Council,http://statistics.data.gov.uk/id/local-authority/00FC,People And Communities,Schools,Schools,Other Agencies,Educational Visits,PJ152,12/16/2013,247348,1680,REVENUE,KINGSWOOD EDUCATIONAL ACTIVITY CENTRE,101287
North East Lincolnshire Council,http://statistics.data.gov.uk/id/local-authority/00FC,People And Communities,Schools,Schools,Consultancy,Consultancy - Curriculum,PL102,12/10/2013,245900,300,REVENUE,ANDREW SIMONS,102321
North East Lincolnshire Council,http://statistics.data.gov.uk/id/local-authority/00FC,People And Communities,Schools,Schools,Cleaning And Domestic Supplies,Cleaning - Domestic Purchases,GH105,12/5/2013,245389,1612.39,REVENUE,PHS GROUP LTD,100554
North East Lincolnshire Council,http://statistics.data.gov.uk/id/local-authority/00FC,People And Communities,Schools,Schools,Cleaning And Domestic Supplies,Cleaning - Domestic Purchases,GH105,12/5/2013,245117,1896.56,REVENUE,PHS GROUP LTD,100554
North East Lincolnshire Council,http://statistics.data.gov.uk/id/local-authority/00FC,People And Communities,Schools,Schools,Cleaning And Domestic Supplies,Cleaning - Domestic Purchases,GH105,12/10/2013,245857,-1948.52,REVENUE,PHS GROUP LTD,100554
North East Lincolnshire Council,http://statistics.data.gov.uk/id/local-authority/00FC,People And Communities,Schools,Schools,Direct Employee Expenses,Agency Supply Teachers,EA104,12/2/2013,244838,290,REVENUE,PRINCIPAL RESOURCING LTD,101601
North East Lincolnshire Council,http://statistics.data.gov.uk/id/local-authority/00FC,People And Communities,Schools,Schools,Direct Employee Expenses,Pay Teachers Supply Cover,EA106,12/18/2013,247504,2960,REVENUE,VISION FOR EDUCATION LTD,102399
North East Lincolnshire Council,http://statistics.data.gov.uk/id/local-authority/00FC,People And Communities,Schools,Schools,Rep Alterations Maint Building,Buildings - Repairs And Maint,GA102,12/4/2013,245579,257.06,REVENUE,SYLVESTER-KEAL LTD,100593
North East Lincolnshire Council,http://statistics.data.gov.uk/id/local-authority/00FC,People And Communities,Schools,Schools,Rep Alterations Maint Building,Buildings - Repairs And Maint,GA102,12/5/2013,245390,350,REVENUE,LINCS ELECTRICAL SERVICES LTD,102044
North East Lincolnshire Council,http://statistics.data.gov.uk/id/local-authority/00FC,People And Communities,Schools,Schools,Cleaning And Domestic Supplies,Refuse Collection,GH104,12/20/2013,249155,747.76,REVENUE,BELL WASTE CONTROL,101433
North East Lincolnshire Council,http://statistics.data.gov.uk/id/local-authority/00FC,People And Communities,Schools,Schools,Direct Transport Costs,Vehicles - Running Costs,JA104,12/16/2013,246591,335,REVENUE,GOLDWING COACHES,112678
North East Lincolnshire Council,http://statistics.data.gov.uk/id/local-authority/00FC,People And Communities,Schools,Schools,Equip / Furniture / Materials,Furniture - Teaching,LA107,12/2/2013,244816,1008.33,REVENUE,RAMSDENS,100751
North East Lincolnshire Council,http://statistics.data.gov.uk/id/local-authority/00FC,People And Communities,Schools,Schools,Equip / Furniture / Materials,Teaching Materials,LA117,12/3/2013,244903,-115.93,REVENUE,ESPO,100745
North East Lincolnshire Council,http://statistics.data.gov.uk/id/local-authority/00FC,People And Communities,Schools,Schools,Equip / Furniture / Materials,Teaching Materials,LA117,12/18/2013,248072,979.29,REVENUE,EAST RIDING OF YORKSHIRE COUNCIL,100654
North East Lincolnshire Council,http://statistics.data.gov.uk/id/local-authority/00FC,People And Communities,Schools,Schools,Equip / Furniture / Materials,Teaching Materials,LA117,12/16/2013,246593,395.6,REVENUE,YORKSHIRE PURCHASING,100573
North East Lincolnshire Council,http://statistics.data.gov.uk/id/local-authority/00FC,People And Communities,Schools,Schools,Catering,Provisions,LB101,12/20/2013,249157,300,REVENUE,G W PRICE LTD,101538
North East Lincolnshire Council,http://statistics.data.gov.uk/id/local-authority/00FC,People And Communities,Schools,Schools,Consultancy,Consultancy - Curriculum,PL102,12/16/2013,247359,660,REVENUE,TEN EDUCATION LTD,119660
North East Lincolnshire Council,http://statistics.data.gov.uk/id/local-authority/00FC,People And Communities,Schools,Schools,Consultancy,Consultancy - Curriculum,PL102,12/16/2013,247356,360,REVENUE,SUSAN EVERATT,103257
North East Lincolnshire Council,http://statistics.data.gov.uk/id/local-authority/00FC,People And Communities,Schools,Schools,Government Grants,Grants,VA101,12/4/2013,245660,5468,REVENUE,GREAT COATES PRIMARY SCHOOL,101104
North East Lincolnshire Council,http://statistics.data.gov.uk/id/local-authority/00FC,People And Communities,Schools,Schools,Government Grants,Grants,VA101,12/4/2013,245670,5607,REVENUE,HUMBERSTON C OF E PRIMARY SCHOOL,101566
North East Lincolnshire Council,http://statistics.data.gov.uk/id/local-authority/00FC,People And Communities,Schools,Schools,Government Grants,Grants,VA101,12/4/2013,245664,5244,REVENUE,SCARTHO INFANTS SCHOOL,120365
North East Lincolnshire Council,http://statistics.data.gov.uk/id/local-authority/00FC,People And Communities,Schools,Schools,Miscellaneous Expenses,Chq Book School Expenditure,LL121,12/16/2013,247329,16592,REVENUE,GREAT COATES PRIMARY SCHOOL,101104
North East Lincolnshire Council,http://statistics.data.gov.uk/id/local-authority/00FC,People And Communities,Schools,Schools,Miscellaneous Expenses,Chq Book School Expenditure,LL121,12/16/2013,247330,228496,REVENUE,GREAT COATES PRIMARY SCHOOL,101104
North East Lincolnshire Council,http://statistics.data.gov.uk/id/local-authority/00FC,People And Communities,Schools,Schools,Miscellaneous Expenses,Chq Book School Expenditure,LL121,12/16/2013,247327,-114,REVENUE,GREAT COATES PRIMARY SCHOOL,101104
North East Lincolnshire Council,http://statistics.data.gov.uk/id/local-authority/00FC,People And Communities,Schools,Schools,Miscellaneous Expenses,Chq Book School Expenditure,LL121,12/16/2013,247337,11312,REVENUE,SCARTHO INFANTS SCHOOL,120365
North East Lincolnshire Council,http://statistics.data.gov.uk/id/local-authority/00FC,People And Communities,Schools,Schools,Miscellaneous Expenses,Chq Book School Expenditure,LL121,12/16/2013,247339,-138,REVENUE,SCARTHO INFANTS SCHOOL,120365
North East Lincolnshire Council,http://statistics.data.gov.uk/id/local-authority/00FC,People And Communities,Schools,Schools,Miscellaneous Expenses,Chq Book School Expenditure,LL121,12/16/2013,247338,173446,REVENUE,SCARTHO INFANTS SCHOOL,120365
North East Lincolnshire Council,http://statistics.data.gov.uk/id/local-authority/00FC,People And Communities,Schools,Schools,Miscellaneous Expenses,Contingency Reserve,LL123,12/13/2013,247308,-15172.5,REVENUE,EDWARD HENEAGE PRIMARY (ACADEMY),111742
North East Lincolnshire Council,http://statistics.data.gov.uk/id/local-authority/00FC,People And Communities,Schools,Schools,Miscellaneous Expenses,Contingency Reserve,LL123,12/13/2013,247309,26530.2,REVENUE,EDWARD HENEAGE PRIMARY (ACADEMY),111742
North East Lincolnshire Council,http://statistics.data.gov.uk/id/local-authority/00FC,People And Communities,Schools,Schools,Miscellaneous Expenses,Contingency Reserve,LL123,12/16/2013,247331,-12184,REVENUE,GREAT COATES PRIMARY SCHOOL,101104
North East Lincolnshire Council,http://statistics.data.gov.uk/id/local-authority/00FC,People And Communities,Schools,Schools,Miscellaneous Expenses,Contingency Reserve,LL123,12/13/2013,247307,34333.2,REVENUE,OASIS ACADEMY NUNSTHORPE,111685
North East Lincolnshire Council,http://statistics.data.gov.uk/id/local-authority/00FC,People And Communities,Schools,Schools,Miscellaneous Expenses,Contingency Reserve,LL123,12/13/2013,247306,-21848.4,REVENUE,OASIS ACADEMY NUNSTHORPE,111685
North East Lincolnshire Council,http://statistics.data.gov.uk/id/local-authority/00FC,People And Communities,Schools,Schools,Miscellaneous Expenses,Contingency Reserve,LL123,12/13/2013,247315,-2982,REVENUE,OLD CLEE PRIMARY ACADEMY,119822
North East Lincolnshire Council,http://statistics.data.gov.uk/id/local-authority/00FC,People And Communities,Schools,Schools,Miscellaneous Expenses,Contingency Reserve,LL123,12/13/2013,247316,37317.6,REVENUE,OLD CLEE PRIMARY ACADEMY,119822
North East Lincolnshire Council,http://statistics.data.gov.uk/id/local-authority/00FC,People And Communities,Schools,Schools,Miscellaneous Expenses,Contingency Reserve,LL123,12/13/2013,247320,-13597.92,REVENUE,REYNOLDS PRIMARY ACADEMY,122175
North East Lincolnshire Council,http://statistics.data.gov.uk/id/local-authority/00FC,People And Communities,Schools,Schools,Miscellaneous Expenses,Contingency Reserve,LL123,12/13/2013,247319,28627.2,REVENUE,REYNOLDS PRIMARY ACADEMY,122175
North East Lincolnshire Council,http://statistics.data.gov.uk/id/local-authority/00FC,People And Communities,Schools,Schools,Miscellaneous Expenses,Contingency Reserve,LL123,12/16/2013,247335,-19492,REVENUE,SCARTHO INFANTS SCHOOL,120365
North East Lincolnshire Council,http://statistics.data.gov.uk/id/local-authority/00FC,People And Communities,Schools,Schools,Miscellaneous Expenses,Contingency Reserve,LL123,12/13/2013,247310,27050.4,REVENUE,ORMISTON SOUTH PARADE ACADEMY,111750
North East Lincolnshire Council,http://statistics.data.gov.uk/id/local-authority/00FC,People And Communities,Schools,Schools,Miscellaneous Expenses,Contingency Reserve,LL123,12/13/2013,247311,-9710.4,REVENUE,ST MARYS CATHOLIC PRIMARY VOLUNTARY ACADEMY,115108
North East Lincolnshire Council,http://statistics.data.gov.uk/id/local-authority/00FC,People And Communities,Schools,Schools,Miscellaneous Expenses,Contingency Reserve,LL123,12/13/2013,247312,15085.8,REVENUE,ST MARYS CATHOLIC PRIMARY VOLUNTARY ACADEMY,115108
North East Lincolnshire Council,http://statistics.data.gov.uk/id/local-authority/00FC,People And Communities,Schools,Schools,Miscellaneous Expenses,Contingency Reserve,LL123,12/13/2013,247302,-13351.8,REVENUE,STRAND COMMUNITY SCHOOL,102060
North East Lincolnshire Council,http://statistics.data.gov.uk/id/local-authority/00FC,People And Communities,Schools,Schools,Miscellaneous Expenses,Contingency Reserve,LL123,12/13/2013,247303,15085.8,REVENUE,STRAND COMMUNITY SCHOOL,102060
North East Lincolnshire Council,http://statistics.data.gov.uk/id/local-authority/00FC,People And Communities,Schools,Schools,Miscellaneous Expenses,Contingency Reserve,LL123,12/13/2013,247313,-4570.02,REVENUE,THRUNSCOE PRIMARY AND NURSERY ACADEMY,118749
North East Lincolnshire Council,http://statistics.data.gov.uk/id/local-authority/00FC,People And Communities,Schools,Schools,Miscellaneous Expenses,Contingency Reserve,LL123,12/13/2013,247314,22197.24,REVENUE,THRUNSCOE PRIMARY AND NURSERY ACADEMY,118749
North East Lincolnshire Council,http://statistics.data.gov.uk/id/local-authority/00FC,People And Communities,Schools,Schools,Miscellaneous Expenses,Contingency Reserve,LL123,12/13/2013,247317,-5248.32,REVENUE,WILLOWS PRIMARY ACADEMY,120478
North East Lincolnshire Council,http://statistics.data.gov.uk/id/local-authority/00FC,People And Communities,Schools,Schools,Miscellaneous Expenses,Contingency Reserve,LL123,12/13/2013,247318,9610.56,REVENUE,WILLOWS PRIMARY ACADEMY,120478
North East Lincolnshire Council,http://statistics.data.gov.uk/id/local-authority/00FC,People And Communities,Schools,Schools,Miscellaneous Expenses,Contingency Reserve,LL123,12/13/2013,247305,-12772.62,REVENUE,YARBOROUGH ACADEMY,111340
North East Lincolnshire Council,http://statistics.data.gov.uk/id/local-authority/00FC,People And Communities,Schools,Schools,Miscellaneous Expenses,Contingency Reserve,LL123,12/13/2013,247304,24005.16,REVENUE,YARBOROUGH ACADEMY,111340
North East Lincolnshire Council,http://statistics.data.gov.uk/id/local-authority/00FC,People And Communities,Childrens Hlth & Family Supp,Integrated Youth Services,Indirect Employee Expenses,Staff Training,EB122,12/3/2013,245372,1400,REVENUE,REBECCA JANE ROSE,119944
North East Lincolnshire Council,http://statistics.data.gov.uk/id/local-authority/00FC,People And Communities,Childrens Hlth & Family Supp,Integrated Youth Services,Contributions To Provisions,Contributions - Other,LK103,12/17/2013,247102,1000,REVENUE,GHETTOPARK LIMITED,123682
North East Lincolnshire Council,http://statistics.data.gov.uk/id/local-authority/00FC,People And Communities,Childrens Hlth & Family Supp,Integrated Youth Services,Contributions To Provisions,Contributions - Third Sector,LK102,12/20/2013,248652,15000,REVENUE,GRIMSBY TOWN FOOTBALL IN THE COMMUNITY,100978
North East Lincolnshire Council,http://statistics.data.gov.uk/id/local-authority/00FC,People And Communities,Childrens Hlth & Family Supp,Integrated Youth Services,Private Contractors,Third Party Prov - Private,PH101,12/16/2013,246561,2455,REVENUE,MILLMAN COACHES,100700
North East Lincolnshire Council,http://statistics.data.gov.uk/id/local-authority/00FC,People And Communities,Childrens Hlth & Family Supp,Integrated Youth Services,Indirect Employee Expenses,Staff Training,EB122,12/4/2013,243932,300,REVENUE,DUKE OF EDINBURGHS AWARD,106049
North East Lincolnshire Council,http://statistics.data.gov.uk/id/local-authority/00FC,People And Communities,Childrens Hlth & Family Supp,Integrated Youth Services,Indirect Employee Expenses,Staff Training,EB122,12/20/2013,249316,2569.28,REVENUE,VOLUNTARY ACTION NORTH EAST LINCOLNSHIRE,103631
North East Lincolnshire Council,http://statistics.data.gov.uk/id/local-authority/00FC,People And Communities,Childrens Hlth & Family Supp,Integrated Youth Services,Cleaning And Domestic Supplies,Cleaning - Services,GH102,12/18/2013,248567,688,REVENUE,FUTURE CLEANING SERVICES LTD,102557
North East Lincolnshire Council,http://statistics.data.gov.uk/id/local-authority/00FC,People And Communities,Childrens Hlth & Family Supp,Integrated Youth Services,Cleaning And Domestic Supplies,Cleaning - Services,GH102,12/20/2013,248651,-286,REVENUE,FUTURE CLEANING SERVICES LTD,102557
North East Lincolnshire Council,http://statistics.data.gov.uk/id/local-authority/00FC,People And Communities,Childrens Hlth & Family Supp,Integrated Youth Services,Private Contractors,Third Party Prov - Private,PH101,12/20/2013,248670,400,REVENUE,REDACTED PERSONAL INFORMATION,REDACTED PERSONAL INFORMATION
North East Lincolnshire Council,http://statistics.data.gov.uk/id/local-authority/00FC,People And Communities,Childrens Hlth & Family Supp,Integrated Youth Services,Catering,Provisions,LB101,12/31/2013,250576,300,REVENUE,REWIND UK,123684
North East Lincolnshire Council,http://statistics.data.gov.uk/id/local-authority/00FC,People And Communities,Childrens Hlth & Family Supp,Integrated Youth Services,Rep Alterations Maint Building,Removal Expenses - Offices,GA108,12/4/2013,243929,1218,REVENUE,W R CULLUM,100811
North East Lincolnshire Council,http://statistics.data.gov.uk/id/local-authority/00FC,People And Communities,Childrens Hlth & Family Supp,Childrens Health Provision,Rents,Rent,GC101,12/2/2013,239054,715,REVENUE,GRIMSBY CENTRAL HALL TRUST,100882
North East Lincolnshire Council,http://statistics.data.gov.uk/id/local-authority/00FC,People And Communities,Childrens Hlth & Family Supp,Childrens Health Provision,Rents,Rent,GC101,12/23/2013,248386,715,REVENUE,GRIMSBY CENTRAL HALL TRUST,100882
North East Lincolnshire Council,http://statistics.data.gov.uk/id/local-authority/00FC,People And Communities,Childrens Hlth & Family Supp,Childrens Health Provision,Equip / Furniture / Materials,Equipment - Purchase,LA101,12/30/2013,226635,-111,REVENUE,SPEECHMARK PUBLISHING LIMITED,101196
North East Lincolnshire Council,http://statistics.data.gov.uk/id/local-authority/00FC,People And Communities,Childrens Hlth & Family Supp,Childrens Health Provision,Equip / Furniture / Materials,Equipment - Purchase,LA101,12/30/2013,226635,-35.99,REVENUE,SPEECHMARK PUBLISHING LIMITED,101196
North East Lincolnshire Council,http://statistics.data.gov.uk/id/local-authority/00FC,People And Communities,Childrens Hlth & Family Supp,Childrens Health Provision,Rep Alterations Maint Building,Client Funded R & M Work,GA123,12/20/2013,248775,-22.5,REVENUE,OCS LIMITED,101291
North East Lincolnshire Council,http://statistics.data.gov.uk/id/local-authority/00FC,People And Communities,Childrens Hlth & Family Supp,Childrens Health Provision,Communications And Computing,Postage,LF111,12/30/2013,249891,250,REVENUE,LYRECO UK LIMITED,101120
North East Lincolnshire Council,http://statistics.data.gov.uk/id/local-authority/00FC,People And Communities,Childrens Hlth & Family Supp,Childrens Health Provision,Private Contractors,Third Party Prov - Private,PH101,12/20/2013,247577,2737,REVENUE,NHS NORTH YORKSHIRE AND HUMBER CSU,121292
North East Lincolnshire Council,http://statistics.data.gov.uk/id/local-authority/00FC,People And Communities,Childrens Hlth & Family Supp,Childrens Health Provision,Private Contractors,Third Party Prov - Private,PH101,12/18/2013,248771,1037,REVENUE,N LINCS & GOOLE HOSPITALS NHS,111074
North East Lincolnshire Council,http://statistics.data.gov.uk/id/local-authority/00FC,People And Communities,Childrens Hlth & Family Supp,Childrens Health Provision,Indirect Employee Expenses,Staff Training,EB122,12/17/2013,247151,350,REVENUE,FOREFRONT TRAINING LTD,105501
North East Lincolnshire Council,http://statistics.data.gov.uk/id/local-authority/00FC,People And Communities,Childrens Hlth & Family Supp,Childrens Health Provision,Private Contractors,Third Party Prov - Private,PH101,12/18/2013,247572,194751,REVENUE,LINCS PARTNERSHIP NHS FOUNDATION TRUST,105021
North East Lincolnshire Council,http://statistics.data.gov.uk/id/local-authority/00FC,People And Communities,Childrens Hlth & Family Supp,Childrens Health Provision,Private Contractors,Third Party Prov - Private,PH101,12/20/2013,248292,1934,REVENUE,LINCS PARTNERSHIP NHS FOUNDATION TRUST,105021
North East Lincolnshire Council,http://statistics.data.gov.uk/id/local-authority/00FC,People And Communities,Childrens Hlth & Family Supp,Childrens Health Provision,Private Contractors,Third Party Prov - Private,PH101,12/16/2013,246153,798,REVENUE,SOUTH LONDON & MAUDSLEY NHS,122297
North East Lincolnshire Council,http://statistics.data.gov.uk/id/local-authority/00FC,People And Communities,Childrens Hlth & Family Supp,Childrens Centre Development,Energy Costs,Electricity,GB102,12/20/2013,248066,-1944.25,REVENUE,NPOWER LIMITED,101414
North East Lincolnshire Council,http://statistics.data.gov.uk/id/local-authority/00FC,People And Communities,Childrens Hlth & Family Supp,Childrens Centre Development,Energy Costs,Electricity,GB102,12/20/2013,248065,-1413.13,REVENUE,NPOWER LIMITED,101414
North East Lincolnshire Council,http://statistics.data.gov.uk/id/local-authority/00FC,People And Communities,Childrens Hlth & Family Supp,Childrens Centre Development,Energy Costs,Electricity,GB102,12/20/2013,248690,2293.43,REVENUE,NPOWER LIMITED,101414
North East Lincolnshire Council,http://statistics.data.gov.uk/id/local-authority/00FC,People And Communities,Childrens Hlth & Family Supp,Childrens Centre Development,Energy Costs,Gas,GB101,12/31/2013,250591,1178,REVENUE,BRITISH GAS TRADING LTD,101507
North East Lincolnshire Council,http://statistics.data.gov.uk/id/local-authority/00FC,People And Communities,Childrens Hlth & Family Supp,Childrens Centre Development,Cleaning And Domestic Supplies,Cleaning - Services,GH102,12/2/2013,244872,529,REVENUE,FUTURE CLEANING SERVICES LTD,102557
North East Lincolnshire Council,http://statistics.data.gov.uk/id/local-authority/00FC,People And Communities,Childrens Hlth & Family Supp,Childrens Centre Development,Cleaning And Domestic Supplies,Refuse Collection,GH104,12/17/2013,247589,336.96,REVENUE,BELL WASTE CONTROL,101433
North East Lincolnshire Council,http://statistics.data.gov.uk/id/local-authority/00FC,People And Communities,Childrens Hlth & Family Supp,Childrens Centre Development,Rents,Service Charge,GC102,12/23/2013,249067,4888.8,REVENUE,STRAND PRIMARY ACADEMY,111862
North East Lincolnshire Council,http://statistics.data.gov.uk/id/local-authority/00FC,People And Communities,Childrens Hlth & Family Supp,Childrens Centre Development,Water Services,Water,GE101,12/23/2013,249162,412.36,REVENUE,ANGLIAN WATER,100508
North East Lincolnshire Council,http://statistics.data.gov.uk/id/local-authority/00FC,People And Communities,Childrens Hlth & Family Supp,Childrens Centre Development,Cleaning And Domestic Supplies,Cleaning - Services,GH102,12/16/2013,246575,541,REVENUE,EASY CLEAN MARSHCHAPEL LTD,104531
North East Lincolnshire Council,http://statistics.data.gov.uk/id/local-authority/00FC,People And Communities,Childrens Hlth & Family Supp,Childrens Centre Development,Other Agencies,Educational Visits,PJ152,12/19/2013,249068,492,REVENUE,CLEETHORPES COAST LIGHT RAILWAY,108415
North East Lincolnshire Council,http://statistics.data.gov.uk/id/local-authority/00FC,People And Communities,Childrens Hlth & Family Supp,Childrens Centre Development,Contributions To Provisions,Contributions - Other,LK103,12/18/2013,248041,2000,REVENUE,FOR UNDER FIVES,101931
North East Lincolnshire Council,http://statistics.data.gov.uk/id/local-authority/00FC,People And Communities,Childrens Hlth & Family Supp,Childrens Centre Development,Private Contractors,Third Party Prov - Private,PH101,12/20/2013,248282,2415.5,REVENUE,LISLE MARSDEN C OF E PRIMARY ACADEMY,107922
North East Lincolnshire Council,http://statistics.data.gov.uk/id/local-authority/00FC,People And Communities,Childrens Hlth & Family Supp,Childrens Centre Development,Private Contractors,Third Party Prov - Private,PH101,12/18/2013,247583,562,REVENUE,N LINCS & GOOLE HOSPITALS NHS,111074
North East Lincolnshire Council,http://statistics.data.gov.uk/id/local-authority/00FC,People And Communities,Childrens Hlth & Family Supp,Childrens Centre Development,Private Contractors,Third Party Prov - Private,PH101,12/20/2013,248688,268.5,REVENUE,WALTHAM KITCHEN,123722
North East Lincolnshire Council,http://statistics.data.gov.uk/id/local-authority/00FC,People And Communities,Childrens Hlth & Family Supp,Childrens Centre Development,Private Contractors,Third Party Prov - Private,PH101,12/16/2013,246576,1298,REVENUE,LUDAFLORS,100547
North East Lincolnshire Council,http://statistics.data.gov.uk/id/local-authority/00FC,People And Communities,Childrens Hlth & Family Supp,Childrens Centre Development,Energy Costs,Electricity,GB102,12/16/2013,246157,720.21,REVENUE,NPOWER LIMITED,101414
North East Lincolnshire Council,http://statistics.data.gov.uk/id/local-authority/00FC,People And Communities,Childrens Hlth & Family Supp,Childrens Centre Development,Energy Costs,Electricity,GB102,12/17/2013,246162,705.57,REVENUE,NPOWER LIMITED,101414
North East Lincolnshire Council,http://statistics.data.gov.uk/id/local-authority/00FC,People And Communities,Childrens Hlth & Family Supp,Childrens Centre Development,Energy Costs,Electricity,GB102,12/17/2013,246366,-686.82,REVENUE,NPOWER LIMITED,101414
North East Lincolnshire Council,http://statistics.data.gov.uk/id/local-authority/00FC,People And Communities,Childrens Hlth & Family Supp,Childrens Centre Development,Cleaning And Domestic Supplies,Cleaning - Services,GH102,12/17/2013,247647,1274.04,REVENUE,FUTURE CLEANING SERVICES LTD,102557
North East Lincolnshire Council,http://statistics.data.gov.uk/id/local-authority/00FC,People And Communities,Childrens Hlth & Family Supp,Childrens Centre Development,Cleaning And Domestic Supplies,Refuse Collection,GH104,12/18/2013,247648,358.5,REVENUE,BELL WASTE CONTROL,101433
North East Lincolnshire Council,http://statistics.data.gov.uk/id/local-authority/00FC,People And Communities,Childrens Hlth & Family Supp,Childrens Centre Development,Print Stationery / Gen Off Exp,Printing And Stationery,LD103,12/16/2013,246365,-23.79,REVENUE,LYRECO UK LIMITED,101120
North East Lincolnshire Council,http://statistics.data.gov.uk/id/local-authority/00FC,People And Communities,Childrens Hlth & Family Supp,Childrens Centre Development,Print Stationery / Gen Off Exp,Printing And Stationery,LD103,12/16/2013,246365,-1.9,REVENUE,LYRECO UK LIMITED,101120
North East Lincolnshire Council,http://statistics.data.gov.uk/id/local-authority/00FC,People And Communities,Childrens Hlth & Family Supp,Childrens Centre Development,Print Stationery / Gen Off Exp,Printing And Stationery,LD103,12/16/2013,246365,-5.16,REVENUE,LYRECO UK LIMITED,101120
North East Lincolnshire Council,http://statistics.data.gov.uk/id/local-authority/00FC,People And Communities,Childrens Hlth & Family Supp,Childrens Centre Development,Other Agencies,Child Care Payments,PJ104,12/18/2013,247651,347.06,REVENUE,FOR UNDER FIVES,101931
North East Lincolnshire Council,http://statistics.data.gov.uk/id/local-authority/00FC,People And Communities,Childrens Hlth & Family Supp,Childrens Centre Development,Other Agencies,Child Care Payments,PJ104,12/2/2013,244918,520.33,REVENUE,FOR UNDER FIVES,101931
North East Lincolnshire Council,http://statistics.data.gov.uk/id/local-authority/00FC,People And Communities,Childrens Hlth & Family Supp,Childrens Centre Development,Other Agencies,Child Care Payments,PJ104,12/5/2013,245625,348.14,REVENUE,FOR UNDER FIVES,101931
North East Lincolnshire Council,http://statistics.data.gov.uk/id/local-authority/00FC,People And Communities,Childrens Hlth & Family Supp,Childrens Centre Development,Other Agencies,Further Ed Emp & Training,PJ130,12/20/2013,248609,300,REVENUE,FRANKLIN COLLEGE,101073
North East Lincolnshire Council,http://statistics.data.gov.uk/id/local-authority/00FC,People And Communities,Childrens Hlth & Family Supp,Childrens Centre Development,Energy Costs,Electricity,GB102,12/18/2013,248110,1033.62,REVENUE,N POWER,101599
North East Lincolnshire Council,http://statistics.data.gov.uk/id/local-authority/00FC,People And Communities,Childrens Hlth & Family Supp,Childrens Centre Development,Equip / Furniture / Materials,Non-Teaching Resources,LA118,12/30/2013,249912,296.99,REVENUE,COST CUTTERS,101425
North East Lincolnshire Council,http://statistics.data.gov.uk/id/local-authority/00FC,People And Communities,Childrens Hlth & Family Supp,Childrens Centre Development,Catering,Provisions,LB101,12/3/2013,244859,500,REVENUE,TESCO STORES LIMITED,102576
North East Lincolnshire Council,http://statistics.data.gov.uk/id/local-authority/00FC,People And Communities,Childrens Hlth & Family Supp,Childrens Centre Development,Energy Costs,Electricity,GB102,12/18/2013,247569,830.36,REVENUE,EASTFIELD PRIMARY ACADEMY,121907
North East Lincolnshire Council,http://statistics.data.gov.uk/id/local-authority/00FC,People And Communities,Childrens Hlth & Family Supp,Childrens Centre Development,Equip / Furniture / Materials,Equipment - Purchase,LA101,12/16/2013,246320,389.99,REVENUE,LYRECO UK LIMITED,101120
North East Lincolnshire Council,http://statistics.data.gov.uk/id/local-authority/00FC,People And Communities,Childrens Hlth & Family Supp,Childrens Centre Development,Other Agencies,Child Care Payments,PJ104,12/16/2013,245168,940,REVENUE,CHAPPILLS DAY NURSERY,100998
North East Lincolnshire Council,http://statistics.data.gov.uk/id/local-authority/00FC,People And Communities,Childrens Hlth & Family Supp,Childrens Centre Development,Other Agencies,Educational Visits,PJ152,12/17/2013,248042,300,REVENUE,SAM  SAFARIS,111015
North East Lincolnshire Council,http://statistics.data.gov.uk/id/local-authority/00FC,People And Communities,Childrens Hlth & Family Supp,Childrens Centre Development,Other Agencies,Further Ed Emp & Training,PJ130,12/11/2013,246539,420,REVENUE,1ST AID MATTERS,103999
North East Lincolnshire Council,http://statistics.data.gov.uk/id/local-authority/00FC,People And Communities,Childrens Hlth & Family Supp,Childrens Centre Development,Direct Employee Expenses,Agency Staff,EA105,12/16/2013,246149,1028.35,REVENUE,FUTURE CLEANING SERVICES LTD,102557
North East Lincolnshire Council,http://statistics.data.gov.uk/id/local-authority/00FC,People And Communities,Childrens Hlth & Family Supp,Childrens Centre Development,Equip / Furniture / Materials,Furniture - Purchase,LA105,12/11/2013,246182,559.02,REVENUE,LISLE MARSDEN C OF E PRIMARY ACADEMY,107922
North East Lincolnshire Council,http://statistics.data.gov.uk/id/local-authority/00FC,People And Communities,Childrens Hlth & Family Supp,Childrens Centre Development,Rep Alterations Maint Building,Security Alarms And Cctv,GA101,12/11/2013,246189,426.73,REVENUE,WILLOWS PRIMARY ACADEMY,120478
North East Lincolnshire Council,http://statistics.data.gov.uk/id/local-authority/00FC,People And Communities,Childrens Hlth & Family Supp,Childrens Centre Development,Energy Costs,Electricity,GB102,12/11/2013,246184,1428.49,REVENUE,WILLOWS PRIMARY ACADEMY,120478
North East Lincolnshire Council,http://statistics.data.gov.uk/id/local-authority/00FC,People And Communities,Childrens Hlth & Family Supp,Childrens Centre Development,Water Services,Water,GE101,12/11/2013,246185,482.81,REVENUE,WILLOWS PRIMARY ACADEMY,120478
North East Lincolnshire Council,http://statistics.data.gov.uk/id/local-authority/00FC,People And Communities,Childrens Hlth & Family Supp,Childrens Centre Development,Cleaning And Domestic Supplies,Cleaning - Services,GH102,12/16/2013,246166,997.28,REVENUE,WILLOWS PRIMARY ACADEMY,120478
North East Lincolnshire Council,http://statistics.data.gov.uk/id/local-authority/00FC,People And Communities,Childrens Hlth & Family Supp,Childrens Centre Development,Cleaning And Domestic Supplies,Cleaning - Services,GH102,12/5/2013,245633,690.08,REVENUE,FUTURE CLEANING SERVICES LTD,102557
North East Lincolnshire Council,http://statistics.data.gov.uk/id/local-authority/00FC,People And Communities,Childrens Hlth & Family Supp,Childrens Centre Development,Cleaning And Domestic Supplies,Refuse Collection,GH104,12/23/2013,249214,-119.15,REVENUE,BIFFA WASTE SERVICES LTD,100515
North East Lincolnshire Council,http://statistics.data.gov.uk/id/local-authority/00FC,People And Communities,Childrens Hlth & Family Supp,Childrens Centre Development,Cleaning And Domestic Supplies,Refuse Collection,GH104,12/16/2013,246187,445.3,REVENUE,WILLOWS PRIMARY ACADEMY,120478
North East Lincolnshire Council,http://statistics.data.gov.uk/id/local-authority/00FC,People And Communities,Childrens Hlth & Family Supp,Childrens Centre Development,Cleaning And Domestic Supplies,Refuse Collection,GH104,12/20/2013,247584,324,REVENUE,BELL WASTE CONTROL,101433
North East Lincolnshire Council,http://statistics.data.gov.uk/id/local-authority/00FC,People And Communities,Childrens Hlth & Family Supp,Childrens Centre Development,Rep Alterations Maint Building,Buildings - Repairs And Maint,GA102,12/16/2013,246152,292.3,REVENUE,HUMBERSIDE FIRE & RESCUE SERVICE,100667
North East Lincolnshire Council,http://statistics.data.gov.uk/id/local-authority/00FC,People And Communities,Childrens Hlth & Family Supp,Childrens Centre Development,Energy Costs,Electricity,GB102,12/16/2013,247541,403.27,REVENUE,OLD CLEE PRIMARY ACADEMY,119822
North East Lincolnshire Council,http://statistics.data.gov.uk/id/local-authority/00FC,People And Communities,Childrens Hlth & Family Supp,Childrens Centre Development,Energy Costs,Electricity,GB102,12/16/2013,247564,335.02,REVENUE,OLD CLEE PRIMARY ACADEMY,119822
North East Lincolnshire Council,http://statistics.data.gov.uk/id/local-authority/00FC,People And Communities,Childrens Hlth & Family Supp,Childrens Centre Development,Energy Costs,Electricity,GB102,12/16/2013,247549,307.91,REVENUE,OLD CLEE PRIMARY ACADEMY,119822
North East Lincolnshire Council,http://statistics.data.gov.uk/id/local-authority/00FC,People And Communities,Childrens Hlth & Family Supp,Childrens Centre Development,Energy Costs,Gas,GB101,12/16/2013,247536,451.61,REVENUE,OLD CLEE PRIMARY ACADEMY,119822
North East Lincolnshire Council,http://statistics.data.gov.uk/id/local-authority/00FC,People And Communities,Childrens Hlth & Family Supp,Childrens Centre Development,Water Services,Water,GE101,12/16/2013,247535,351.87,REVENUE,OLD CLEE PRIMARY ACADEMY,119822
North East Lincolnshire Council,http://statistics.data.gov.uk/id/local-authority/00FC,People And Communities,Childrens Hlth & Family Supp,Childrens Centre Development,Cleaning And Domestic Supplies,Cleaning - Services,GH102,12/16/2013,247543,11276.52,REVENUE,OLD CLEE PRIMARY ACADEMY,119822
North East Lincolnshire Council,http://statistics.data.gov.uk/id/local-authority/00FC,People And Communities,Childrens Hlth & Family Supp,Childrens Centre Development,Equip / Furniture / Materials,Equipment - Purchase,LA101,12/30/2013,249082,270,REVENUE,MACDOUGALL'S BLINDS LTD,110667
North East Lincolnshire Council,http://statistics.data.gov.uk/id/local-authority/00FC,People And Communities,Childrens Hlth & Family Supp,Head Of Child Hlth - Fam Supp,Rents,Service Charge,GC102,12/2/2013,244818,5263.35,REVENUE,MEDICX PROPERTIES VII LTD,121936
North East Lincolnshire Council,http://statistics.data.gov.uk/id/local-authority/00FC,People And Communities,Childrens Hlth & Family Supp,Head Of Child Hlth - Fam Supp,Rents,Service Charge,GC102,12/20/2013,249044,2752.4,REVENUE,WEELSBY VIEW HEALTH CENTRE,101761
North East Lincolnshire Council,http://statistics.data.gov.uk/id/local-authority/00FC,People And Communities,Childrens Hlth & Family Supp,Palliative / Complex Care,Private Contractors,Third Party Prov - Private,PH101,12/16/2013,246989,-246.74,REVENUE,INDEPENDENT COMMUNITY CARE MANAGEMENT LTD,105477
North East Lincolnshire Council,http://statistics.data.gov.uk/id/local-authority/00FC,People And Communities,Childrens Hlth & Family Supp,Palliative / Complex Care,Private Contractors,Third Party Prov - Private,PH101,12/18/2013,248056,-740.22,REVENUE,INDEPENDENT COMMUNITY CARE MANAGEMENT LTD,105477
North East Lincolnshire Council,http://statistics.data.gov.uk/id/local-authority/00FC,People And Communities,Childrens Hlth & Family Supp,Palliative / Complex Care,Private Contractors,Third Party Prov - Private,PH101,12/23/2013,247581,3092.72,REVENUE,INDEPENDENT COMMUNITY CARE MANAGEMENT LTD,105477
North East Lincolnshire Council,http://statistics.data.gov.uk/id/local-authority/00FC,People And Communities,Childrens Hlth & Family Supp,Palliative / Complex Care,Private Contractors,Third Party Prov - Private,PH101,12/16/2013,247169,3092.72,REVENUE,INDEPENDENT COMMUNITY CARE MANAGEMENT LTD,105477
North East Lincolnshire Council,http://statistics.data.gov.uk/id/local-authority/00FC,People And Communities,Childrens Hlth & Family Supp,Palliative / Complex Care,Private Contractors,Third Party Prov - Private,PH101,12/18/2013,247576,6349.27,REVENUE,INDEPENDENT COMMUNITY CARE MANAGEMENT LTD,105477
North East Lincolnshire Council,http://statistics.data.gov.uk/id/local-authority/00FC,People And Communities,Childrens Hlth & Family Supp,Palliative / Complex Care,Private Contractors,Third Party Prov - Private,PH101,12/16/2013,247167,6349.27,REVENUE,INDEPENDENT COMMUNITY CARE MANAGEMENT LTD,105477
North East Lincolnshire Council,http://statistics.data.gov.uk/id/local-authority/00FC,People And Communities,Childrens Hlth & Family Supp,Palliative / Complex Care,Private Contractors,Third Party Prov - Private,PH101,12/16/2013,230183,-626.34,REVENUE,INDEPENDENT COMMUNITY CARE MANAGEMENT LTD,105477
North East Lincolnshire Council,http://statistics.data.gov.uk/id/local-authority/00FC,People And Communities,Childrens Hlth & Family Supp,Palliative / Complex Care,Private Contractors,Third Party Prov - Private,PH101,12/16/2013,246155,2250,REVENUE,ST ANDREWS HOSPICE,103069
North East Lincolnshire Council,http://statistics.data.gov.uk/id/local-authority/00FC,People And Communities,Childrens Hlth & Family Supp,Palliative / Complex Care,Private Contractors,Third Party Prov - Private,PH101,12/16/2013,246154,1800,REVENUE,ST ANDREWS HOSPICE,103069
North East Lincolnshire Council,http://statistics.data.gov.uk/id/local-authority/00FC,People And Communities,Childrens Hlth & Family Supp,Palliative / Complex Care,Private Contractors,Third Party Prov - Private,PH101,12/11/2013,246158,1350,REVENUE,ST ANDREWS HOSPICE,103069
North East Lincolnshire Council,http://statistics.data.gov.uk/id/local-authority/00FC,People And Communities,Improved Health,Supporting People,Other Agencies,Third Pp - Block Gross,PJ103,12/20/2013,249291,REDACTED COMMERCIALLY SENSITIVE,REVENUE,DOORSTEP,100310
North East Lincolnshire Council,http://statistics.data.gov.uk/id/local-authority/00FC,People And Communities,Improved Health,Supporting People,Other Agencies,Third Pp - Block Gross,PJ103,12/20/2013,249289,REDACTED COMMERCIALLY SENSITIVE,REVENUE,DOORSTEP,100310
North East Lincolnshire Council,http://statistics.data.gov.uk/id/local-authority/00FC,People And Communities,Improved Health,Supporting People,Other Agencies,Third Pp - Block Gross,PJ103,12/20/2013,249293,REDACTED COMMERCIALLY SENSITIVE,REVENUE,DOORSTEP,100310
North East Lincolnshire Council,http://statistics.data.gov.uk/id/local-authority/00FC,People And Communities,Improved Health,Supporting People,Other Agencies,Third Pp - Block Gross,PJ103,12/20/2013,249303,REDACTED COMMERCIALLY SENSITIVE,REVENUE,YORK HOUSING ASSOCIATION LTD,100341
North East Lincolnshire Council,http://statistics.data.gov.uk/id/local-authority/00FC,People And Communities,Improved Health,Supporting People,Other Agencies,Third Pp - Block Gross,PJ103,12/20/2013,249287,REDACTED COMMERCIALLY SENSITIVE,REVENUE,THE SALVATION ARMY,100309
North East Lincolnshire Council,http://statistics.data.gov.uk/id/local-authority/00FC,People And Communities,Improved Health,Supporting People,Other Agencies,Third Pp - Block Gross,PJ103,12/20/2013,249288,REDACTED COMMERCIALLY SENSITIVE,REVENUE,THE SALVATION ARMY,100309
North East Lincolnshire Council,http://statistics.data.gov.uk/id/local-authority/00FC,People And Communities,Improved Health,Supporting People,Other Agencies,Third Pp - Block Gross,PJ103,12/20/2013,249297,REDACTED COMMERCIALLY SENSITIVE,REVENUE,HOUSING 21,100320
North East Lincolnshire Council,http://statistics.data.gov.uk/id/local-authority/00FC,People And Communities,Improved Health,Supporting People,Other Agencies,Third Pp - Block Gross,PJ103,12/20/2013,249296,REDACTED COMMERCIALLY SENSITIVE,REVENUE,CARE LTD,100314
North East Lincolnshire Council,http://statistics.data.gov.uk/id/local-authority/00FC,People And Communities,Improved Health,Supporting People,Other Agencies,Third Pp - Block Gross,PJ103,12/20/2013,249301,REDACTED COMMERCIALLY SENSITIVE,REVENUE,ANCHOR TRUST,100327
North East Lincolnshire Council,http://statistics.data.gov.uk/id/local-authority/00FC,People And Communities,Improved Health,Supporting People,Other Agencies,Third Pp - Block Gross,PJ103,12/20/2013,249299,REDACTED COMMERCIALLY SENSITIVE,REVENUE,WOMENS AID,100326
North East Lincolnshire Council,http://statistics.data.gov.uk/id/local-authority/00FC,People And Communities,Improved Health,Supporting People,Other Agencies,Third Pp - Block Gross,PJ103,12/20/2013,249284,REDACTED COMMERCIALLY SENSITIVE,REVENUE,GRIMSBY AND CLEETHORPES YMCA,100305
North East Lincolnshire Council,http://statistics.data.gov.uk/id/local-authority/00FC,People And Communities,Improved Health,Supporting People,Other Agencies,Third Pp - Block Gross,PJ103,12/20/2013,249307,REDACTED COMMERCIALLY SENSITIVE,REVENUE,LONGHURST AND HAVELOK HOMES LTD,100342
North East Lincolnshire Council,http://statistics.data.gov.uk/id/local-authority/00FC,People And Communities,Improved Health,Supporting People,Other Agencies,Third Pp - Block Gross,PJ103,12/20/2013,249283,REDACTED COMMERCIALLY SENSITIVE,REVENUE,GRIMSBY AND CLEETHORPES YMCA,100305
North East Lincolnshire Council,http://statistics.data.gov.uk/id/local-authority/00FC,People And Communities,Improved Health,Supporting People,Other Agencies,Third Pp - Block Gross,PJ103,12/20/2013,249312,REDACTED COMMERCIALLY SENSITIVE,REVENUE,LONGHURST AND HAVELOK HOMES LTD,100342
North East Lincolnshire Council,http://statistics.data.gov.uk/id/local-authority/00FC,People And Communities,Improved Health,Supporting People,Other Agencies,Third Pp - Block Gross,PJ103,12/20/2013,249306,REDACTED COMMERCIALLY SENSITIVE,REVENUE,LONGHURST AND HAVELOK HOMES LTD,100342
North East Lincolnshire Council,http://statistics.data.gov.uk/id/local-authority/00FC,People And Communities,Improved Health,Supporting People,Other Agencies,Third Pp - Block Gross,PJ103,12/20/2013,249308,REDACTED COMMERCIALLY SENSITIVE,REVENUE,LONGHURST AND HAVELOK HOMES LTD,100342
North East Lincolnshire Council,http://statistics.data.gov.uk/id/local-authority/00FC,People And Communities,Improved Health,Supporting People,Other Agencies,Third Pp - Block Gross,PJ103,12/20/2013,249305,REDACTED COMMERCIALLY SENSITIVE,REVENUE,LONGHURST AND HAVELOK HOMES LTD,100342
North East Lincolnshire Council,http://statistics.data.gov.uk/id/local-authority/00FC,People And Communities,Improved Health,Supporting People,Other Agencies,Third Pp - Block Gross,PJ103,12/20/2013,249310,REDACTED COMMERCIALLY SENSITIVE,REVENUE,LONGHURST AND HAVELOK HOMES LTD,100342
North East Lincolnshire Council,http://statistics.data.gov.uk/id/local-authority/00FC,People And Communities,Improved Health,Supporting People,Other Agencies,Third Pp - Block Gross,PJ103,12/20/2013,249304,REDACTED COMMERCIALLY SENSITIVE,REVENUE,LONGHURST AND HAVELOK HOMES LTD,100342
North East Lincolnshire Council,http://statistics.data.gov.uk/id/local-authority/00FC,People And Communities,Improved Health,Supporting People,Other Agencies,Third Pp - Block Gross,PJ103,12/20/2013,249311,REDACTED COMMERCIALLY SENSITIVE,REVENUE,LONGHURST AND HAVELOK HOMES LTD,100342
North East Lincolnshire Council,http://statistics.data.gov.uk/id/local-authority/00FC,People And Communities,Improved Health,Supporting People,Other Agencies,Third Pp - Block Gross,PJ103,12/20/2013,249298,REDACTED COMMERCIALLY SENSITIVE,REVENUE,HOUSING 21,100320
North East Lincolnshire Council,http://statistics.data.gov.uk/id/local-authority/00FC,People And Communities,Improved Health,Supporting People,Other Agencies,Third Pp - Block Gross,PJ103,12/20/2013,249313,REDACTED COMMERCIALLY SENSITIVE,REVENUE,OPEN DOOR (HEALTH) LTD,103147
North East Lincolnshire Council,http://statistics.data.gov.uk/id/local-authority/00FC,People And Communities,Improved Health,Supporting People,Other Agencies,Third Pp - Block Gross,PJ103,12/20/2013,249309,REDACTED COMMERCIALLY SENSITIVE,REVENUE,LONGHURST AND HAVELOK HOMES LTD,100342
North East Lincolnshire Council,http://statistics.data.gov.uk/id/local-authority/00FC,People And Communities,Improved Health,Supporting People,Other Agencies,Third Pp - Block Gross,PJ103,12/20/2013,249300,REDACTED COMMERCIALLY SENSITIVE,REVENUE,WOMENS AID,100326
North East Lincolnshire Council,http://statistics.data.gov.uk/id/local-authority/00FC,People And Communities,Improved Health,Supporting People,Other Agencies,Third Pp - Block Gross,PJ103,12/20/2013,249314,REDACTED COMMERCIALLY SENSITIVE,REVENUE,SANCTUARY HOUSING ASSOCIATION,103289
North East Lincolnshire Council,http://statistics.data.gov.uk/id/local-authority/00FC,People And Communities,Improved Health,Supporting People,Other Agencies,Third Pp - Block Gross,PJ103,12/20/2013,249315,REDACTED COMMERCIALLY SENSITIVE,REVENUE,SANCTUARY HOUSING ASSOCIATION,103289
North East Lincolnshire Council,http://statistics.data.gov.uk/id/local-authority/00FC,People And Communities,Improved Health,Supporting People,Other Agencies,Third Pp - Block Gross,PJ103,12/20/2013,249290,REDACTED COMMERCIALLY SENSITIVE,REVENUE,DOORSTEP,100310
North East Lincolnshire Council,http://statistics.data.gov.uk/id/local-authority/00FC,People And Communities,Improved Health,Supporting People,Other Agencies,Third Pp - Block Gross,PJ103,12/20/2013,249292,REDACTED COMMERCIALLY SENSITIVE,REVENUE,DOORSTEP,100310
North East Lincolnshire Council,http://statistics.data.gov.uk/id/local-authority/00FC,People And Communities,Improved Health,Supporting People,Other Agencies,Third Pp - Block Gross,PJ103,12/20/2013,249294,REDACTED COMMERCIALLY SENSITIVE,REVENUE,HUMBERCARE LTD,100311
North East Lincolnshire Council,http://statistics.data.gov.uk/id/local-authority/00FC,People And Communities,Improved Health,Supporting People,Other Agencies,Third Pp - Block Gross,PJ103,12/20/2013,249295,REDACTED COMMERCIALLY SENSITIVE,REVENUE,HUMBERCARE LTD,100311
North East Lincolnshire Council,http://statistics.data.gov.uk/id/local-authority/00FC,People And Communities,Improved Health,Supporting People,Other Agencies,Third Pp - Block Subsidy,PJ102,12/20/2013,249318,REDACTED COMMERCIALLY SENSITIVE,REVENUE,HUMBERCARE LTD,100311
North East Lincolnshire Council,http://statistics.data.gov.uk/id/local-authority/00FC,People And Communities,Improved Health,Supporting People,Other Agencies,Third Pp - Block Subsidy,PJ102,12/20/2013,249319,REDACTED COMMERCIALLY SENSITIVE,REVENUE,HICA,100319
North East Lincolnshire Council,http://statistics.data.gov.uk/id/local-authority/00FC,People And Communities,Improved Health,Supporting People,Other Agencies,Third Pp - Block Subsidy,PJ102,12/20/2013,249320,REDACTED COMMERCIALLY SENSITIVE,REVENUE,HOUSING & SUPPORT SOLUTIONS,100321
North East Lincolnshire Council,http://statistics.data.gov.uk/id/local-authority/00FC,People And Communities,Improved Health,Supporting People,Other Agencies,Third Pp - Block Subsidy,PJ102,12/20/2013,249322,REDACTED COMMERCIALLY SENSITIVE,REVENUE,LONGHURST AND HAVELOK HOMES LTD,100342
North East Lincolnshire Council,http://statistics.data.gov.uk/id/local-authority/00FC,People And Communities,Improved Health,Supporting People,Other Agencies,Third Pp - Block Subsidy,PJ102,12/20/2013,249323,REDACTED COMMERCIALLY SENSITIVE,REVENUE,NAVIGO,104262
North East Lincolnshire Council,http://statistics.data.gov.uk/id/local-authority/00FC,People And Communities,Improved Health,Supporting People,Other Agencies,Third Pp - Block Subsidy,PJ102,12/20/2013,249324,REDACTED COMMERCIALLY SENSITIVE,REVENUE,CARE PLUS GROUP,106467
North East Lincolnshire Council,http://statistics.data.gov.uk/id/local-authority/00FC,People And Communities,Improved Health,Supporting People,Other Agencies,Third Pp - Block Subsidy,PJ102,12/20/2013,249325,REDACTED COMMERCIALLY SENSITIVE,REVENUE,CREATIVE SUPPORT LTD,107198
North East Lincolnshire Council,http://statistics.data.gov.uk/id/local-authority/00FC,People And Communities,Improved Health,Improved Health Operational,Equip / Furniture / Materials,Health & Safety Supplies,LA116,12/16/2013,246214,1180,REVENUE,CLARK & PARTNERS LTD,101269
North East Lincolnshire Council,http://statistics.data.gov.uk/id/local-authority/00FC,People And Communities,Improved Health,Improved Health Operational,Equip / Furniture / Materials,Health & Safety Supplies,LA116,12/16/2013,246216,405,REVENUE,DRIVE MEDICAL,101627
North East Lincolnshire Council,http://statistics.data.gov.uk/id/local-authority/00FC,People And Communities,Improved Health,Improved Health Operational,Equip / Furniture / Materials,Health & Safety Supplies,LA116,12/30/2013,249906,378,REVENUE,DRIVE MEDICAL,101627
North East Lincolnshire Council,http://statistics.data.gov.uk/id/local-authority/00FC,People And Communities,Improved Health,Improved Health Operational,Equip / Furniture / Materials,Health & Safety Supplies,LA116,12/18/2013,248035,461,REVENUE,LISCLARE LTD,101785
North East Lincolnshire Council,http://statistics.data.gov.uk/id/local-authority/00FC,People And Communities,Improved Health,Improved Health Operational,Equip / Furniture / Materials,Health & Safety Supplies,LA116,12/20/2013,248353,381.2,REVENUE,PRISM MEDICAL UK,119507
North East Lincolnshire Council,http://statistics.data.gov.uk/id/local-authority/00FC,People And Communities,Improved Health,Improved Health Operational,Equip / Furniture / Materials,Health & Safety Supplies,LA116,12/20/2013,248353,265,REVENUE,PRISM MEDICAL UK,119507
North East Lincolnshire Council,http://statistics.data.gov.uk/id/local-authority/00FC,People And Communities,Improved Health,Improved Health Operational,Equip / Furniture / Materials,Health & Safety Supplies,LA116,12/5/2013,244604,290,REVENUE,LISCLARE LTD,101785
North East Lincolnshire Council,http://statistics.data.gov.uk/id/local-authority/00FC,People And Communities,Improved Health,Improved Health Operational,Equip / Furniture / Materials,Health & Safety Supplies,LA116,12/23/2013,248047,765,REVENUE,PORTARAMP UK LTD,101568
North East Lincolnshire Council,http://statistics.data.gov.uk/id/local-authority/00FC,People And Communities,Improved Health,Improved Health Operational,Equip / Furniture / Materials,Health & Safety Supplies,LA116,12/23/2013,248047,885,REVENUE,PORTARAMP UK LTD,101568
North East Lincolnshire Council,http://statistics.data.gov.uk/id/local-authority/00FC,People And Communities,Improved Health,Improved Health Operational,Equip / Furniture / Materials,Health & Safety Supplies,LA116,12/5/2013,245620,456.3,REVENUE,SUNRISE MEDICAL LTD,100990
North East Lincolnshire Council,http://statistics.data.gov.uk/id/local-authority/00FC,People And Communities,Improved Health,Improved Health Operational,Equip / Furniture / Materials,Health & Safety Supplies,LA116,12/30/2013,249898,456.3,REVENUE,SUNRISE MEDICAL LTD,100990
North East Lincolnshire Council,http://statistics.data.gov.uk/id/local-authority/00FC,People And Communities,Improved Health,Improved Health Operational,Equip / Furniture / Materials,Health & Safety Supplies,LA116,12/18/2013,248019,286.25,REVENUE,PATTERSON MEDICAL LTD,104008
North East Lincolnshire Council,http://statistics.data.gov.uk/id/local-authority/00FC,People And Communities,Improved Health,Improved Health Operational,Equip / Furniture / Materials,Health & Safety Supplies,LA116,12/18/2013,247136,3955,REVENUE,APOLLO HEALTHCARE TECHNOLOGIES LTD,122614
North East Lincolnshire Council,http://statistics.data.gov.uk/id/local-authority/00FC,People And Communities,Improved Health,Improved Health Operational,Equip / Furniture / Materials,Health & Safety Supplies,LA116,12/16/2013,246167,390,REVENUE,AQUAJOY BATHLIFTS LTD,101315
North East Lincolnshire Council,http://statistics.data.gov.uk/id/local-authority/00FC,People And Communities,Improved Health,Improved Health Operational,Equip / Furniture / Materials,Health & Safety Supplies,LA116,12/16/2013,246167,890,REVENUE,AQUAJOY BATHLIFTS LTD,101315
North East Lincolnshire Council,http://statistics.data.gov.uk/id/local-authority/00FC,People And Communities,Improved Health,Improved Health Operational,Equip / Furniture / Materials,Health & Safety Supplies,LA116,12/23/2013,249128,253,REVENUE,AIDAPT BATHROOMS LTD,101164
North East Lincolnshire Council,http://statistics.data.gov.uk/id/local-authority/00FC,People And Communities,Improved Health,Improved Health Operational,Equip / Furniture / Materials,Health & Safety Supplies,LA116,12/2/2013,244843,253.49,REVENUE,BC ELECTRIC LTD,108240
North East Lincolnshire Council,http://statistics.data.gov.uk/id/local-authority/00FC,People And Communities,Improved Health,Improved Health Operational,Equip / Furniture / Materials,Health & Safety Supplies,LA116,12/18/2013,248235,727.67,REVENUE,HUGH STEEPER LIMITED,101616
North East Lincolnshire Council,http://statistics.data.gov.uk/id/local-authority/00FC,People And Communities,Improved Health,Improved Health Operational,Equip / Furniture / Materials,Health & Safety Supplies,LA116,12/16/2013,246950,402.5,REVENUE,NOTTINGHAM REHAB LIMITED,101715
North East Lincolnshire Council,http://statistics.data.gov.uk/id/local-authority/00FC,People And Communities,Improved Health,Improved Health Operational,Equip / Furniture / Materials,Health & Safety Supplies,LA116,12/20/2013,249095,337,REVENUE,RBF HEALTHCARE,101308
North East Lincolnshire Council,http://statistics.data.gov.uk/id/local-authority/00FC,People And Communities,Improved Health,Improved Health Operational,Equip / Furniture / Materials,Health & Safety Supplies,LA116,12/10/2013,241605,399,REVENUE,KEY MOBILITY,101985
North East Lincolnshire Council,http://statistics.data.gov.uk/id/local-authority/00FC,People And Communities,Improved Health,Improved Health Operational,Equip / Furniture / Materials,Health & Safety Supplies,LA116,12/23/2013,249128,561,REVENUE,AIDAPT BATHROOMS LTD,101164
North East Lincolnshire Council,http://statistics.data.gov.uk/id/local-authority/00FC,People And Communities,Improved Health,Improved Health Operational,Equip / Furniture / Materials,Health & Safety Supplies,LA116,12/5/2013,245669,300,REVENUE,SILVALEA,101260
North East Lincolnshire Council,http://statistics.data.gov.uk/id/local-authority/00FC,People And Communities,Improved Health,Improved Health Operational,Equip / Furniture / Materials,Health & Safety Supplies,LA116,12/16/2013,246392,1530.34,REVENUE,PRISM MEDICAL UK,119507
North East Lincolnshire Council,http://statistics.data.gov.uk/id/local-authority/00FC,People And Communities,Improved Health,Improved Health Operational,Equip / Furniture / Materials,Health & Safety Supplies,LA116,12/30/2013,249921,2750,REVENUE,ULTIMATE CARE GROUP LTD,103469
North East Lincolnshire Council,http://statistics.data.gov.uk/id/local-authority/00FC,People And Communities,Improved Health,Improved Health Operational,Indirect Employee Expenses,Pension P/Ment Early Retire,EB108,12/4/2013,245604,7690.02,REVENUE,EAST RIDING OF YORKSHIRE,100377
North East Lincolnshire Council,http://statistics.data.gov.uk/id/local-authority/00FC,People And Communities,Vulnerable Young People,School Access Governor Student,Grants And Subscriptions,Subscriptions,LJ101,12/20/2013,248391,545,REVENUE,LEXISNEXIS UK,101447
North East Lincolnshire Council,http://statistics.data.gov.uk/id/local-authority/00FC,People And Communities,Vulnerable Young People,School Access Governor Student,Contract Hire-Operating Leases,Vehicles - Contract Hire,JC101,12/17/2013,246922,REDACTED COMMERCIALLY SENSITIVE,REVENUE,MINICABS CLEETHORPES (LINCS) LTD,102124
North East Lincolnshire Council,http://statistics.data.gov.uk/id/local-authority/00FC,People And Communities,Vulnerable Young People,School Access Governor Student,Contract Hire-Operating Leases,Vehicles - Contract Hire,JC101,12/18/2013,247435,REDACTED COMMERCIALLY SENSITIVE,REVENUE,LINKS TAXIS,100546
North East Lincolnshire Council,http://statistics.data.gov.uk/id/local-authority/00FC,People And Communities,Vulnerable Young People,School Access Governor Student,Contract Hire-Operating Leases,Vehicles - Contract Hire,JC101,12/18/2013,247408,REDACTED COMMERCIALLY SENSITIVE,REVENUE,LINKS TAXIS,100546
North East Lincolnshire Council,http://statistics.data.gov.uk/id/local-authority/00FC,People And Communities,Vulnerable Young People,School Access Governor Student,Contract Hire-Operating Leases,Vehicles - Contract Hire,JC101,12/18/2013,247407,REDACTED COMMERCIALLY SENSITIVE,REVENUE,LINKS TAXIS,100546
North East Lincolnshire Council,http://statistics.data.gov.uk/id/local-authority/00FC,People And Communities,Vulnerable Young People,School Access Governor Student,Contract Hire-Operating Leases,Vehicles - Contract Hire,JC101,12/16/2013,246874,REDACTED COMMERCIALLY SENSITIVE,REVENUE,REVELLS TAXIS (ED/SOC SERV),100559
North East Lincolnshire Council,http://statistics.data.gov.uk/id/local-authority/00FC,People And Communities,Vulnerable Young People,School Access Governor Student,Contract Hire-Operating Leases,Vehicles - Contract Hire,JC101,12/17/2013,246902,REDACTED COMMERCIALLY SENSITIVE,REVENUE,WHEELCHAIR FRIENDLY TAXI SERVICE,101915
North East Lincolnshire Council,http://statistics.data.gov.uk/id/local-authority/00FC,People And Communities,Vulnerable Young People,School Access Governor Student,Contract Hire-Operating Leases,Vehicles - Contract Hire,JC101,12/20/2013,248318,REDACTED COMMERCIALLY SENSITIVE,REVENUE,COUNTRY CABS,101999
North East Lincolnshire Council,http://statistics.data.gov.uk/id/local-authority/00FC,People And Communities,Vulnerable Young People,School Access Governor Student,Contract Hire-Operating Leases,Vehicles - Contract Hire,JC101,12/16/2013,246887,REDACTED COMMERCIALLY SENSITIVE,REVENUE,COXONS CARS LIMITED,100578
North East Lincolnshire Council,http://statistics.data.gov.uk/id/local-authority/00FC,People And Communities,Vulnerable Young People,School Access Governor Student,Contract Hire-Operating Leases,Vehicles - Contract Hire,JC101,12/20/2013,248324,REDACTED COMMERCIALLY SENSITIVE,REVENUE,COUNTRY CABS,101999
North East Lincolnshire Council,http://statistics.data.gov.uk/id/local-authority/00FC,People And Communities,Vulnerable Young People,School Access Governor Student,Contract Hire-Operating Leases,Vehicles - Contract Hire,JC101,12/17/2013,247411,REDACTED COMMERCIALLY SENSITIVE,REVENUE,LINKS TAXIS,100546
North East Lincolnshire Council,http://statistics.data.gov.uk/id/local-authority/00FC,People And Communities,Vulnerable Young People,School Access Governor Student,Contract Hire-Operating Leases,Vehicles - Contract Hire,JC101,12/16/2013,246897,REDACTED COMMERCIALLY SENSITIVE,REVENUE,REVELLS TAXIS (ED/SOC SERV),100559
North East Lincolnshire Council,http://statistics.data.gov.uk/id/local-authority/00FC,People And Communities,Vulnerable Young People,School Access Governor Student,Contract Hire-Operating Leases,Vehicles - Contract Hire,JC101,12/18/2013,247429,REDACTED COMMERCIALLY SENSITIVE,REVENUE,LINKS TAXIS,100546
North East Lincolnshire Council,http://statistics.data.gov.uk/id/local-authority/00FC,People And Communities,Vulnerable Young People,School Access Governor Student,Contract Hire-Operating Leases,Vehicles - Contract Hire,JC101,12/16/2013,246886,REDACTED COMMERCIALLY SENSITIVE,REVENUE,WHEELCHAIR FRIENDLY TAXI SERVICE,101915
North East Lincolnshire Council,http://statistics.data.gov.uk/id/local-authority/00FC,People And Communities,Vulnerable Young People,School Access Governor Student,Contract Hire-Operating Leases,Vehicles - Contract Hire,JC101,12/18/2013,247636,REDACTED COMMERCIALLY SENSITIVE,REVENUE,REVELLS TAXIS (ED/SOC SERV),100559
North East Lincolnshire Council,http://statistics.data.gov.uk/id/local-authority/00FC,People And Communities,Vulnerable Young People,School Access Governor Student,Contract Hire-Operating Leases,Vehicles - Contract Hire,JC101,12/11/2013,246672,REDACTED COMMERCIALLY SENSITIVE,REVENUE,COXONS CARS LIMITED,100578
North East Lincolnshire Council,http://statistics.data.gov.uk/id/local-authority/00FC,People And Communities,Vulnerable Young People,School Access Governor Student,Contract Hire-Operating Leases,Vehicles - Contract Hire,JC101,12/17/2013,246875,REDACTED COMMERCIALLY SENSITIVE,REVENUE,REVELLS TAXIS (ED/SOC SERV),100559
North East Lincolnshire Council,http://statistics.data.gov.uk/id/local-authority/00FC,People And Communities,Vulnerable Young People,School Access Governor Student,Contract Hire-Operating Leases,Vehicles - Contract Hire,JC101,12/16/2013,246853,REDACTED COMMERCIALLY SENSITIVE,REVENUE,COXONS CARS LIMITED,100578
North East Lincolnshire Council,http://statistics.data.gov.uk/id/local-authority/00FC,People And Communities,Vulnerable Young People,School Access Governor Student,Contract Hire-Operating Leases,Vehicles - Contract Hire,JC101,12/11/2013,246679,REDACTED COMMERCIALLY SENSITIVE,REVENUE,COXONS CARS LIMITED,100578
North East Lincolnshire Council,http://statistics.data.gov.uk/id/local-authority/00FC,People And Communities,Vulnerable Young People,School Access Governor Student,Contract Hire-Operating Leases,Vehicles - Contract Hire,JC101,12/16/2013,246852,REDACTED COMMERCIALLY SENSITIVE,REVENUE,COXONS CARS LIMITED,100578
North East Lincolnshire Council,http://statistics.data.gov.uk/id/local-authority/00FC,People And Communities,Vulnerable Young People,School Access Governor Student,Contract Hire-Operating Leases,Vehicles - Contract Hire,JC101,12/17/2013,247431,REDACTED COMMERCIALLY SENSITIVE,REVENUE,LINKS TAXIS,100546
North East Lincolnshire Council,http://statistics.data.gov.uk/id/local-authority/00FC,People And Communities,Vulnerable Young People,School Access Governor Student,Contract Hire-Operating Leases,Vehicles - Contract Hire,JC101,12/18/2013,247635,REDACTED COMMERCIALLY SENSITIVE,REVENUE,REVELLS TAXIS (ED/SOC SERV),100559
North East Lincolnshire Council,http://statistics.data.gov.uk/id/local-authority/00FC,People And Communities,Vulnerable Young People,School Access Governor Student,Contract Hire-Operating Leases,Vehicles - Contract Hire,JC101,12/18/2013,247592,REDACTED COMMERCIALLY SENSITIVE,REVENUE,REVELLS TAXIS (ED/SOC SERV),100559
North East Lincolnshire Council,http://statistics.data.gov.uk/id/local-authority/00FC,People And Communities,Vulnerable Young People,School Access Governor Student,Contract Hire-Operating Leases,Vehicles - Contract Hire,JC101,12/17/2013,248014,REDACTED COMMERCIALLY SENSITIVE,REVENUE,LINKS TAXIS,100546
North East Lincolnshire Council,http://statistics.data.gov.uk/id/local-authority/00FC,People And Communities,Vulnerable Young People,School Access Governor Student,Contract Hire-Operating Leases,Vehicles - Contract Hire,JC101,12/20/2013,248328,REDACTED COMMERCIALLY SENSITIVE,REVENUE,COUNTRY CABS,101999
North East Lincolnshire Council,http://statistics.data.gov.uk/id/local-authority/00FC,People And Communities,Vulnerable Young People,School Access Governor Student,Contract Hire-Operating Leases,Vehicles - Contract Hire,JC101,12/16/2013,246851,REDACTED COMMERCIALLY SENSITIVE,REVENUE,COXONS CARS LIMITED,100578
North East Lincolnshire Council,http://statistics.data.gov.uk/id/local-authority/00FC,People And Communities,Vulnerable Young People,School Access Governor Student,Contract Hire-Operating Leases,Vehicles - Contract Hire,JC101,12/16/2013,246883,REDACTED COMMERCIALLY SENSITIVE,REVENUE,MINICABS CLEETHORPES (LINCS) LTD,102124
North East Lincolnshire Council,http://statistics.data.gov.uk/id/local-authority/00FC,People And Communities,Vulnerable Young People,School Access Governor Student,Contract Hire-Operating Leases,Vehicles - Contract Hire,JC101,12/16/2013,246678,REDACTED COMMERCIALLY SENSITIVE,REVENUE,COXONS CARS LIMITED,100578
North East Lincolnshire Council,http://statistics.data.gov.uk/id/local-authority/00FC,People And Communities,Vulnerable Young People,School Access Governor Student,Contract Hire-Operating Leases,Vehicles - Contract Hire,JC101,12/17/2013,247450,REDACTED COMMERCIALLY SENSITIVE,REVENUE,LINKS TAXIS,100546
North East Lincolnshire Council,http://statistics.data.gov.uk/id/local-authority/00FC,People And Communities,Vulnerable Young People,School Access Governor Student,Contract Hire-Operating Leases,Vehicles - Contract Hire,JC101,12/18/2013,247457,REDACTED COMMERCIALLY SENSITIVE,REVENUE,LINKS TAXIS,100546
North East Lincolnshire Council,http://statistics.data.gov.uk/id/local-authority/00FC,People And Communities,Vulnerable Young People,School Access Governor Student,Contract Hire-Operating Leases,Vehicles - Contract Hire,JC101,12/20/2013,248751,REDACTED COMMERCIALLY SENSITIVE,REVENUE,LINKS TAXIS,100546
North East Lincolnshire Council,http://statistics.data.gov.uk/id/local-authority/00FC,People And Communities,Vulnerable Young People,School Access Governor Student,Private Contractors,Concessionary Fares,PH104,12/20/2013,248623,REDACTED COMMERCIALLY SENSITIVE,REVENUE,STAGECOACH SERVICES,101404
North East Lincolnshire Council,http://statistics.data.gov.uk/id/local-authority/00FC,People And Communities,Vulnerable Young People,School Access Governor Student,Contract Hire-Operating Leases,Vehicles - Contract Hire,JC101,12/18/2013,247603,REDACTED COMMERCIALLY SENSITIVE,REVENUE,AA RADIO CARS LTD,101222
North East Lincolnshire Council,http://statistics.data.gov.uk/id/local-authority/00FC,People And Communities,Vulnerable Young People,School Access Governor Student,Contract Hire-Operating Leases,Vehicles - Contract Hire,JC101,12/17/2013,246892,REDACTED COMMERCIALLY SENSITIVE,REVENUE,MINICABS CLEETHORPES (LINCS) LTD,102124
North East Lincolnshire Council,http://statistics.data.gov.uk/id/local-authority/00FC,People And Communities,Vulnerable Young People,School Access Governor Student,Contract Hire-Operating Leases,Vehicles - Contract Hire,JC101,12/17/2013,246891,REDACTED COMMERCIALLY SENSITIVE,REVENUE,MINICABS CLEETHORPES (LINCS) LTD,102124
North East Lincolnshire Council,http://statistics.data.gov.uk/id/local-authority/00FC,People And Communities,Vulnerable Young People,School Access Governor Student,Contract Hire-Operating Leases,Vehicles - Contract Hire,JC101,12/18/2013,247588,REDACTED COMMERCIALLY SENSITIVE,REVENUE,AMVALE LIMITED,101030
North East Lincolnshire Council,http://statistics.data.gov.uk/id/local-authority/00FC,People And Communities,Vulnerable Young People,School Access Governor Student,Contract Hire-Operating Leases,Vehicles - Contract Hire,JC101,12/17/2013,247587,REDACTED COMMERCIALLY SENSITIVE,REVENUE,AMVALE LIMITED,101030
North East Lincolnshire Council,http://statistics.data.gov.uk/id/local-authority/00FC,People And Communities,Vulnerable Young People,School Access Governor Student,Contract Hire-Operating Leases,Vehicles - Contract Hire,JC101,12/18/2013,247614,REDACTED COMMERCIALLY SENSITIVE,REVENUE,AMVALE LIMITED,101030
North East Lincolnshire Council,http://statistics.data.gov.uk/id/local-authority/00FC,People And Communities,Vulnerable Young People,School Access Governor Student,Contract Hire-Operating Leases,Vehicles - Contract Hire,JC101,12/16/2013,246885,REDACTED COMMERCIALLY SENSITIVE,REVENUE,REDACTED PERSONAL INFORMATION,REDACTED PERSONAL INFORMATION
North East Lincolnshire Council,http://statistics.data.gov.uk/id/local-authority/00FC,People And Communities,Vulnerable Young People,School Access Governor Student,Contract Hire-Operating Leases,Vehicles - Contract Hire,JC101,12/16/2013,246676,REDACTED COMMERCIALLY SENSITIVE,REVENUE,COXONS CARS LIMITED,100578
North East Lincolnshire Council,http://statistics.data.gov.uk/id/local-authority/00FC,People And Communities,Vulnerable Young People,School Access Governor Student,Contract Hire-Operating Leases,Vehicles - Contract Hire,JC101,12/20/2013,248325,REDACTED COMMERCIALLY SENSITIVE,REVENUE,SHERWOOD TRAVEL,100868
North East Lincolnshire Council,http://statistics.data.gov.uk/id/local-authority/00FC,People And Communities,Vulnerable Young People,School Access Governor Student,Contract Hire-Operating Leases,Vehicles - Contract Hire,JC101,12/17/2013,246894,REDACTED COMMERCIALLY SENSITIVE,REVENUE,FISHERS OF GRIMSBY,111965
North East Lincolnshire Council,http://statistics.data.gov.uk/id/local-authority/00FC,People And Communities,Vulnerable Young People,School Access Governor Student,Contract Hire-Operating Leases,Vehicles - Contract Hire,JC101,12/17/2013,247638,REDACTED COMMERCIALLY SENSITIVE,REVENUE,AMVALE LIMITED,101030
North East Lincolnshire Council,http://statistics.data.gov.uk/id/local-authority/00FC,People And Communities,Vulnerable Young People,School Access Governor Student,Contract Hire-Operating Leases,Vehicles - Contract Hire,JC101,12/20/2013,248624,REDACTED COMMERCIALLY SENSITIVE,REVENUE,COOPERS TOURS (LINCS) LTD,111878
North East Lincolnshire Council,http://statistics.data.gov.uk/id/local-authority/00FC,People And Communities,Vulnerable Young People,School Access Governor Student,Contract Hire-Operating Leases,Vehicles - Contract Hire,JC101,12/30/2013,249874,REDACTED COMMERCIALLY SENSITIVE,REVENUE,COOPERS TOURS (LINCS) LTD,111878
North East Lincolnshire Council,http://statistics.data.gov.uk/id/local-authority/00FC,People And Communities,Vulnerable Young People,School Access Governor Student,Contract Hire-Operating Leases,Vehicles - Contract Hire,JC101,12/17/2013,247637,REDACTED COMMERCIALLY SENSITIVE,REVENUE,AMVALE LIMITED,101030
North East Lincolnshire Council,http://statistics.data.gov.uk/id/local-authority/00FC,People And Communities,Vulnerable Young People,School Access Governor Student,Contract Hire-Operating Leases,Vehicles - Contract Hire,JC101,12/20/2013,248206,REDACTED COMMERCIALLY SENSITIVE,REVENUE,LINKS TAXIS,100546
North East Lincolnshire Council,http://statistics.data.gov.uk/id/local-authority/00FC,People And Communities,Vulnerable Young People,School Access Governor Student,Contract Hire-Operating Leases,Vehicles - Contract Hire,JC101,12/11/2013,246674,REDACTED COMMERCIALLY SENSITIVE,REVENUE,COXONS CARS LIMITED,100578
North East Lincolnshire Council,http://statistics.data.gov.uk/id/local-authority/00FC,People And Communities,Vulnerable Young People,School Access Governor Student,Contract Hire-Operating Leases,Vehicles - Contract Hire,JC101,12/2/2013,245104,REDACTED COMMERCIALLY SENSITIVE,REVENUE,REDACTED PERSONAL INFORMATION,REDACTED PERSONAL INFORMATION
North East Lincolnshire Council,http://statistics.data.gov.uk/id/local-authority/00FC,People And Communities,Vulnerable Young People,School Access Governor Student,Contract Hire-Operating Leases,Vehicles - Contract Hire,JC101,12/16/2013,246882,REDACTED COMMERCIALLY SENSITIVE,REVENUE,REDACTED PERSONAL INFORMATION,REDACTED PERSONAL INFORMATION
North East Lincolnshire Council,http://statistics.data.gov.uk/id/local-authority/00FC,People And Communities,Vulnerable Young People,School Access Governor Student,Contract Hire-Operating Leases,Vehicles - Contract Hire,JC101,12/2/2013,245101,REDACTED COMMERCIALLY SENSITIVE,REVENUE,MILLMAN COACHES,100700
North East Lincolnshire Council,http://statistics.data.gov.uk/id/local-authority/00FC,People And Communities,Vulnerable Young People,School Access Governor Student,Contract Hire-Operating Leases,Vehicles - Contract Hire,JC101,12/16/2013,246143,REDACTED COMMERCIALLY SENSITIVE,REVENUE,MILLMAN COACHES,100700
North East Lincolnshire Council,http://statistics.data.gov.uk/id/local-authority/00FC,People And Communities,Vulnerable Young People,School Access Governor Student,Contract Hire-Operating Leases,Vehicles - Contract Hire,JC101,12/16/2013,246854,REDACTED COMMERCIALLY SENSITIVE,REVENUE,COXONS CARS LIMITED,100578
North East Lincolnshire Council,http://statistics.data.gov.uk/id/local-authority/00FC,People And Communities,Vulnerable Young People,School Access Governor Student,Private Contractors,Concessionary Fares,PH104,12/20/2013,248623,REDACTED COMMERCIALLY SENSITIVE,REVENUE,STAGECOACH SERVICES,101404
North East Lincolnshire Council,http://statistics.data.gov.uk/id/local-authority/00FC,People And Communities,Vulnerable Young People,School Access Governor Student,Indirect Employee Expenses,Staff Training,EB122,12/20/2013,248331,700,REVENUE,PHOENIX TRAINING,108095
North East Lincolnshire Council,http://statistics.data.gov.uk/id/local-authority/00FC,People And Communities,Vulnerable Young People,School Access Governor Student,Contract Hire-Operating Leases,Vehicles - Contract Hire,JC101,12/18/2013,247456,REDACTED COMMERCIALLY SENSITIVE,REVENUE,LINKS TAXIS,100546
North East Lincolnshire Council,http://statistics.data.gov.uk/id/local-authority/00FC,People And Communities,Vulnerable Young People,School Access Governor Student,Contract Hire-Operating Leases,Vehicles - Contract Hire,JC101,12/17/2013,247463,REDACTED COMMERCIALLY SENSITIVE,REVENUE,LINKS TAXIS,100546
North East Lincolnshire Council,http://statistics.data.gov.uk/id/local-authority/00FC,People And Communities,Vulnerable Young People,School Access Governor Student,Contract Hire-Operating Leases,Vehicles - Contract Hire,JC101,12/18/2013,247594,REDACTED COMMERCIALLY SENSITIVE,REVENUE,REDACTED PERSONAL INFORMATION,REDACTED PERSONAL INFORMATION
North East Lincolnshire Council,http://statistics.data.gov.uk/id/local-authority/00FC,People And Communities,Vulnerable Young People,School Access Governor Student,Contract Hire-Operating Leases,Vehicles - Contract Hire,JC101,12/18/2013,247428,REDACTED COMMERCIALLY SENSITIVE,REVENUE,LINKS TAXIS,100546
North East Lincolnshire Council,http://statistics.data.gov.uk/id/local-authority/00FC,People And Communities,Vulnerable Young People,School Access Governor Student,Contract Hire-Operating Leases,Vehicles - Contract Hire,JC101,12/18/2013,248132,REDACTED COMMERCIALLY SENSITIVE,REVENUE,LINKS TAXIS,100546
North East Lincolnshire Council,http://statistics.data.gov.uk/id/local-authority/00FC,People And Communities,Vulnerable Young People,School Access Governor Student,Contract Hire-Operating Leases,Vehicles - Contract Hire,JC101,12/17/2013,248070,REDACTED COMMERCIALLY SENSITIVE,REVENUE,LINKS TAXIS,100546
North East Lincolnshire Council,http://statistics.data.gov.uk/id/local-authority/00FC,People And Communities,Vulnerable Young People,School Access Governor Student,Contract Hire-Operating Leases,Vehicles - Contract Hire,JC101,12/18/2013,247599,REDACTED COMMERCIALLY SENSITIVE,REVENUE,AA RADIO CARS LTD,101222
North East Lincolnshire Council,http://statistics.data.gov.uk/id/local-authority/00FC,People And Communities,Vulnerable Young People,School Access Governor Student,Contract Hire-Operating Leases,Vehicles - Contract Hire,JC101,12/2/2013,245100,REDACTED COMMERCIALLY SENSITIVE,REVENUE,MILLMAN COACHES,100700
North East Lincolnshire Council,http://statistics.data.gov.uk/id/local-authority/00FC,People And Communities,Vulnerable Young People,School Access Governor Student,Contract Hire-Operating Leases,Vehicles - Contract Hire,JC101,12/16/2013,246164,REDACTED COMMERCIALLY SENSITIVE,REVENUE,MILLMAN COACHES,100700
North East Lincolnshire Council,http://statistics.data.gov.uk/id/local-authority/00FC,People And Communities,Vulnerable Young People,School Access Governor Student,Contract Hire-Operating Leases,Vehicles - Contract Hire,JC101,12/11/2013,246160,REDACTED COMMERCIALLY SENSITIVE,REVENUE,GRIMSBY MINIBUSES LTD,121524
North East Lincolnshire Council,http://statistics.data.gov.uk/id/local-authority/00FC,People And Communities,Vulnerable Young People,School Access Governor Student,Contract Hire-Operating Leases,Vehicles - Contract Hire,JC101,12/11/2013,246159,REDACTED COMMERCIALLY SENSITIVE,REVENUE,GRIMSBY MINIBUSES LTD,121524
North East Lincolnshire Council,http://statistics.data.gov.uk/id/local-authority/00FC,People And Communities,Vulnerable Young People,School Access Governor Student,Contract Hire-Operating Leases,Vehicles - Contract Hire,JC101,12/16/2013,246682,REDACTED COMMERCIALLY SENSITIVE,REVENUE,REVELLS TAXIS (ED/SOC SERV),100559
North East Lincolnshire Council,http://statistics.data.gov.uk/id/local-authority/00FC,People And Communities,Vulnerable Young People,School Access Governor Student,Contract Hire-Operating Leases,Vehicles - Contract Hire,JC101,12/18/2013,247452,REDACTED COMMERCIALLY SENSITIVE,REVENUE,LINKS TAXIS,100546
North East Lincolnshire Council,http://statistics.data.gov.uk/id/local-authority/00FC,People And Communities,Vulnerable Young People,School Access Governor Student,Contract Hire-Operating Leases,Vehicles - Contract Hire,JC101,12/11/2013,246677,REDACTED COMMERCIALLY SENSITIVE,REVENUE,COXONS CARS LIMITED,100578
North East Lincolnshire Council,http://statistics.data.gov.uk/id/local-authority/00FC,People And Communities,Vulnerable Young People,School Access Governor Student,Contract Hire-Operating Leases,Vehicles - Contract Hire,JC101,12/17/2013,247420,REDACTED COMMERCIALLY SENSITIVE,REVENUE,COXONS CARS LIMITED,100578
North East Lincolnshire Council,http://statistics.data.gov.uk/id/local-authority/00FC,People And Communities,Vulnerable Young People,School Access Governor Student,Contract Hire-Operating Leases,Vehicles - Contract Hire,JC101,12/16/2013,246849,REDACTED COMMERCIALLY SENSITIVE,REVENUE,COXONS CARS LIMITED,100578
North East Lincolnshire Council,http://statistics.data.gov.uk/id/local-authority/00FC,People And Communities,Vulnerable Young People,School Access Governor Student,Contract Hire-Operating Leases,Vehicles - Contract Hire,JC101,12/17/2013,247437,REDACTED COMMERCIALLY SENSITIVE,REVENUE,LINKS TAXIS,100546
North East Lincolnshire Council,http://statistics.data.gov.uk/id/local-authority/00FC,People And Communities,Vulnerable Young People,School Access Governor Student,Contract Hire-Operating Leases,Vehicles - Contract Hire,JC101,12/18/2013,247438,REDACTED COMMERCIALLY SENSITIVE,REVENUE,LINKS TAXIS,100546
North East Lincolnshire Council,http://statistics.data.gov.uk/id/local-authority/00FC,People And Communities,Vulnerable Young People,School Access Governor Student,Contract Hire-Operating Leases,Vehicles - Contract Hire,JC101,12/18/2013,247624,REDACTED COMMERCIALLY SENSITIVE,REVENUE,AMVALE LIMITED,101030
North East Lincolnshire Council,http://statistics.data.gov.uk/id/local-authority/00FC,People And Communities,Vulnerable Young People,School Access Governor Student,Contract Hire-Operating Leases,Vehicles - Contract Hire,JC101,12/18/2013,247616,REDACTED COMMERCIALLY SENSITIVE,REVENUE,AMVALE LIMITED,101030
North East Lincolnshire Council,http://statistics.data.gov.uk/id/local-authority/00FC,People And Communities,Vulnerable Young People,School Access Governor Student,Contract Hire-Operating Leases,Vehicles - Contract Hire,JC101,12/18/2013,247632,REDACTED COMMERCIALLY SENSITIVE,REVENUE,HANSONS AIRPORT EXPRESS,111879
North East Lincolnshire Council,http://statistics.data.gov.uk/id/local-authority/00FC,People And Communities,Vulnerable Young People,School Access Governor Student,Contract Hire-Operating Leases,Vehicles - Contract Hire,JC101,12/10/2013,246163,REDACTED COMMERCIALLY SENSITIVE,REVENUE,CABBYCARS,100847
North East Lincolnshire Council,http://statistics.data.gov.uk/id/local-authority/00FC,People And Communities,Vulnerable Young People,School Access Governor Student,Contract Hire-Operating Leases,Vehicles - Contract Hire,JC101,12/30/2013,249873,REDACTED COMMERCIALLY SENSITIVE,REVENUE,CABBYCARS,100847
North East Lincolnshire Council,http://statistics.data.gov.uk/id/local-authority/00FC,People And Communities,Vulnerable Young People,School Access Governor Student,Contract Hire-Operating Leases,Vehicles - Contract Hire,JC101,12/11/2013,246161,REDACTED COMMERCIALLY SENSITIVE,REVENUE,GRIMSBY MINIBUSES LTD,121524
North East Lincolnshire Council,http://statistics.data.gov.uk/id/local-authority/00FC,People And Communities,Vulnerable Young People,School Access Governor Student,Contract Hire-Operating Leases,Vehicles - Contract Hire,JC101,12/16/2013,246898,REDACTED COMMERCIALLY SENSITIVE,REVENUE,THE BUS RUN,101522
North East Lincolnshire Council,http://statistics.data.gov.uk/id/local-authority/00FC,People And Communities,Vulnerable Young People,School Access Governor Student,Contract Hire-Operating Leases,Vehicles - Contract Hire,JC101,12/16/2013,246890,REDACTED COMMERCIALLY SENSITIVE,REVENUE,MINICABS CLEETHORPES (LINCS) LTD,102124
North East Lincolnshire Council,http://statistics.data.gov.uk/id/local-authority/00FC,People And Communities,Vulnerable Young People,School Access Governor Student,Contract Hire-Operating Leases,Vehicles - Contract Hire,JC101,12/18/2013,246920,REDACTED COMMERCIALLY SENSITIVE,REVENUE,AMVALE LIMITED,101030
North East Lincolnshire Council,http://statistics.data.gov.uk/id/local-authority/00FC,People And Communities,Vulnerable Young People,School Access Governor Student,Contract Hire-Operating Leases,Vehicles - Contract Hire,JC101,12/4/2013,245364,REDACTED COMMERCIALLY SENSITIVE,REVENUE,AMVALE LIMITED,101030
